{"text_format":"1","workbook":"xlsx","n_sheets":11,"sheets":["Alle tillæg","§11 stk. 1 (mål).","§ 11 stk. 2 (ledningsomlægning)","§ 11 stk. 4 (udvidelse)","§11 stk. 5 (medfinansiering)","§11 stk. 9 (vejbidrag) ","§ 13 stk. 2 (periodevise)","§14 (justering af Ø.R.)","§ 31 stk. 7 (vandindvinding)","Tabeller","Ark1"],"not_rendered":{"charts":0,"images":0,"macros":1,"external_links":0,"defined_names":8,"comments":0,"pivot_tables":0},"unopened":[],"bounds":{"document_bytes":16777216,"sheet_cells":100000,"rows_first":2000,"rows_last":500,"rows_between":2000,"halvings":0,"cell_chars":16384,"cell_head_chars":4096},"cells_cut":0,"cells_raw":0,"read":"whole","date_system":"1900"}

{"sheet":"Alle tillæg","index":0,"n_rows":584,"n_cols":10,"rows_kept":584,"cut":false,"hidden":false,"merged":[]}
["Selskab","Forsyningsart","FS ID","Beskrivelse","Driftsomkostninger","Anlægsomkostninger","Engangstillæg","Type:  §11 Stk. 1 (mål), §11, Stk. 2 (ledningsomlægning), §11, stk. 4 (udvidelse), §11 stk. 5 (medfinansiering), §11, stk. 6 (sup. Investering), §11, stk. 9 (vejbidrag), §13, stk. 2 (periodevise), §31, stk. 7 (vandindvinding)","Godkendt/afvist","Grund til godkendelse/ afvisning"]
["aabybro vand amba  ","Drikkevand","v217","Anlægsprojekter igangsat senest 1. marts 2016",0,0,null,"1. Marts 2016"]
["aalborg kloak as  ","Spildevand","s109","Anlægsprojekter igangsat senest 1. marts 2016",0,2632135.7253999999,null,"1. Marts 2016"]
["afloeb ballerup as  ","Spildevand","s001","Garantiprovision",0,80549,402745,"§11 Stk. 1 (mål)","Godkendt","Der er tale om statsligt eller kommunalt fastsatmål, som overstiger væsentlighedsgrænsen og ligger uden for den ordinære driftsaktivitet."]
["aalborg vand as  ","Drikkevand","v218","Anlægsprojekter igangsat senest 1. marts 2016",0,0,null,"1. Marts 2016"]
["aalestrup vand amba  ","Drikkevand","v219","Anlægsprojekter igangsat senest 1. marts 2016",0,0,null,"1. Marts 2016"]
["aarhus vand as  ","Spildevand","s110","Anlægsprojekter igangsat senest 1. marts 2016",0,0,null,"1. Marts 2016"]
["afloeb ballerup as  ","Spildevand","s001","Brønde, stik og ledninger",38680,23550,null,"§11, stk. 4 (udvidelse)","Godkendt","Godtgjort at deres forsyningsområde eller vandmængder er udvidet, som følge af udvidelse af forsyningsområde eller håndterede vandmængder"]
["alleroed spildevand as  ","Spildevand","s002","Garantiprovision",0,820962,4925772,"§11 Stk. 1 (mål)","Godkendt","Der er tale om statsligt eller kommunalt fastsatmål, som overstiger væsentlighedsgrænsen og ligger uden for den ordinære driftsaktivitet."]
["alleroed spildevand as  ","Spildevand","s002","Flytning af forsyningsledninger",0,54301,null,"§11, Stk. 2 (ledningsomlægning)","Godkendt","Flytningen af jeres forsynings ledninger er en følge af arealejers retmæssige råderet over arealet, og at jeres anlægsomkostninger har været nødvendige i forbindelse med flytningen."]
["alleroed spildevand as  ","Spildevand","s002","Udvidelse af forsyningsområdet",255895,30053,null,"§11, stk. 4 (udvidelse)","Godkendt","Godtgjort at deres forsyningsområde eller vandmængder er udvidet, som følge af udvidelse af forsyningsområde eller håndterede vandmængder"]
["andelsselskabet bredebro vandvaerk  ","Spildevand",null,"udskiftning af filtre",null,null,null,"§13, stk. 2 (periodevise)","Afvist ","Det er vores vurdering, at der er tale om almindelig ved ligeholdelse af filtre, der ikke kan sidestilles med oprensninger af slam eller regnvandsbede."]
["andelsselskabet stenloese vandvaerk  ","Drikkevand","v008","Udvidelse med seks forsyningsområder",0,6437,null,"§11, stk. 4 (udvidelse)","Godkendt","Opfylder betingerne for tillæg."]
["andelsselskabet strandhuse nr bjert vandvaerk  ","Drikkevand","v009","Nyt vej-T i Nr. Bjert",0,4482,null,"§11 Stk. 1 (mål)","Godkendt","Der er tale om statsligt eller kommunalt fastsatmål, som overstiger væsentlighedsgrænsen og ligger uden for den ordinære driftsaktivitet."]
["arwos spildevand as  ","Spildevand",null,"Separering",null,null,null,"§11 Stk. 1 (mål)","Afvist ","Væsentlighedhedsgrænsen er ikke opfyldt."]
["arwos spildevand as  ","Spildevand","s004","Fladhøjparken & Hærvejsskolen",0,5230,null,"§11, Stk. 2 (ledningsomlægning)","Godkendt","Flytningen af jeres forsynings ledninger er en følge af arealejers retmæssige råderet over arealet, og at jeres anlægsomkostninger har været nødvendige i forbindelse med flytningen."]
["aarhus vand as  ","Drikkevand","v220","Anlægsprojekter igangsat senest 1. marts 2016",0,0,null,"1. Marts 2016"]
["arwos spildevand as  ","Spildevand","s004","Udvidelse af forsyningsområdet",0,259880,67359,"§11, stk. 4 (udvidelse)","Godkendt","Godtgjort at deres forsyningsområde eller vandmængder er udvidet, som følge af udvidelse af forsyningsområde eller håndterede vandmængder"]
["arwos vand as  ","Drikkevand","v015","Byggemodninger og nye tilslutninger",0,90801,114056,"§11, stk. 4 (udvidelse)","Godkendt","Godtgjort at deres forsyningsområde eller vandmængder er udvidet, som følge af udvidelse af forsyningsområde eller håndterede vandmængder"]
["billund drikkevand as  ","Drikkevand","v020","Byggemodninger",19063,17628,null,"§11, stk. 4 (udvidelse)","Godkendt","Godtgjort at deres forsyningsområde eller vandmængder er udvidet, som følge af udvidelse af forsyningsområde eller håndterede vandmængder"]
["billund spildevand as  ","Spildevand","s007","Flytning af ledninger ved Lego House",0,5190,null,"§11, Stk. 2 (ledningsomlægning)","Godkendt","Flytningen af jeres forsynings ledninger er en følge af arealejers retmæssige råderet over arealet, og at jeres anlægsomkostninger har været nødvendige i forbindelse med flytningen."]
["billund spildevand as  ","Spildevand","s007","Byggemodninger",9328,142242,null,"§11, stk. 4 (udvidelse)","Godkendt","Godtgjort at deres forsyningsområde eller vandmængder er udvidet, som følge af udvidelse af forsyningsområde eller håndterede vandmængder"]
["aars vand  ","Drikkevand","v221","Anlægsprojekter igangsat senest 1. marts 2016",0,0,null,"1. Marts 2016"]
["aeroe vand as s108  (1)","Drikkevand","-oer","Anlægsprojekter igangsat senest 1. marts 2016",0,0,null,"1. Marts 2016"]
["aeroe vand as  ","Spildevand","s108","Anlægsprojekter igangsat senest 1. marts 2016",0,0,null,"1. Marts 2016"]
["afloeb ballerup as  ","Spildevand","s001","Anlægsprojekter igangsat senest 1. marts 2016",0,813910.72039999999,null,"1. Marts 2016"]
["biofos spildevandscenter avedoere as  ","Spildevand","s009","Påbud om adskillelse af restprodukter",0,49233,484228,"§11 Stk. 1 (mål)","Godkendt","Der er tale om statsligt eller kommunalt fastsatmål, som overstiger væsentlighedsgrænsen og ligger uden for den ordinære driftsaktivitet."]
["bluekolding spildevand as  ","Spildevand","s058","Flytning af ledninger ved Gl. Strandvej",0,18238,null,"§11, Stk. 2 (ledningsomlægning)","Godkendt","Flytningen af jeres forsynings ledninger er en følge af arealejers retmæssige råderet over arealet, og at jeres anlægsomkostninger har været nødvendige i forbindelse med flytningen."]
["alleroed spildevand as  ","Spildevand","s002","Anlægsprojekter igangsat senest 1. marts 2016",0,501623.67333333334,null,"1. Marts 2016"]
["bornholms spildevand as  ","Spildevand","s010","Nye tilslutninger",0,58981,null,"§11, stk. 4 (udvidelse)","Godkendt","Godtgjort at deres forsyningsområde eller vandmængder er udvidet, som følge af udvidelse af forsyningsområde eller håndterede vandmængder"]
["broager vandvaerk amba  ","Drikkevand","v033","Vandsamarbejde - grundvandsbeskyttelse",92804,0,null,"§11 Stk. 1 (mål)","Godkendt","Der er tale om statsligt eller kommunalt fastsatmål, som overstiger væsentlighedsgrænsen og ligger uden for den ordinære driftsaktivitet."]
["din forsyning spildevand as  ","Spildevand","s015","Byggemodninger og nye tilslutninger",118443,1030155.8,42975.6,"§11, stk. 4 (udvidelse)","Godkendt","Godtgjort at deres forsyningsområde eller vandmængder er udvidet, som følge af udvidelse af forsyningsområde eller håndterede vandmængder"]
["almtoft kjellerup vandvaerk amba  ","Drikkevand","v104","Anlægsprojekter igangsat senest 1. marts 2016",0,0,null,"1. Marts 2016"]
["andelsselskabet bredebro vandvaerk  ","Drikkevand","v032","Anlægsprojekter igangsat senest 1. marts 2016",0,0,null,"1. Marts 2016"]
["andelsselskabet ejby vandvaerk  ","Drikkevand","v001","Anlægsprojekter igangsat senest 1. marts 2016",0,0,null,"1. Marts 2016"]
["andelsselskabet goerlev vandforsyning  ","Drikkevand","v003","Anlægsprojekter igangsat senest 1. marts 2016",0,0,null,"1. Marts 2016"]
["andelsselskabet haarby vandvaerk  ","Drikkevand","v103","Anlægsprojekter igangsat senest 1. marts 2016",0,0,null,"1. Marts 2016"]
["andelsselskabet oerbaek vandvaerk  ","Drikkevand","v012","Anlægsprojekter igangsat senest 1. marts 2016",0,0,null,"1. Marts 2016"]
["andelsselskabet stenloese vandvaerk  ","Drikkevand","v008","Anlægsprojekter igangsat senest 1. marts 2016",0,0,null,"1. Marts 2016"]
["din forsyning spildevand as  ","Spildevand","s015","Glycom",3720226,0,null,"§11, stk. 4 (udvidelse)","Godkendt","Godtgjort at deres forsyningsområde eller vandmængder er udvidet, som følge af udvidelse af forsyningsområde eller håndterede vandmængder"]
["din forsyning spildevand as  ","Spildevand","s015","Oprensning af regnvandsbassiner",123195,0,1231953,"§13, stk. 2 (periodevise)","Godkendt","Opfylder betingerne for tillæg."]
["andelsselskabet strandhuse nr bjert vandvaerk  ","Drikkevand","v009","Anlægsprojekter igangsat senest 1. marts 2016",0,0,null,"1. Marts 2016"]
["andelsselskabet vejgaard vandvaerk  ","Drikkevand","v010","Anlægsprojekter igangsat senest 1. marts 2016",0,0,null,"1. Marts 2016"]
["andelsselskabet vraa vandvaerk  ","Drikkevand","v011","Anlægsprojekter igangsat senest 1. marts 2016",0,0,null,"1. Marts 2016"]
["andelsvandvaerket helle vest amba  ","Drikkevand","v013","Anlægsprojekter igangsat senest 1. marts 2016",0,0,null,"1. Marts 2016"]
["aquadjurs as  ","Spildevand","s003","Anlægsprojekter igangsat senest 1. marts 2016",0,124896.82400000002,null,"1. Marts 2016"]
["aquadjurs as  ","Drikkevand","v014","Anlægsprojekter igangsat senest 1. marts 2016",0,0,null,"1. Marts 2016"]
["arwos spildevand as  ","Spildevand","s004","Anlægsprojekter igangsat senest 1. marts 2016",0,0,null,"1. Marts 2016"]
["din forsyning vand as  ","Drikkevand","v044","Flytning af ledninger",0,44994,null,"§11, Stk. 2 (ledningsomlægning)","Godkendt","Flytningen af jeres forsynings ledninger er en følge af arealejers retmæssige råderet over arealet, og at jeres anlægsomkostninger har været nødvendige i forbindelse med flytningen."]
["din forsyning vand as  ","Drikkevand","v044","Byggemodninger og nye tilslutninger",206794,239883,null,"§11, stk. 4 (udvidelse)","Godkendt","Godtgjort at deres forsyningsområde eller vandmængder er udvidet, som følge af udvidelse af forsyningsområde eller håndterede vandmængder"]
["arwos vand as  ","Drikkevand","v015","Anlægsprojekter igangsat senest 1. marts 2016",0,0,null,"1. Marts 2016"]
["egedal spildevand as  ","Spildevand","s013","Etablering af nye stik i 2017 og 2018",209943,65486,null,"§11, stk. 4 (udvidelse)","Godkendt","Godtgjort at deres forsyningsområde eller vandmængder er udvidet, som følge af udvidelse af forsyningsområde eller håndterede vandmængder"]
["asnaes vandvaerk amba  ","Drikkevand","v016","Anlægsprojekter igangsat senest 1. marts 2016",0,0,null,"1. Marts 2016"]
["assens rensning as  ","Spildevand","s005","Anlægsprojekter igangsat senest 1. marts 2016",0,0,null,"1. Marts 2016"]
["assens spildevand as  ","Spildevand","s006","Anlægsprojekter igangsat senest 1. marts 2016",0,1732104.44,null,"1. Marts 2016"]
["assens vandvaerk as  ","Drikkevand","v017","Anlægsprojekter igangsat senest 1. marts 2016",0,172915.66079999998,null,"1. Marts 2016"]
["aulum vandvaerk amba  ","Drikkevand","v018","Anlægsprojekter igangsat senest 1. marts 2016",0,0,null,"1. Marts 2016"]
["baunehoej vandvaerk amba  ","Drikkevand","v019","Anlægsprojekter igangsat senest 1. marts 2016",0,0,null,"1. Marts 2016"]
["billund drikkevand as  ","Drikkevand","v020","Anlægsprojekter igangsat senest 1. marts 2016",0,0,null,"1. Marts 2016"]
["energi viborg vand as  ","Spildevand","s014","Separering",36584,549834,null,"§11 Stk. 1 (mål)","Godkendt","Der er tale om statsligt eller kommunalt fastsatmål, som overstiger væsentlighedsgrænsen og ligger uden for den ordinære driftsaktivitet."]
["billund spildevand as  ","Spildevand","s007","Anlægsprojekter igangsat senest 1. marts 2016",0,0,null,"1. Marts 2016"]
["energi viborg vand as  ","Spildevand","s014","Byggemodninger",37346,194231,null,"§11, stk. 4 (udvidelse)","Godkendt","Godtgjort at deres forsyningsområde eller vandmængder er udvidet, som følge af udvidelse af forsyningsområde eller håndterede vandmængder"]
["energi viborg vand as  ","Spildevand","s014","Tømning af slambede",null,0,8303603,"§13, stk. 2 (periodevise)","Godkendt","Opfylder betingerne for tillæg."]
["biofos lynettefaellesskabet as  ","Spildevand","s008","Anlægsprojekter igangsat senest 1. marts 2016",0,7063701.0196666662,null,"1. Marts 2016"]
["biofos spildevandscenter avedoere as  ","Spildevand","s009","Anlægsprojekter igangsat senest 1. marts 2016",0,51058.736199999999,null,"1. Marts 2016"]
["fanoe vand as  ","Spildevand","s016","Nye tilslutninger",28908,52701,null,"§11, stk. 4 (udvidelse)","Godkendt","Godtgjort at deres forsyningsområde eller vandmængder er udvidet, som følge af udvidelse af forsyningsområde eller håndterede vandmængder"]
["birkeroed vandforsyning amba  ","Drikkevand","v021","Anlægsprojekter igangsat senest 1. marts 2016",122918,109905.4,null,"1. Marts 2016"]
["bjerringbro faellesvandvaerk amba  ","Drikkevand","v022","Anlægsprojekter igangsat senest 1. marts 2016",0,0,null,"1. Marts 2016"]
["bjoevlund vandvaerk is  ","Drikkevand","v023","Anlægsprojekter igangsat senest 1. marts 2016",0,0,null,"1. Marts 2016"]
["bluekolding spildevand as  ","Spildevand","s058","Anlægsprojekter igangsat senest 1. marts 2016",0,0,null,"1. Marts 2016"]
["fanoe vand as  ","Drikkevand","v045","Nye tilslutninger",30964,16487,null,"§11, stk. 4 (udvidelse)","Godkendt","Godtgjort at deres forsyningsområde eller vandmængder er udvidet, som følge af udvidelse af forsyningsområde eller håndterede vandmængder"]
["bluekolding vand as  ","Drikkevand","v038","Anlægsprojekter igangsat senest 1. marts 2016",0,0,null,"1. Marts 2016"]
["boerkop vandvaerk amba  ","Drikkevand","v037","Anlægsprojekter igangsat senest 1. marts 2016",0,0,null,"1. Marts 2016"]
["bogense forsyningsselskab  ","Drikkevand","v024","Anlægsprojekter igangsat senest 1. marts 2016",0,0,null,"1. Marts 2016"]
["bolderslev vandvaerk  ","Drikkevand","v025","Anlægsprojekter igangsat senest 1. marts 2016",0,0,null,"1. Marts 2016"]
["bording vandvaerk amba  ","Drikkevand","v026","Anlægsprojekter igangsat senest 1. marts 2016",0,0,null,"1. Marts 2016"]
["bornholms spildevand as  ","Spildevand","s010","Anlægsprojekter igangsat senest 1. marts 2016",0,0,null,"1. Marts 2016"]
["faxe spildevand as  ","Spildevand","s018","Byggemodninger og nye tilslutninger",97310,240779,null,"§11, stk. 4 (udvidelse)","Godkendt","Godtgjort at deres forsyningsområde eller vandmængder er udvidet, som følge af udvidelse af forsyningsområde eller håndterede vandmængder"]
["bornholms vand as  ","Drikkevand","v027","Anlægsprojekter igangsat senest 1. marts 2016",0,0,null,"1. Marts 2016"]
["borup vandvaerk  ","Drikkevand","v028","Anlægsprojekter igangsat senest 1. marts 2016",0,0,null,"1. Marts 2016"]
["braedstrup vandvaerk amba  ","Drikkevand","v034","Anlægsprojekter igangsat senest 1. marts 2016",0,0,null,"1. Marts 2016"]
["bramdrupdam vandvaerk amba  ","Drikkevand","v029","Anlægsprojekter igangsat senest 1. marts 2016",0,0,null,"1. Marts 2016"]
["brande vandvaerk amba  ","Drikkevand","v030","Anlægsprojekter igangsat senest 1. marts 2016",0,0,null,"1. Marts 2016"]
["branderup vandvaerk  ","Drikkevand","v031","Anlægsprojekter igangsat senest 1. marts 2016",0,0,null,"1. Marts 2016"]
["broager vandvaerk amba  ","Drikkevand","v033","Anlægsprojekter igangsat senest 1. marts 2016",0,0,null,"1. Marts 2016"]
["faxe vandforsyning as  ","Drikkevand","v047","Forøgelse af salg til storkunde",553030,0,null,"§11, stk. 4 (udvidelse)","Godkendt","Godtgjort at deres forsyningsområde eller vandmængder er udvidet, som følge af udvidelse af forsyningsområde eller håndterede vandmængder"]
["broenderslev spildevand as  ","Spildevand","s012","Anlægsprojekter igangsat senest 1. marts 2016",0,0,null,"1. Marts 2016"]
["broenderslev vand as  ","Drikkevand","v035","Anlægsprojekter igangsat senest 1. marts 2016",0,0,null,"1. Marts 2016"]
["broerup vandvaerk amba  ","Drikkevand","v036","Anlægsprojekter igangsat senest 1. marts 2016",0,0,null,"1. Marts 2016"]
["dianalund vandvaerk  ","Drikkevand","v039","Anlægsprojekter igangsat senest 1. marts 2016",0,0,null,"1. Marts 2016"]
["din forsyning spildevand as  ","Spildevand","s015","Anlægsprojekter igangsat senest 1. marts 2016",106531,1785110.853333333,65823,"1. Marts 2016"]
["faxe vandforsyning as  ","Drikkevand","v047","Nye forsyningsområder",479394,82039,null,"§11, stk. 4 (udvidelse)","Godkendt","Godtgjort at deres forsyningsområde eller vandmængder er udvidet, som følge af udvidelse af forsyningsområde eller håndterede vandmængder"]
["ffv spildevand as  ","Spildevand","s020","Byggemodninger og overtagelse af regnvandshåndtering",0,42610,null,"§11, stk. 4 (udvidelse)","Godkendt","Godtgjort at deres forsyningsområde eller vandmængder er udvidet, som følge af udvidelse af forsyningsområde eller håndterede vandmængder"]
["fors spildevand holbaek as  ","Spildevand","s047","Byggemodninger",0,81607,null,"§11, stk. 4 (udvidelse)","Godkendt","Godtgjort at deres forsyningsområde eller vandmængder er udvidet, som følge af udvidelse af forsyningsområde eller håndterede vandmængder"]
["fors spildevand roskilde as  ","Spildevand","s080","Milen",0,1585723,null,"§11 Stk. 1 (mål)","Godkendt","Der er tale om statsligt eller kommunalt fastsatmål, som overstiger væsentlighedsgrænsen og ligger uden for den ordinære driftsaktivitet."]
["forsyning helsingoer spildevand as  ","Spildevand","s021","Flytning af ledninger i 2018",0,166307,null,"§11, Stk. 2 (ledningsomlægning)","Godkendt","Flytningen af jeres forsynings ledninger er en følge af arealejers retmæssige råderet over arealet, og at jeres anlægsomkostninger har været nødvendige i forbindelse med flytningen."]
["din forsyning vand as  ","Drikkevand","v044","Anlægsprojekter igangsat senest 1. marts 2016",83149,1626383.6464000002,null,"1. Marts 2016"]
["fredericia spildevand og energi as  ","Spildevand","s023","Bystrategiprojekt",1391516,0,null,"§11 Stk. 1 (mål)","Godkendt","Der er tale om statsligt eller kommunalt fastsatmål, som overstiger væsentlighedsgrænsen og ligger uden for den ordinære driftsaktivitet."]
["fredericia spildevand og energi as  ","Spildevand","s023","Udvidelse af forsyningsområdet",121077,16025,null,"§11, stk. 4 (udvidelse)","Godkendt","Godtgjort at deres forsyningsområde eller vandmængder er udvidet, som følge af udvidelse af forsyningsområde eller håndterede vandmængder"]
["dronninglund vandvaerk amba  ","Drikkevand","v040","Anlægsprojekter igangsat senest 1. marts 2016",0,0,null,"1. Marts 2016"]
["egaa vandvaerk amba  ","Drikkevand","v042","Anlægsprojekter igangsat senest 1. marts 2016",0,0,null,"1. Marts 2016"]
["egedal spildevand as  ","Spildevand","s013","Anlægsprojekter igangsat senest 1. marts 2016",0,307844.33333333337,null,"1. Marts 2016"]
["frederiksberg kloak as  ","Spildevand","s024","2-partssekretariat",1834920,0,null,"§11 Stk. 1 (mål)","Godkendt","Der er tale om statsligt eller kommunalt fastsatmål, som overstiger væsentlighedsgrænsen og ligger uden for den ordinære driftsaktivitet."]
["egedal vandforsyning as  ","Drikkevand","v041","Anlægsprojekter igangsat senest 1. marts 2016",0,15439.3,null,"1. Marts 2016"]
["energi viborg vand as  ","Spildevand","s014","Anlægsprojekter igangsat senest 1. marts 2016",0,200782.76666666666,null,"1. Marts 2016"]
["frederiksberg vand as  ","Drikkevand",null,"GDPR",null,null,null,"§11 Stk. 1 (mål)","Afvist ","Der er således tale om et databeskyttelsesformål, hvilket ikke kan ligestilles et mål inden for miljø, sundhed, energieffektivitet, klimaindsatser, forsyningssikkerhed eller service."]
["frederiksberg vand as  ","Drikkevand","v055","ISO certificering",null,0,1636896,"§11 Stk. 1 (mål)","Godkendt","Der er tale om statsligt eller kommunalt fastsatmål, som overstiger væsentlighedsgrænsen og ligger uden for den ordinære driftsaktivitet."]
["frederikshavn vand as  ","Drikkevand","v057","Fjernaflæste målere",1221126,226714,null,"§11 Stk. 1 (mål)","Godkendt","Der er tale om statsligt eller kommunalt fastsatmål, som overstiger væsentlighedsgrænsen og ligger uden for den ordinære driftsaktivitet."]
["energi viborg vand as  ","Drikkevand","v043","Anlægsprojekter igangsat senest 1. marts 2016",0,22047.033333333333,null,"1. Marts 2016"]
["fanoe vand as  ","Spildevand","s016","Anlægsprojekter igangsat senest 1. marts 2016",0,0,null,"1. Marts 2016"]
["frederikshavn vand as  ","Drikkevand","v057","Byggemodninger",27215,24551,null,"§11, stk. 4 (udvidelse)","Godkendt","Godtgjort at deres forsyningsområde eller vandmængder er udvidet, som følge af udvidelse af forsyningsområde eller håndterede vandmængder"]
["fanoe vand as  ","Drikkevand","v045","Anlægsprojekter igangsat senest 1. marts 2016",0,0,null,"1. Marts 2016"]
["frederikshavn vand as  ","Drikkevand","v057","Overtagelse af Voerså Vandværk",150525,102754,86741,"§11, stk. 4 (udvidelse)","Godkendt","Godtgjort at deres forsyningsområde eller vandmængder er udvidet, som følge af udvidelse af forsyningsområde eller håndterede vandmængder"]
["farsoe vandvaerk is  ","Drikkevand","v046","Anlægsprojekter igangsat senest 1. marts 2016",0,0,null,"1. Marts 2016"]
["favrskov spildevand as  ","Spildevand","s017","Anlægsprojekter igangsat senest 1. marts 2016",0,0,null,"1. Marts 2016"]
["faxe spildevand as  ","Spildevand","s018","Anlægsprojekter igangsat senest 1. marts 2016",0,539591.04310000001,null,"1. Marts 2016"]
["frederikshavn vand as  ","Drikkevand","v057","Fornyelse af indvindingstilladelser",21150,0,634514,"§13, stk. 2 (periodevise)","Godkendt","Opfylder betingerne for tillæg."]
["faxe spildevandscenter as s019  kopi","Spildevand",null,"Slamafvanding på Haslev Renseanlæg",null,null,null,"§ 14 (Justering af den økonomiske ramme)","Afvist ","Opfylder ikke krav for tillæg."]
["faxe spildevandscenter as s019  kopi","Spildevand","oer2","Anlægsprojekter igangsat senest 1. marts 2016",0,0,null,"1. Marts 2016"]
["faxe vandforsyning as  ","Drikkevand","v047","Anlægsprojekter igangsat senest 1. marts 2016",0,90427.843533333333,null,"1. Marts 2016"]
["frederikssund spildevand as  ","Spildevand","s026","Byggemodninger, nykloakeringer og nye tilslutninger",144761,261570,null,"§11, stk. 4 (udvidelse)","Godkendt","Godtgjort at deres forsyningsområde eller vandmængder er udvidet, som følge af udvidelse af forsyningsområde eller håndterede vandmængder"]
["frederikssund spildevand as  ","Spildevand","s026","Oprensning af slambed 1 og 4",100426,0,301278,"§13, stk. 2 (periodevise)","Godkendt","Opfylder betingerne for tillæg."]
["faxe vandvaerk smba  ","Drikkevand","v048","Anlægsprojekter igangsat senest 1. marts 2016",0,0,null,"1. Marts 2016"]
["ffv spildevand as  ","Spildevand","s020","Anlægsprojekter igangsat senest 1. marts 2016",0,0,null,"1. Marts 2016"]
["frederikssund spildevand as  ","Spildevand","s026","Oprensning af slambed 2 og 3",95724,0,95724,"§13, stk. 2 (periodevise)","Godkendt","Opfylder betingerne for tillæg."]
["ffv spildevand as  ","Spildevand",null,"Udskiftning af brønddæksler",null,null,null,"§11, Stk. 2 (ledningsomlægning)","Afvist ","Opfylder ikke krav for tillæg."]
["ffv vand as  ","Drikkevand","v050","Anlægsprojekter igangsat senest 1. marts 2016",0,0,null,"1. Marts 2016"]
["fjerritslev vand amba  ","Drikkevand","v051","Anlægsprojekter igangsat senest 1. marts 2016",0,0,null,"1. Marts 2016"]
["fonden djurs vand  ","Drikkevand","v052","Anlægsprojekter igangsat senest 1. marts 2016",0,0,null,"1. Marts 2016"]
["fors spildevand holbaek as  ","Spildevand","s047","Anlægsprojekter igangsat senest 1. marts 2016",0,345102.20333333337,null,"1. Marts 2016"]
["frederikssund spildevand as  ","Spildevand","s026","Oprensning af slambed 5, 6 og 7",133699,0,null,"§13, stk. 2 (periodevise)","Godkendt","Opfylder betingerne for tillæg."]
["fors spildevand lejre as  ","Spildevand","s061","Anlægsprojekter igangsat senest 1. marts 2016",0,24395.786666666667,null,"1. Marts 2016"]
["fors spildevand roskilde as  ","Spildevand","s080","Anlægsprojekter igangsat senest 1. marts 2016",0,425835.99666666664,null,"1. Marts 2016"]
["frederikssund vand as  ","Drikkevand","v058","Påbud om håndtering af DMS forurening",1398386,0,null,"§11 Stk. 1 (mål)","Godkendt","Der er tale om statsligt eller kommunalt fastsatmål, som overstiger væsentlighedsgrænsen og ligger uden for den ordinære driftsaktivitet."]
["fors vand holbaek as  ","Drikkevand","v094","Anlægsprojekter igangsat senest 1. marts 2016",0,0,null,"1. Marts 2016"]
["fors vand lejre as  ","Drikkevand","v119","Anlægsprojekter igangsat senest 1. marts 2016",0,0,null,"1. Marts 2016"]
["fors vand roskilde as  ","Drikkevand","v155","Anlægsprojekter igangsat senest 1. marts 2016",0,139081.47,null,"1. Marts 2016"]
["forsyning helsingoer spildevand as  ","Spildevand","s021","Anlægsprojekter igangsat senest 1. marts 2016",0,0,null,"1. Marts 2016"]
["frederikssund vand as  ","Drikkevand","v058","Udvidelse af forsyningsområdet",49269,55963,null,"§11, stk. 4 (udvidelse)","Godkendt","Godtgjort at deres forsyningsområde eller vandmængder er udvidet, som følge af udvidelse af forsyningsområde eller håndterede vandmængder"]
["forsyning helsingoer vand as  ","Drikkevand","v053","Anlægsprojekter igangsat senest 1. marts 2016",0,0,null,"1. Marts 2016"]
["fredensborg spildevand as  ","Spildevand","s022","Anlægsprojekter igangsat senest 1. marts 2016",0,0,null,"1. Marts 2016"]
["fredensborg vand as  ","Drikkevand","v054","Anlægsprojekter igangsat senest 1. marts 2016",0,0,null,"1. Marts 2016"]
["fredericia spildevand og energi as  ","Spildevand","s023","Anlægsprojekter igangsat senest 1. marts 2016",0,9552.8666666666668,null,"1. Marts 2016"]
["furesoe spildevand as  ","Spildevand","s027","Stiketablering 2017 og 2018",72868,11269,null,"§11, stk. 4 (udvidelse)","Godkendt","Godtgjort at deres forsyningsområde eller vandmængder er udvidet, som følge af udvidelse af forsyningsområde eller håndterede vandmængder"]
["furesoe vandforsyning amba  ","Drikkevand","v059","Udvidelse af forsyningsområdet",0,24525,null,"§11, stk. 4 (udvidelse)","Godkendt","Godtgjort at deres forsyningsområde eller vandmængder er udvidet, som følge af udvidelse af forsyningsområde eller håndterede vandmængder"]
["frederiksberg kloak as  ","Spildevand","s024","Anlægsprojekter igangsat senest 1. marts 2016",0,0,null,"1. Marts 2016"]
["frederiksberg kloak as  ","Spildevand",null,"GDPR",null,null,null,"§11 Stk. 1 (mål)","Afvist ","Opfylder ikke krav for tillæg."]
["galten vandvaerk  ","Drikkevand","v060","Nr. Vissing",0,12893,null,"§11, stk. 4 (udvidelse)","Godkendt","Godtgjort at deres forsyningsområde eller vandmængder er udvidet, som følge af udvidelse af forsyningsområde eller håndterede vandmængder"]
["frederiksberg vand as  ","Drikkevand","v055","Anlægsprojekter igangsat senest 1. marts 2016",0,1335736.6643000005,null,"1. Marts 2016"]
["galten vandvaerk  ","Drikkevand","v060","Ny udstykning, Ellens Høj",0,3752,null,"§11, stk. 4 (udvidelse)","Godkendt","Godtgjort at deres forsyningsområde eller vandmængder er udvidet, som følge af udvidelse af forsyningsområde eller håndterede vandmængder"]
["gentofte spildevand as  ","Spildevand","s028","Vilhelmdalsløbet og Tuborg Syd",0,115261,null,"§11, Stk. 2 (ledningsomlægning)","Godkendt","Flytningen af jeres forsynings ledninger er en følge af arealejers retmæssige råderet over arealet, og at jeres anlægsomkostninger har været nødvendige i forbindelse med flytningen."]
["frederiksberg vandvaerk  ","Drikkevand","v056","Anlægsprojekter igangsat senest 1. marts 2016",0,0,null,"1. Marts 2016"]
["frederikshavn spildevand as  ","Spildevand","s025","Anlægsprojekter igangsat senest 1. marts 2016",0,247311.4942666667,null,"1. Marts 2016"]
["frederikshavn vand as  ","Drikkevand","v057","Anlægsprojekter igangsat senest 1. marts 2016",0,40515.306666666671,null,"1. Marts 2016"]
["gentofte vand as  ","Drikkevand","v061","Ny udstykning",0,5982,null,"§11, stk. 4 (udvidelse)","Godkendt","Godtgjort at deres forsyningsområde eller vandmængder er udvidet, som følge af udvidelse af forsyningsområde eller håndterede vandmængder"]
["gladsaxe spildevand as  ","Spildevand","s029","Vilhelmdalsløbet omlægges",0,116990,null,"§11, Stk. 2 (ledningsomlægning)","Godkendt","Flytningen af jeres forsynings ledninger er en følge af arealejers retmæssige råderet over arealet, og at jeres anlægsomkostninger har været nødvendige i forbindelse med flytningen."]
["gladsaxe spildevand as  ","Spildevand","s029","Nye tilslutninger",70114,0,null,"§11, stk. 4 (udvidelse)","Godkendt","Godtgjort at deres forsyningsområde eller vandmængder er udvidet, som følge af udvidelse af forsyningsområde eller håndterede vandmængder"]
["gladsaxe vand as  ","Drikkevand","v065","Lyngen og Pilegårdsvej",96396,4061,null,"§11, stk. 4 (udvidelse)","Godkendt","Godtgjort at deres forsyningsområde eller vandmængder er udvidet, som følge af udvidelse af forsyningsområde eller håndterede vandmængder"]
["frederikssund spildevand as  ","Spildevand","s026","Anlægsprojekter igangsat senest 1. marts 2016",0,447562.66666666663,null,"1. Marts 2016"]
["glostrup spildevand as  ","Spildevand","s030","Byggemodninger i 2018",520,3995,null,"§11, stk. 4 (udvidelse)","Godkendt","Godtgjort at deres forsyningsområde eller vandmængder er udvidet, som følge af udvidelse af forsyningsområde eller håndterede vandmængder"]
["glostrup spildevand as  ","Spildevand","s030","Oprensning af Bækrenden",40432,0,404318,"§13, stk. 2 (periodevise)","Godkendt","Opfylder betingerne for tillæg."]
["glostrup spildevand as  ","Spildevand","s030","Oprensning af Væveren",81138,0,811383,"§13, stk. 2 (periodevise)","Godkendt","Opfylder betingerne for tillæg."]
["glostrup vand as  ","Drikkevand","v067","Byggemodninger",662,776,null,"§11, stk. 4 (udvidelse)","Godkendt","Godtgjort at deres forsyningsområde eller vandmængder er udvidet, som følge af udvidelse af forsyningsområde eller håndterede vandmængder"]
["frederikssund vand as  ","Drikkevand","v058","Anlægsprojekter igangsat senest 1. marts 2016",0,64743.960000000006,null,"1. Marts 2016"]
["glostrup vand as  ","Drikkevand","v067","Justering af økonomisk ramme",579396,0,null,"§11, stk. 4 (udvidelse)","Godkendt","Godtgjort at deres forsyningsområde eller vandmængder er udvidet, som følge af udvidelse af forsyningsområde eller håndterede vandmængder"]
["greve spildevand as  ","Spildevand","s031","Byggemodninger",0,455245,null,"§11, stk. 4 (udvidelse)","Godkendt","Godtgjort at deres forsyningsområde eller vandmængder er udvidet, som følge af udvidelse af forsyningsområde eller håndterede vandmængder"]
["furesoe spildevand as  ","Spildevand","s027","Anlægsprojekter igangsat senest 1. marts 2016",0,341849.88,null,"1. Marts 2016"]
["greve vandvaerk amba  ","Drikkevand","v068","Udvidelse af forsyningsområdet",95592,19168,null,"§11, stk. 4 (udvidelse)","Godkendt","Godtgjort at deres forsyningsområde eller vandmængder er udvidet, som følge af udvidelse af forsyningsområde eller håndterede vandmængder"]
["furesoe vandforsyning amba  ","Drikkevand","v059","Anlægsprojekter igangsat senest 1. marts 2016",0,166111.55999999997,null,"1. Marts 2016"]
["grindsted renseanlaeg as  ","Spildevand","s112","Dupont, ny kunde",1288825,428015,null,"§11, stk. 4 (udvidelse)","Godkendt","Godtgjort at deres forsyningsområde eller vandmængder er udvidet, som følge af udvidelse af forsyningsområde eller håndterede vandmængder"]
["galten vandvaerk  ","Drikkevand","v060","Anlægsprojekter igangsat senest 1. marts 2016",0,0,null,"1. Marts 2016"]
["grindsted vandvaerk amba  ","Drikkevand","v069","Morsbøl - omlægning af vandledning",0,3113,null,"§11, Stk. 2 (ledningsomlægning)","Godkendt","Flytningen af jeres forsynings ledninger er en følge af arealejers retmæssige råderet over arealet, og at jeres anlægsomkostninger har været nødvendige i forbindelse med flytningen."]
["grindsted vandvaerk amba  ","Drikkevand","v069","Ny udstykning - Morsbøl Søvej",0,2386,null,"§11, stk. 4 (udvidelse)","Godkendt","Godtgjort at deres forsyningsområde eller vandmængder er udvidet, som følge af udvidelse af forsyningsområde eller håndterede vandmængder"]
["gentofte spildevand as  ","Spildevand","s028","Anlægsprojekter igangsat senest 1. marts 2016",0,117483,null,"1. Marts 2016"]
["haderslev spildevand as  ","Spildevand","s034","Byggemodninger, nye tilslutninger og ny-kloakeringer",106792,1076613,null,"§11, stk. 4 (udvidelse)","Godkendt","Godtgjort at deres forsyningsområde eller vandmængder er udvidet, som følge af udvidelse af forsyningsområde eller håndterede vandmængder"]
["gentofte vand as  ","Drikkevand","v061","Anlægsprojekter igangsat senest 1. marts 2016",0,0,null,"1. Marts 2016"]
["haderslev spildevand as  ","Spildevand",null,"Tilbagebetaling af vejbidrag",null,null,4952000,"§11, stk. 9 (vejbidrag)","Godkendt","Opfylder betingerne for tillæg."]
["gilleleje vandvaerk amba  ","Drikkevand","v062","Anlægsprojekter igangsat senest 1. marts 2016",0,0,null,"1. Marts 2016"]
["give vandvaerk amba  ","Drikkevand","v063","Anlægsprojekter igangsat senest 1. marts 2016",0,0,null,"1. Marts 2016"]
["gl hoerning vandvaerk  ","Drikkevand","v064","Anlægsprojekter igangsat senest 1. marts 2016",0,0,null,"1. Marts 2016"]
["gladsaxe spildevand as  ","Spildevand","s029","Anlægsprojekter igangsat senest 1. marts 2016",0,1159932.3899999999,null,"1. Marts 2016"]
["haderslev vand as  ","Drikkevand","v071","Omkørselsvej - Chr. X's Vej",0,47185,null,"§11, Stk. 2 (ledningsomlægning)","Godkendt","Flytningen af jeres forsynings ledninger er en følge af arealejers retmæssige råderet over arealet, og at jeres anlægsomkostninger har været nødvendige i forbindelse med flytningen."]
["haderslev vand as  ","Drikkevand","v071","Nye tilslutninger",33979,73488,null,"§11, stk. 4 (udvidelse)","Godkendt","Godtgjort at deres forsyningsområde eller vandmængder er udvidet, som følge af udvidelse af forsyningsområde eller håndterede vandmængder"]
["gladsaxe vand as  ","Drikkevand","v065","Anlægsprojekter igangsat senest 1. marts 2016",0,0,null,"1. Marts 2016"]
["hilleroed spildevand as  ","Spildevand","s039","Udvidelse af forsyningsområdet",144414,121535,null,"§11, stk. 4 (udvidelse)","Godkendt","Godtgjort at deres forsyningsområde eller vandmængder er udvidet, som følge af udvidelse af forsyningsområde eller håndterede vandmængder"]
["glamsbjerg vandvaerk  ","Drikkevand","v066","Anlægsprojekter igangsat senest 1. marts 2016",0,0,null,"1. Marts 2016"]
["glostrup spildevand as  ","Spildevand","s030","Anlægsprojekter igangsat senest 1. marts 2016",0,0,null,"1. Marts 2016"]
["hilleroed spildevand as  ","Spildevand","s039","Skærpede udlederkrav",662325,0,null,"§11 Stk. 1 (mål)","Godkendt","Opfylder betingerne for tillæg."]
["hilleroed vand as  ","Drikkevand","v081","Nye tilslutninger",128402,0,null,"§11, stk. 4 (udvidelse)","Godkendt","Godtgjort at deres forsyningsområde eller vandmængder er udvidet, som følge af udvidelse af forsyningsområde eller håndterede vandmængder"]
["hjallerup vandforsyning  ","Drikkevand","v083","Udvidelse af forsyningsområdet",59706,0,null,"§11, stk. 4 (udvidelse)","Godkendt","Godtgjort at deres forsyningsområde eller vandmængder er udvidet, som følge af udvidelse af forsyningsområde eller håndterede vandmængder"]
["glostrup vand as  ","Drikkevand","v067","Anlægsprojekter igangsat senest 1. marts 2016",0,1871930.4600000002,null,"1. Marts 2016"]
["hjoerring vandselskab as  ","Spildevand","s040","Byggemodninger og nyt tilslutninger",105486,268358,null,"§11, stk. 4 (udvidelse)","Godkendt","Godtgjort at deres forsyningsområde eller vandmængder er udvidet, som følge af udvidelse af forsyningsområde eller håndterede vandmængder"]
["hjoerring vandselskab as  ","Drikkevand","v085","Udvidelse af forsyningsområde",16698,25177,null,"§11, stk. 4 (udvidelse)","Godkendt","Godtgjort at deres forsyningsområde eller vandmængder er udvidet, som følge af udvidelse af forsyningsområde eller håndterede vandmængder"]
["gram vandvaerk  ","Drikkevand","v002","Anlægsprojekter igangsat senest 1. marts 2016",0,0,null,"1. Marts 2016"]
["greve spildevand as  ","Spildevand","s031","Anlægsprojekter igangsat senest 1. marts 2016",0,633532.29333333322,null,"1. Marts 2016"]
["hoeng vandvaerk amba  ","Drikkevand","v101","Nye tilslutninger",44201,5693,null,"§11, stk. 4 (udvidelse)","Godkendt","Godtgjort at deres forsyningsområde eller vandmængder er udvidet, som følge af udvidelse af forsyningsområde eller håndterede vandmængder"]
["greve vandvaerk amba  ","Drikkevand","v068","Anlægsprojekter igangsat senest 1. marts 2016",0,231568.50666666668,null,"1. Marts 2016"]
["hoersholm vand aps  ","Spildevand","s051","Nye tilslutninger",50411,0,null,"§11, stk. 4 (udvidelse)","Godkendt","Godtgjort at deres forsyningsområde eller vandmængder er udvidet, som følge af udvidelse af forsyningsområde eller håndterede vandmængder"]
["gribvand spildevand as  ","Spildevand","s032","Anlægsprojekter igangsat senest 1. marts 2016",0,1133630.7966666666,null,"1. Marts 2016"]
["gribvand spildevand as  ","Spildevand",null,"Myg bekæmpelse",null,null,null,"§13, stk. 2 (periodevise)","Afvist ","Opfylder ikke krav for tillæg."]
["gribvand spildevand as  ","Spildevand",null,"Ny persondatalovgivning",null,null,null,"§11 Stk. 1 (mål)","Afvist ","Opfylder ikke krav for tillæg."]
["grindsted renseanlaeg as  ","Spildevand","s112","Anlægsprojekter igangsat senest 1. marts 2016",0,697971.3,null,"1. Marts 2016"]
["hofor spildevand albertslund as  ","Spildevand","s041","Oprensning af Bassin Ndr Glostrup",8928,0,178550,"§13, stk. 2 (periodevise)","Godkendt","Opfylder betingerne for tillæg."]
["grindsted vandvaerk amba  ","Drikkevand","v069","Anlægsprojekter igangsat senest 1. marts 2016",0,0,null,"1. Marts 2016"]
["hofor spildevand albertslund as  ","Spildevand","s041","Oprensning af Rådhussøen",68170,0,1363405,"§13, stk. 2 (periodevise)","Godkendt","Opfylder betingerne for tillæg."]
["hofor spildevand herlev as  ","Spildevand","s043","Lindsberg Søn. Tvedevangen 120",13970,0,279398,"§13, stk. 2 (periodevise)","Godkendt","Opfylder betingerne for tillæg."]
["guldborgsund spildevand as  ","Spildevand","s033","Anlægsprojekter igangsat senest 1. marts 2016",0,1269655.9266666668,null,"1. Marts 2016"]
["guldborgsund vand as  ","Drikkevand","v070","Anlægsprojekter igangsat senest 1. marts 2016",0,0,null,"1. Marts 2016"]
["haderslev spildevand as  ","Spildevand","s034","Anlægsprojekter igangsat senest 1. marts 2016",0,70824.973333333328,null,"1. Marts 2016"]
["hofor spildevand herlev as  ","Spildevand","s043","Smedeholm 4 (Smededammen)",2502,0,50049,"§13, stk. 2 (periodevise)","Godkendt","Opfylder betingerne for tillæg."]
["hofor spildevand hvidovre as  ","Spildevand","s044","Avedøre Tværvej",0,110563,null,"§11, Stk. 2 (ledningsomlægning)","Godkendt","Flytningen af jeres forsynings ledninger er en følge af arealejers retmæssige råderet over arealet, og at jeres anlægsomkostninger har været nødvendige i forbindelse med flytningen."]
["haderslev vand as  ","Drikkevand","v071","Anlægsprojekter igangsat senest 1. marts 2016",0,0,null,"1. Marts 2016"]
["hofor spildevand hvidovre as  ","Spildevand","s044","Langkildevej, Hvidovre",0,6473,null,"§11, stk. 4 (udvidelse)","Godkendt","Godtgjort at deres forsyningsområde eller vandmængder er udvidet, som følge af udvidelse af forsyningsområde eller håndterede vandmængder"]
["hofor spildevand hvidovre as  ","Spildevand",null,"Tilbagebetaling af vejbidrag",null,null,4840926,"§11, stk. 9 (vejbidrag)","Godkendt","Opfylder betingerne for tillæg."]
["hadsten vandvaerk amba  ","Drikkevand","v072","Anlægsprojekter igangsat senest 1. marts 2016",0,0,null,"1. Marts 2016"]
["hadsund vandvaerk amba  ","Drikkevand","v073","Anlægsprojekter igangsat senest 1. marts 2016",0,0,null,"1. Marts 2016"]
["haestrup vandvaerk amba  ","Drikkevand","v100","Anlægsprojekter igangsat senest 1. marts 2016",0,0,null,"1. Marts 2016"]
["halsnaes spildevand as  ","Spildevand","s035","Anlægsprojekter igangsat senest 1. marts 2016",0,630214.10666666669,null,"1. Marts 2016"]
["halsnaes vand as  ","Drikkevand","v074","Anlægsprojekter igangsat senest 1. marts 2016",0,0,null,"1. Marts 2016"]
["halsnaes vandforsyning amba  ","Drikkevand","v075","Anlægsprojekter igangsat senest 1. marts 2016",0,0,null,"1. Marts 2016"]
["hammel vandvaerk amba  ","Drikkevand","v076","Anlægsprojekter igangsat senest 1. marts 2016",0,0,null,"1. Marts 2016"]
["hammerum vandvaerk  ","Drikkevand","v004","Anlægsprojekter igangsat senest 1. marts 2016",0,0,null,"1. Marts 2016"]
["hasselager kolt vandvaerk amba  ","Drikkevand","v077","Anlægsprojekter igangsat senest 1. marts 2016",0,79256.600000000006,null,"1. Marts 2016"]
["hedensted spildevand  ","Spildevand","s036","Anlægsprojekter igangsat senest 1. marts 2016",0,25338.061600000005,null,"1. Marts 2016"]
["hedensted vandvaerk  ","Drikkevand","v078","Anlægsprojekter igangsat senest 1. marts 2016",0,0,null,"1. Marts 2016"]
["helsinge vandvaerk s m b a  ","Drikkevand","v079","Anlægsprojekter igangsat senest 1. marts 2016",0,0,null,"1. Marts 2016"]
["herning rens as  ","Spildevand","s037","Anlægsprojekter igangsat senest 1. marts 2016",0,173303.12833333333,null,"1. Marts 2016"]
["herning vand as  ","Spildevand","s038","Anlægsprojekter igangsat senest 1. marts 2016",0,319205.32520000008,null,"1. Marts 2016"]
["herning vand as  ","Drikkevand","v080","Anlægsprojekter igangsat senest 1. marts 2016",0,18410.402000000002,null,"1. Marts 2016"]
["hilleroed spildevand as  ","Spildevand","s039","Anlægsprojekter igangsat senest 1. marts 2016",0,8355484.5458500022,null,"1. Marts 2016"]
["hilleroed spildevand as  ","Spildevand",null,"GDPR",null,null,null,"§11 Stk. 1 (mål)","Afvist ","Opfylder ikke krav for tillæg."]
["hofor spildevand hvidovre as  ","Spildevand","s044","Oprensning Østern. Landkanal",5967,0,119337,"§13, stk. 2 (periodevise)","Godkendt","Opfylder betingerne for tillæg."]
["hofor spildevand koebenhavn as  ","Spildevand","s045","Klimasikring",0,859049,null,"§11 Stk. 1 (mål)","Godkendt","Der er tale om statsligt eller kommunalt fastsatmål, som overstiger væsentlighedsgrænsen og ligger uden for den ordinære driftsaktivitet."]
["hilleroed vand as  ","Drikkevand","v081","Anlægsprojekter igangsat senest 1. marts 2016",0,971509.18581666681,null,"1. Marts 2016"]
["hofor spildevand koebenhavn as  ","Spildevand","s045","Masterplaner",4667264,0,null,"§11 Stk. 1 (mål)","Godkendt","Der er tale om statsligt eller kommunalt fastsatmål, som overstiger væsentlighedsgrænsen og ligger uden for den ordinære driftsaktivitet."]
["hinnerup vandvaerk amba  ","Drikkevand","v082","Anlægsprojekter igangsat senest 1. marts 2016",0,0,null,"1. Marts 2016"]
["hjallerup vandforsyning  ","Drikkevand","v083","Anlægsprojekter igangsat senest 1. marts 2016",0,0,null,"1. Marts 2016"]
["hofor spildevand koebenhavn as  ","Spildevand","s045","Vilhelmdalsløbet og Reventlowsgade",0,219974,null,"§11, Stk. 2 (ledningsomlægning)","Godkendt","Flytningen af jeres forsynings ledninger er en følge af arealejers retmæssige råderet over arealet, og at jeres anlægsomkostninger har været nødvendige i forbindelse med flytningen."]
["hjerting vandvaerk amba  ","Drikkevand","v084","Anlægsprojekter igangsat senest 1. marts 2016",0,0,null,"1. Marts 2016"]
["hjoerring vandselskab as  ","Spildevand","s040","Anlægsprojekter igangsat senest 1. marts 2016",0,1600533.9200000002,null,"1. Marts 2016"]
["hofor spildevand koebenhavn as  ","Spildevand","s045","Byggemodninger",0,299455,null,"§11, stk. 4 (udvidelse)","Godkendt","Godtgjort at deres forsyningsområde eller vandmængder er udvidet, som følge af udvidelse af forsyningsområde eller håndterede vandmængder"]
["hjoerring vandselskab as  ","Spildevand",null,"Håndtering af spildevandsslam og separatkloakeringer",null,null,null,"§11, stk. 4 (udvidelse)","Afvist ","Opfylder ikke krav for tillæg."]
["hjoerring vandselskab as  ","Drikkevand","v085","Anlægsprojekter igangsat senest 1. marts 2016",0,0,null,"1. Marts 2016"]
["hofor spildevand koebenhavn as  ","Spildevand",null,"Tilbagebetaling af vejbidrag",null,null,4524416,"§11, stk. 9 (vejbidrag)","Godkendt","Opfylder betingerne for tillæg."]
["hoeng vandvaerk amba  ","Drikkevand","v101","Anlægsprojekter igangsat senest 1. marts 2016",0,0,null,"1. Marts 2016"]
["hofor spildevand vallensbaek as  ","Spildevand","s098","Oprensning af Lykkekrogen",10381,0,207612,"§13, stk. 2 (periodevise)","Godkendt","Opfylder betingerne for tillæg."]
["hoersholm vand aps  ","Spildevand","s051","Anlægsprojekter igangsat senest 1. marts 2016",0,571024.2666666666,null,"1. Marts 2016"]
["hofor vand broenby as","Drikkevand",null,"Sektionering",null,null,null,"§11 Stk. 1 (mål)","Afvist ","Væsentlighedhedsgrænsen er ikke opfyldt."]
["hoersholm vand aps  ","Drikkevand","v102","Anlægsprojekter igangsat senest 1. marts 2016",0,0,null,"1. Marts 2016"]
["hofor spildevand albertslund as  ","Spildevand","s041","Anlægsprojekter igangsat senest 1. marts 2016",0,341005.56,null,"1. Marts 2016"]
["hofor vand hvidovre as  ","Drikkevand",null,"Øget kontrol grundet pesticider",null,null,null,"§11 Stk. 1 (mål)","Afvist ","Det er vores vurdering, at omkostningen ikke vedrører en aktivitet til opfyldelse af de nye krav i drikkevandsbekendtgørelsen (BEK nr. 1068 af 23. august 2018), men at omkostningen er en følge af den konstaterede forurening."]
["hofor vand hvidovre as  ","Drikkevand","v090","Avedøre Tværvej",0,5921,null,"§11, Stk. 2 (ledningsomlægning)","Godkendt","Flytningen af jeres forsynings ledninger er en følge af arealejers retmæssige råderet over arealet, og at jeres anlægsomkostninger har været nødvendige i forbindelse med flytningen."]
["hofor spildevand broendby as  ","Spildevand","s011","Anlægsprojekter igangsat senest 1. marts 2016",0,586171.93333333335,null,"1. Marts 2016"]
["hofor spildevand dragoer as  ","Spildevand","s042","Anlægsprojekter igangsat senest 1. marts 2016",0,587754.30000000005,null,"1. Marts 2016"]
["hofor spildevand herlev as  ","Spildevand","s043","Anlægsprojekter igangsat senest 1. marts 2016",0,385125.8,null,"1. Marts 2016"]
["hofor vand koebenhavn as  ","Drikkevand","v091","Gulddysseskov",500000,0,null,"§11 Stk. 1 (mål)","Godkendt","Der er tale om statsligt eller kommunalt fastsatmål, som overstiger væsentlighedsgrænsen og ligger uden for den ordinære driftsaktivitet."]
["hofor vand koebenhavn as  ","Drikkevand","v091","Flytning af forsyningsledninger",0,285576,null,"§11, Stk. 2 (ledningsomlægning)","Godkendt","Flytningen af jeres forsynings ledninger er en følge af arealejers retmæssige råderet over arealet, og at jeres anlægsomkostninger har været nødvendige i forbindelse med flytningen."]
["hofor vand koebenhavn as  ","Drikkevand","v091","Udvidelse af forsyningsområdet",0,54382,null,"§11, stk. 4 (udvidelse)","Godkendt","Godtgjort at deres forsyningsområde eller vandmængder er udvidet, som følge af udvidelse af forsyningsområde eller håndterede vandmængder"]
["hofor spildevand hvidovre as  ","Spildevand","s044","Anlægsprojekter igangsat senest 1. marts 2016",0,3378917.9466666668,null,"1. Marts 2016"]
["hofor vand koebenhavn as  ","Drikkevand","v091","Aktiviteter afledt af indvindingstilladelser",2028690,0,null,"§31, stk. 7 (vandindvinding)","Godkendt"]
["horsens vand as  ","Spildevand","s048","Separatkloakering",84279,1996507,null,"§11 Stk. 1 (mål)","Godkendt","Der er tale om statsligt eller kommunalt fastsatmål, som overstiger væsentlighedsgrænsen og ligger uden for den ordinære driftsaktivitet."]
["horsens vand as  ","Drikkevand","v097","Udvidelse af forsyningsområde",656329,234249,null,"§11, stk. 4 (udvidelse)","Godkendt","Godtgjort at deres forsyningsområde eller vandmængder er udvidet, som følge af udvidelse af forsyningsområde eller håndterede vandmængder"]
["horsens vand as  ","Spildevand","s048","Udvidelse af forsyningsområdet",1571554,2186793,null,"§11, stk. 4 (udvidelse)","Godkendt","Godtgjort at deres forsyningsområde eller vandmængder er udvidet, som følge af udvidelse af forsyningsområde eller håndterede vandmængder"]
["hofor spildevand koebenhavn as  ","Spildevand","s045","Anlægsprojekter igangsat senest 1. marts 2016",0,243723.74000000002,null,"1. Marts 2016"]
["htk vand as  ","Drikkevand","v098","Udvidelse af forsyningsområdet",235648,29478,null,"§11, stk. 4 (udvidelse)","Godkendt","Godtgjort at deres forsyningsområde eller vandmængder er udvidet, som følge af udvidelse af forsyningsområde eller håndterede vandmængder"]
["htk vand as  ","Drikkevand","v098","Justering af den økonomiske ramme",61500,7251,null,"§11 Stk. 1 (mål)","Godkendt","§ 14 - Der er vores vurdering, at § 14 netop skal bruges i situationer, hvor et selskab går fra at købe vand af et andet vandselskab, til selv af indvinde vand. Det er derfor vores vurdering, at jeres aktivitet er ændret væsentligt."]
["ikast brande spildevand as  ","Spildevand","s052","Byggemodninger i 2017 og 2018",141100,205535,null,"§11, stk. 4 (udvidelse)","Godkendt","Godtgjort at deres forsyningsområde eller vandmængder er udvidet, som følge af udvidelse af forsyningsområde eller håndterede vandmængder"]
["ikast brande spildevand as  ","Spildevand",null,"Tilbagebetaling af vejbidrag",null,null,1109313,"§11, stk. 9 (vejbidrag)","Godkendt","Opfylder betingerne for tillæg."]
["hofor spildevand koebenhavn as  ","Spildevand",null,"Erik Ballings Vej",320000,null,null,"§11 stk. 5 (medfinansiering)","Godkendt","Opfylder betingerne for tillæg."]
["Ishoej spildevand as  ","Spildevand",null,"Tilbagebetaling af vejbidrag",null,null,205800,"§11, stk. 9 (vejbidrag)","Godkendt","Opfylder betingerne for tillæg."]
["hofor spildevand roedovre as  ","Spildevand",null,"Jordbassin Klasse A",null,null,null,"§11 Stk. 1 (mål)","Afvist ","Overstiger ikke væsentlighedsgrænsen."]
["hofor spildevand roedovre as  ","Spildevand","s046","Anlægsprojekter igangsat senest 1. marts 2016",0,399410.74,null,"1. Marts 2016"]
["hofor spildevand vallensbaek as  ","Spildevand","s098","Anlægsprojekter igangsat senest 1. marts 2016",0,335316.8,null,"1. Marts 2016"]
["jyllinge vandvaerk amba  ","Drikkevand","v110","Gundsømagle nødvand",null,0,67868,"§11, stk. 4 (udvidelse)","Godkendt","Godtgjort at deres forsyningsområde eller vandmængder er udvidet, som følge af udvidelse af forsyningsområde eller håndterede vandmængder"]
["hofor vand albertslund as  ","Drikkevand","v086","Anlægsprojekter igangsat senest 1. marts 2016",0,368828.69999999995,null,"1. Marts 2016"]
["hofor vand broendby as  ","Drikkevand","v087","Anlægsprojekter igangsat senest 1. marts 2016",0,2671823.083333333,null,"1. Marts 2016"]
["hofor vand dragoer as  ","Drikkevand","v088","Anlægsprojekter igangsat senest 1. marts 2016",0,175999.4,null,"1. Marts 2016"]
["hofor vand herlev as  ","Drikkevand","v089","Anlægsprojekter igangsat senest 1. marts 2016",0,419361.8,null,"1. Marts 2016"]
["hofor vand hvidovre as  ","Drikkevand","v090","Anlægsprojekter igangsat senest 1. marts 2016",0,689353.9,null,"1. Marts 2016"]
["jyllinge vandvaerk amba  ","Drikkevand",null,"Beskyttelseszoner",null,null,null,"§31, stk. 7 (vandindvinding)","Afvist ","Da der ikke foretages afskrivninger på jord, kan der ikke ydes tillæg for omkostninger afholdt til køb af jord, hvilket også fremgår af forhåndsgodkendelsen."]
["jyllinge vandvaerk amba  ","Drikkevand","v110","Bundfældningsbassin",30228,0,null,"§31, stk. 7 (vandindvinding)","Godkendt","Opfylder betingerne for tillæg."]
["hofor vand koebenhavn as  ","Drikkevand","v091","Anlægsprojekter igangsat senest 1. marts 2016",0,1529567.7,null,"1. Marts 2016"]
["kalundborg overfladevand as  ","Drikkevand","v111","Filteranlæg, åbne filtre, dobbelt filtrering, Mek./EL",null,0,616367,"§11 Stk. 1 (mål)","Godkendt"]
["kalundborg overfladevand as  ","Drikkevand","v111","Rentvandsbeholder  element",null,0,419924,"§11 Stk. 1 (mål)","Godkendt"]
["kalundborg overfladevand as  ","Drikkevand","v111","Skyllevandsbehandling, inkl. UV-filter mv., Mek./EL",null,0,616368,"§11 Stk. 1 (mål)","Godkendt"]
["kalundborg overfladevand as  ","Drikkevand","v111","SRO-anlæg, vandværk",null,0,213518,"§11 Stk. 1 (mål)","Godkendt"]
["hofor vand roedovre as  ","Drikkevand","v092","Anlægsprojekter igangsat senest 1. marts 2016",0,571318.4,null,"1. Marts 2016"]
["hofor vand vallensbaek as  ","Drikkevand","v093","Anlægsprojekter igangsat senest 1. marts 2016",0,93325.6,null,"1. Marts 2016"]
["hornbaek vandvaerk amba  ","Drikkevand","v095","Anlægsprojekter igangsat senest 1. marts 2016",0,0,null,"1. Marts 2016"]
["hornslet vandvaerk amba  ","Drikkevand","v096","Anlægsprojekter igangsat senest 1. marts 2016",0,0,null,"1. Marts 2016"]
["horsens vand as  ","Spildevand","s048","Anlægsprojekter igangsat senest 1. marts 2016",0,139140.68606666665,null,"1. Marts 2016"]
["kalundborg spildevandsanlaeg as  ","Spildevand","s056","Stejlhøj",0,47150,null,"§11, stk. 4 (udvidelse)","Godkendt","Godtgjort at deres forsyningsområde eller vandmængder er udvidet, som følge af udvidelse af forsyningsområde eller håndterede vandmængder"]
["kalundborg spildevandsanlaeg as  ","Spildevand","s056","Oprensning af bassiner",14916,0,1491626,"§13, stk. 2 (periodevise)","Godkendt","Opfylder betingerne for tillæg."]
["horsens vand as  ","Drikkevand","v097","Anlægsprojekter igangsat senest 1. marts 2016",0,204668.06466666667,null,"1. Marts 2016"]
["kerteminde forsyning vand as  ","Drikkevand","v113","Nye regler for kvalitetskrav af vand",280463,74938,null,"§11 Stk. 1 (mål)","Godkendt","Der er tale om statsligt eller kommunalt fastsatmål, som overstiger væsentlighedsgrænsen og ligger uden for den ordinære driftsaktivitet."]
["htk kloak as  ","Spildevand","s049","Anlægsprojekter igangsat senest 1. marts 2016",0,0,null,"1. Marts 2016"]
["htk vand as  ","Drikkevand","v098","Anlægsprojekter igangsat senest 1. marts 2016",4200,19316.440000000002,null,"1. Marts 2016"]
["koege afloeb as  ","Spildevand","s059","Byggemodninger",0,374235,null,"§11, stk. 4 (udvidelse)","Godkendt","Godtgjort at deres forsyningsområde eller vandmængder er udvidet, som følge af udvidelse af forsyningsområde eller håndterede vandmængder"]
["koege vand as  ","Drikkevand","v116","Køge Idrætspark og Søsvinget",0,61573,null,"§11, stk. 4 (udvidelse)","Godkendt","Godtgjort at deres forsyningsområde eller vandmængder er udvidet, som følge af udvidelse af forsyningsområde eller håndterede vandmængder"]
["hurup vandvaerk  ","Drikkevand","v099","Anlægsprojekter igangsat senest 1. marts 2016",0,7000,null,"1. Marts 2016"]
["ikast brande spildevand as  ","Spildevand","s052","Anlægsprojekter igangsat senest 1. marts 2016",0,75364.793333333335,null,"1. Marts 2016"]
["ikast brande spildevand as  ","Spildevand",null,"Uhre og Hampen samt Pårup og Myl. Erichsens Vej",null,null,null,"§11 Stk. 1 (mål)","Afvist ","Overstiger ikke væsentlighedsgrænsen."]
["loegten skoedstrup vandvaerk amba  ","Drikkevand","v129","Etablering af undersøgelsesboring (Vosnæs Skov)",0,92620,null,"§31, stk. 7 (vandindvinding)","Godkendt","Opfylder betingerne for tillæg."]
["ikast vandforsyning amba  ","Drikkevand","v106","Anlægsprojekter igangsat senest 1. marts 2016",0,0,null,"1. Marts 2016"]
["ishoej spildevand as  ","Spildevand","s053","Anlægsprojekter igangsat senest 1. marts 2016",0,100346.49333333333,null,"1. Marts 2016"]
["ishoej vand as  ","Drikkevand","v107","Anlægsprojekter igangsat senest 1. marts 2016",0,102107.04000000001,null,"1. Marts 2016"]
["jammerbugt forsyning as  ","Spildevand","s054","Anlægsprojekter igangsat senest 1. marts 2016",0,0,null,"1. Marts 2016"]
["jammerbugt forsyning as  ","Drikkevand","v108","Anlægsprojekter igangsat senest 1. marts 2016",0,0,null,"1. Marts 2016"]
["juelsminde vand  ","Drikkevand","v109","Anlægsprojekter igangsat senest 1. marts 2016",0,0,null,"1. Marts 2016"]
["jyllinge vandvaerk amba  ","Drikkevand","v110","Anlægsprojekter igangsat senest 1. marts 2016",0,94825.2,null,"1. Marts 2016"]
["loekken vandvaerk  ","Drikkevand","v130","Udtagning af ekstra analyser",77763,0,null,"§11 Stk. 1 (mål)","Godkendt","Der er tale om statsligt eller kommunalt fastsatmål, som overstiger væsentlighedsgrænsen og ligger uden for den ordinære driftsaktivitet."]
["lolland vand as  ","Drikkevand","v125","Afkørsel 48",0,7509,null,"§11, Stk. 2 (ledningsomlægning)","Godkendt","Flytningen af jeres forsynings ledninger er en følge af arealejers retmæssige råderet over arealet, og at jeres anlægsomkostninger har været nødvendige i forbindelse med flytningen."]
["lyngby taarbaek spildevand as  ","Spildevand","s064","Udvidelse af forsyningsområdet",15782,139669,null,"§11, stk. 4 (udvidelse)","Godkendt","Godtgjort at deres forsyningsområde eller vandmængder er udvidet, som følge af udvidelse af forsyningsområde eller håndterede vandmængder"]
["lyngby taarbaek vand as  ","Drikkevand","v126","Omlægning af ledninger",0,12671,null,"§11, Stk. 2 (ledningsomlægning)","Godkendt","Flytningen af jeres forsynings ledninger er en følge af arealejers retmæssige råderet over arealet, og at jeres anlægsomkostninger har været nødvendige i forbindelse med flytningen."]
["lyngby taarbaek vand as  ","Drikkevand","v126","Stikledninger for 2017 og 2018",62178,49713,null,"§11, stk. 4 (udvidelse)","Godkendt","Godtgjort at deres forsyningsområde eller vandmængder er udvidet, som følge af udvidelse af forsyningsområde eller håndterede vandmængder"]
["kalundborg overfladevand as  ","Drikkevand","v111","Anlægsprojekter igangsat senest 1. marts 2016",0,4076336.9919164861,null,"1. Marts 2016"]
["middelfart spildevand as  ","Spildevand","s067","Byggemodninger",414325,290585,null,"§11, stk. 4 (udvidelse)","Godkendt","Godtgjort at deres forsyningsområde eller vandmængder er udvidet, som følge af udvidelse af forsyningsområde eller håndterede vandmængder"]
["maaloev rens as  ","Spildevand","s070","Garantiprovision",0,4105,25027,"§ 14 (Justering af den økonomiske ramme)","Godkendt","§ 14 - Hvis kommunen havde opkrævet årligt, ville de finansielle omkostninger i jeres grundlag have været højere, fordi de ville have indeholdt omkostninger til garantiprovision."]
["nfs spildevand as  ","Spildevand","s071","Håndteret vandmængde",80035,0,null,"§11, stk. 4 (udvidelse)","Godkendt","Godtgjort at deres forsyningsområde eller vandmængder er udvidet, som følge af udvidelse af forsyningsområde eller håndterede vandmængder"]
["nfs spildevand as  ","Spildevand","s071","Udvidelse af område, Sommerbyen",67776,4928,null,"§11, stk. 4 (udvidelse)","Godkendt","Godtgjort at deres forsyningsområde eller vandmængder er udvidet, som følge af udvidelse af forsyningsområde eller håndterede vandmængder"]
["kalundborg renseanlaeg as  ","Spildevand","s055","Anlægsprojekter igangsat senest 1. marts 2016",0,0,null,"1. Marts 2016"]
["kalundborg spildevandsanlaeg as  ","Spildevand","s056","Anlægsprojekter igangsat senest 1. marts 2016",0,237985.13116666663,null,"1. Marts 2016"]
["nk spildevand as  ","Spildevand","s072","Afskærende ledninger",0,564758,null,"§11 Stk. 1 (mål)","Godkendt","Der er tale om statsligt eller kommunalt fastsatmål, som overstiger væsentlighedsgrænsen og ligger uden for den ordinære driftsaktivitet."]
["nk spildevand as  ","Spildevand","s072","Banedanmarks Femern Bælt-projekt",0,11474,null,"§11, Stk. 2 (ledningsomlægning)","Godkendt","Flytningen af jeres forsynings ledninger er en følge af arealejers retmæssige råderet over arealet, og at jeres anlægsomkostninger har været nødvendige i forbindelse med flytningen."]
["kalundborg vandforsyning as  ","Drikkevand","v112","Anlægsprojekter igangsat senest 1. marts 2016",0,235587.15393333332,null,"1. Marts 2016"]
["kerteminde forsyning spildevand as  ","Spildevand","s057","Anlægsprojekter igangsat senest 1. marts 2016",0,0,null,"1. Marts 2016"]
["kerteminde forsyning vand as  ","Drikkevand","v113","Anlægsprojekter igangsat senest 1. marts 2016",0,0,null,"1. Marts 2016"]
["nk spildevand as  ","Spildevand","s072","Byggemodninger",60647,107467,null,"§11, stk. 4 (udvidelse)","Godkendt","Godtgjort at deres forsyningsområde eller vandmængder er udvidet, som følge af udvidelse af forsyningsområde eller håndterede vandmængder"]
["klemensker vandvaerk  ","Drikkevand","v114","Anlægsprojekter igangsat senest 1. marts 2016",0,0,null,"1. Marts 2016"]
["klinting vandvaerk  ","Drikkevand","v006","Anlægsprojekter igangsat senest 1. marts 2016",0,0,null,"1. Marts 2016"]
["koege afloeb as  ","Spildevand","s059","Anlægsprojekter igangsat senest 1. marts 2016",0,1679478.4633333334,null,"1. Marts 2016"]
["nk spildevand as  ","Spildevand",null,"Tilbagebetaling af vejbidrag",null,null,1810197,"§11, stk. 9 (vejbidrag)","Godkendt","Opfylder betingerne for tillæg."]
["koege vand as  ","Drikkevand","v116","Anlægsprojekter igangsat senest 1. marts 2016",0,1944393.4883333333,null,"1. Marts 2016"]
["nk vand as  ","Drikkevand",null,"Sikring af boringer på land for oversvømmelse",null,null,null,"§11 Stk. 1 (mål)","Afvist ","Væsentlighedhedsgrænsen er ikke opfyldt."]
["krusaa vandvaerk  ","Drikkevand","v224","Anlægsprojekter igangsat senest 1. marts 2016",0,0,null,"1. Marts 2016"]
["kvarmloese toelloese vandvaerk  ","Drikkevand","v115","Anlægsprojekter igangsat senest 1. marts 2016",0,0,null,"1. Marts 2016"]
["laesoe vand as  ","Spildevand","s065","Anlægsprojekter igangsat senest 1. marts 2016",0,0,null,"1. Marts 2016"]
["laesoe vand as  ","Drikkevand","v127","Anlægsprojekter igangsat senest 1. marts 2016",0,0,null,"1. Marts 2016"]
["langeland spildevand aps  ","Spildevand","s060","Anlægsprojekter igangsat senest 1. marts 2016",0,55511.519999999997,null,"1. Marts 2016"]
["langeland vand aps  ","Drikkevand","v117","Anlægsprojekter igangsat senest 1. marts 2016",0,17499.739999999998,null,"1. Marts 2016"]
["langeskov vandvaerk  ","Drikkevand","v118","Anlægsprojekter igangsat senest 1. marts 2016",0,0,null,"1. Marts 2016"]
["lemvig vand spildevand as  ","Spildevand","s062","Anlægsprojekter igangsat senest 1. marts 2016",0,164846.56,null,"1. Marts 2016"]
["lemvig vand spildevand as  ","Drikkevand","v120","Anlægsprojekter igangsat senest 1. marts 2016",0,156664.73166666666,null,"1. Marts 2016"]
["lille naestved vandvaerk  ","Drikkevand","v121","Anlægsprojekter igangsat senest 1. marts 2016",0,0,null,"1. Marts 2016"]
["lille skensved vandvaerk amba  ","Drikkevand","v122","Anlægsprojekter igangsat senest 1. marts 2016",0,0,null,"1. Marts 2016"]
["lilleroed andelsvandvaerk amba  ","Drikkevand","v123","Anlægsprojekter igangsat senest 1. marts 2016",0,0,null,"1. Marts 2016"]
["lindholm vandvaerk amba  ","Drikkevand","v124","Anlægsprojekter igangsat senest 1. marts 2016",0,0,null,"1. Marts 2016"]
["loegstoer vand amba  ","Drikkevand","v128","Anlægsprojekter igangsat senest 1. marts 2016",0,0,null,"1. Marts 2016"]
["loegten skoedstrup vandvaerk amba  ","Drikkevand","v129","Anlægsprojekter igangsat senest 1. marts 2016",0,0,null,"1. Marts 2016"]
["nk vand as  ","Drikkevand","v137","Flytning af forsyningsledninger",0,5310,140452,"§11, Stk. 2 (ledningsomlægning)","Godkendt","Flytningen af jeres forsynings ledninger er en følge af arealejers retmæssige råderet over arealet, og at jeres anlægsomkostninger har været nødvendige i forbindelse med flytningen."]
["loekken vandvaerk  ","Drikkevand","v130","Anlægsprojekter igangsat senest 1. marts 2016",0,0,null,"1. Marts 2016"]
["nk vand as  ","Drikkevand","v137","Byggemodninger",53023,13132,null,"§11, stk. 4 (udvidelse)","Godkendt","Godtgjort at deres forsyningsområde eller vandmængder er udvidet, som følge af udvidelse af forsyningsområde eller håndterede vandmængder"]
["lolland spildevand as  ","Spildevand","s063","Anlægsprojekter igangsat senest 1. marts 2016",0,1141575.0733333332,null,"1. Marts 2016"]
["lolland vand as  ","Drikkevand","v125","Anlægsprojekter igangsat senest 1. marts 2016",0,126142.84,null,"1. Marts 2016"]
["noerre alslev vandvaerk  ","Drikkevand","v143","Baneændring - Smedevej",0,3983,null,"§11, Stk. 2 (ledningsomlægning)","Godkendt","Flytningen af jeres forsynings ledninger er en følge af arealejers retmæssige råderet over arealet, og at jeres anlægsomkostninger har været nødvendige i forbindelse med flytningen."]
["lyngby taarbaek spildevand as  ","Spildevand","s064","Anlægsprojekter igangsat senest 1. marts 2016",0,689827.09566666675,null,"1. Marts 2016"]
["noerre alslev vandvaerk  ","Drikkevand","v143","Vandforbrug i nyt statsfængsel",34332,0,null,"§11, stk. 4 (udvidelse)","Godkendt","Godtgjort at deres forsyningsområde eller vandmængder er udvidet, som følge af udvidelse af forsyningsområde eller håndterede vandmængder"]
["lyngby taarbaek vand as  ","Drikkevand","v126","Anlægsprojekter igangsat senest 1. marts 2016",0,518330.46750000003,null,"1. Marts 2016"]
["nyhuse vandvaerk amba  ","Drikkevand","v141","Nye tilslutninger",3119,770,null,"§11, stk. 4 (udvidelse)","Godkendt","Godtgjort at deres forsyningsområde eller vandmængder er udvidet, som følge af udvidelse af forsyningsområde eller håndterede vandmængder"]
["odder spildevand as  ","Spildevand","s073","Udvidelse af forsyningsområdet",11345,15829,null,"§11, stk. 4 (udvidelse)","Godkendt","Godtgjort at deres forsyningsområde eller vandmængder er udvidet, som følge af udvidelse af forsyningsområde eller håndterede vandmængder"]
["maaloev rens as  ","Spildevand","s070","Anlægsprojekter igangsat senest 1. marts 2016",0,588213.92050000001,null,"1. Marts 2016"]
["odder vandvaerk amba  ","Drikkevand",null,"Ekstra drikkevandsanalyse",null,null,null,"§11 Stk. 1 (mål)","Afvist ","Væsentlighedhedsgrænsen er ikke opfyldt."]
["mariager vand amba  ","Drikkevand","v131","Anlægsprojekter igangsat senest 1. marts 2016",0,0,null,"1. Marts 2016"]
["mariagerfjord vand as  ","Spildevand","s066","Anlægsprojekter igangsat senest 1. marts 2016",0,471892.96333333332,null,"1. Marts 2016"]
["mariagerfjord vand as  ","Drikkevand","v132","Anlægsprojekter igangsat senest 1. marts 2016",0,0,null,"1. Marts 2016"]
["marielyst vandvaerk  ","Drikkevand","v007","Anlægsprojekter igangsat senest 1. marts 2016",0,0,null,"1. Marts 2016"]
["middelfart spildevand as  ","Spildevand","s067","Anlægsprojekter igangsat senest 1. marts 2016",0,1085939.4533333334,null,"1. Marts 2016"]
["odder vandvaerk amba  ","Drikkevand","v144","Udvidelse af forsyningsområdet",0,23228,null,"§11, stk. 4 (udvidelse)","Godkendt","Godtgjort at deres forsyningsområde eller vandmængder er udvidet, som følge af udvidelse af forsyningsområde eller håndterede vandmængder"]
["midtfyns vandforsyning amba  ","Drikkevand","v133","Anlægsprojekter igangsat senest 1. marts 2016",0,0,null,"1. Marts 2016"]
["moelleaavaerket as  ","Spildevand","s069","Anlægsprojekter igangsat senest 1. marts 2016",0,2157503.2056666669,null,"1. Marts 2016"]
["moerkoev vandvaerk  ","Drikkevand","v135","Anlægsprojekter igangsat senest 1. marts 2016",0,0,null,"1. Marts 2016"]
["morsoe forsyning as  ","Spildevand","s068","Anlægsprojekter igangsat senest 1. marts 2016",0,274730.45999999996,null,"1. Marts 2016"]
["morsoe forsyning as  ","Drikkevand","v134","Anlægsprojekter igangsat senest 1. marts 2016",0,0,null,"1. Marts 2016"]
["naesby vandvaerk  ","Drikkevand","v142","Anlægsprojekter igangsat senest 1. marts 2016",0,0,null,"1. Marts 2016"]
["nfs spildevand as  ","Spildevand","s071","Anlægsprojekter igangsat senest 1. marts 2016",0,155672.95986666667,null,"1. Marts 2016"]
["odsherred spildevand as  ","Spildevand","s074","Kloakering af Vig Lyng og Lille Egebjerg",0,2107759,null,"§11, stk. 4 (udvidelse)","Godkendt","Godtgjort at deres forsyningsområde eller vandmængder er udvidet, som følge af udvidelse af forsyningsområde eller håndterede vandmængder"]
["odsherred spildevand as  ","Spildevand","s074","Oprensning af regnvandsbassiner",194305,0,2914570,"§13, stk. 2 (periodevise)","Godkendt","Opfylder betingerne for tillæg."]
["nfs vand as  ","Drikkevand","v136","Anlægsprojekter igangsat senest 1. marts 2016",0,0,null,"1. Marts 2016"]
["nk spildevand as  ","Spildevand","s072","Anlægsprojekter igangsat senest 1. marts 2016",0,0,null,"1. Marts 2016"]
["ringkoebing skjern spildevand as ","Spildevand",null,"Fjernaflæste målere",null,null,null,"§11 Stk. 1 (mål)","Afvist ","Væsentlighedhedsgrænsen er ikke opfyldt."]
["ringkoebing skjern spildevand as  ","Spildevand","s077","TV inspektion af historiske ledninger",612390,0,null,"§11 Stk. 1 (mål)","Godkendt","Der er tale om statsligt eller kommunalt fastsatmål, som overstiger væsentlighedsgrænsen og ligger uden for den ordinære driftsaktivitet."]
["ringkoebing skjern spildevand as  ","Spildevand","s077","Udvidelse af forsyningsområdet",29587,260153,null,"§11, stk. 4 (udvidelse)","Godkendt","Godtgjort at deres forsyningsområde eller vandmængder er udvidet, som følge af udvidelse af forsyningsområde eller håndterede vandmængder"]
["ringkoebing skjern vand as  ","Drikkevand","v153","Grundvandsbeskyttelse",null,0,399075,"§11 Stk. 1 (mål)","Godkendt","Der er tale om statsligt eller kommunalt fastsatmål, som overstiger væsentlighedsgrænsen og ligger uden for den ordinære driftsaktivitet."]
["nk vand as  ","Drikkevand","v137","Anlægsprojekter igangsat senest 1. marts 2016",0,212111.19700000001,null,"1. Marts 2016"]
["ringkoebing skjern vand as  ","Drikkevand","v153","Registrering af historiske ledninger",109373,0,null,"§11 Stk. 1 (mål)","Godkendt","Der er tale om statsligt eller kommunalt fastsatmål, som overstiger væsentlighedsgrænsen og ligger uden for den ordinære driftsaktivitet."]
["ringsted spildevand as  ","Spildevand","s079","Rottebekæmpelse",1108924,194724,null,"§11 Stk. 1 (mål)","Godkendt","Der er tale om statsligt eller kommunalt fastsatmål, som overstiger væsentlighedsgrænsen og ligger uden for den ordinære driftsaktivitet."]
["ringsted spildevand as  ","Spildevand","s079","Separatkloakering 2017 og 2018",0,1027314,null,"§11 Stk. 1 (mål)","Godkendt","Der er tale om statsligt eller kommunalt fastsatmål, som overstiger væsentlighedsgrænsen og ligger uden for den ordinære driftsaktivitet."]
["noerre alslev vandvaerk  ","Drikkevand","v143","Anlægsprojekter igangsat senest 1. marts 2016",0,0,null,"1. Marts 2016"]
["ringsted spildevand as  ","Spildevand","s079","Byudvikling og nykloakering",0,1290596,null,"§11, stk. 4 (udvidelse)","Godkendt","Godtgjort at deres forsyningsområde eller vandmængder er udvidet, som følge af udvidelse af forsyningsområde eller håndterede vandmængder"]
["ringsted vand as  ","Drikkevand","v154","Byggemodninger",131783,21380,null,"§11, stk. 4 (udvidelse)","Godkendt","Godtgjort at deres forsyningsområde eller vandmængder er udvidet, som følge af udvidelse af forsyningsområde eller håndterede vandmængder"]
["nordenskov vandvaerk  ","Drikkevand","v138","Anlægsprojekter igangsat senest 1. marts 2016",0,0,null,"1. Marts 2016"]
["nr uttrup vandvaerk amba  ","Drikkevand","v139","Anlægsprojekter igangsat senest 1. marts 2016",0,0,null,"1. Marts 2016"]
["nyhuse vandvaerk amba  ","Drikkevand","v141","Anlægsprojekter igangsat senest 1. marts 2016",0,0,null,"1. Marts 2016"]
["ringsted vand as  ","Drikkevand",null,"Etablering af målerinstrumenter",null,null,null,"§13, stk. 2 (periodevise)","Afvist ","Vi har lagt vægt på, at der er tale om almindelig løbende opdatering og fornyelse af jeres systemer, efterhånden som disse bliver forældet."]
["odder spildevand as  ","Spildevand","s073","Anlægsprojekter igangsat senest 1. marts 2016",0,181356.12133333334,null,"1. Marts 2016"]
["ringsted vand as  ","Drikkevand",null,"Indvendig coating af rentvandsbeholder",null,null,null,"§13, stk. 2 (periodevise)","Afvist ","Vi har lagt vægt på, at der er tale om omkostninger til reparation af beholderen som følge af revnedannelser og ikke til selve rensningen og inspektionen af beholderen, som I foretager hvert 5. år."]
["odder vandvaerk amba  ","Drikkevand","v144","Anlægsprojekter igangsat senest 1. marts 2016",0,312519.3666666667,null,"1. Marts 2016"]
["ringsted vand as  ","Drikkevand",null,"Nedrivning gl. bygværk",null,null,null,"§13, stk. 2 (periodevise)","Afvist ","På baggrund af jeres oplysninger, er det vores vurdering, at der ikke er tale om en periodevis driftsomkostning, da der er tale om en engangsomkostning."]
["ringsted vand as  ","Drikkevand",null,"Undersøgelse af hydrogeologisk påvirkning",null,null,null,"§13, stk. 2 (periodevise)","Afvist ","Vi har lagt vægt på, at der er tale om almindelig driftsomkostninger, som alle vandselskaber i større eller mindre omfang har."]
["odsherred spildevand as  ","Spildevand","s074","Anlægsprojekter igangsat senest 1. marts 2016",0,308666.81333333335,null,"1. Marts 2016"]
["rudersdal forsyning as  ","Drikkevand","v156","Byggemodning Langhaven og nye tilslutninger",127543,3193,null,"§11, stk. 4 (udvidelse)","Godkendt","Godtgjort at deres forsyningsområde eller vandmængder er udvidet, som følge af udvidelse af forsyningsområde eller håndterede vandmængder"]
["rudersdal forsyning as  ","Spildevand","s081","Byggemodninger",334225,61724,null,"§11, stk. 4 (udvidelse)","Godkendt","Godtgjort at deres forsyningsområde eller vandmængder er udvidet, som følge af udvidelse af forsyningsområde eller håndterede vandmængder"]
["odsherred vand as  ","Drikkevand","v145","Anlægsprojekter igangsat senest 1. marts 2016",0,0,null,"1. Marts 2016"]
["oelgod vandvaerk amba  ","Drikkevand","v215","Anlægsprojekter igangsat senest 1. marts 2016",0,0,null,"1. Marts 2016"]
["oerslev vandvaerk amba  ","Drikkevand","v105","Anlægsprojekter igangsat senest 1. marts 2016",0,0,null,"1. Marts 2016"]
["oestvendsyssel raavandsforsyningsselskab amba  ","Drikkevand","v216","Anlægsprojekter igangsat senest 1. marts 2016",0,0,null,"1. Marts 2016"]
["oksby og ho vandvaerk amba  ","Drikkevand","v148","Anlægsprojekter igangsat senest 1. marts 2016",0,0,null,"1. Marts 2016"]
["otterup vandvaerk  ","Drikkevand","v146","Anlægsprojekter igangsat senest 1. marts 2016",0,0,null,"1. Marts 2016"]
["outrup vandvaerk amba  ","Drikkevand","v147","Anlægsprojekter igangsat senest 1. marts 2016",0,0,null,"1. Marts 2016"]
["padborg vandvaerk amba  ","Drikkevand","v149","Anlægsprojekter igangsat senest 1. marts 2016",0,0,null,"1. Marts 2016"]
["pandrup vandvaerk  ","Drikkevand","v150","Anlægsprojekter igangsat senest 1. marts 2016",0,0,null,"1. Marts 2016"]
["rebild vand spildevand as  ","Spildevand","s076","Anlægsprojekter igangsat senest  1. marts 2016",0,74966.559999999998,null,"1. Marts 2016"]
["rebild vand spildevand as  ","Drikkevand","v152","Anlægsprojekter igangsat senest 1. marts 2016",0,0,null,"1. Marts 2016"]
["ringkoebing skjern renseanlaeg as  ","Spildevand","s111","Anlægsprojekter igangsat senest 1. marts 2016",246804,238307.5,null,"1. Marts 2016"]
["ringkoebing skjern spildevand as  ","Spildevand","s077","Anlægsprojekter igangsat senest 1. marts 2016",0,287954.875,null,"1. Marts 2016"]
["ry vandvaerk  ","Drikkevand","v157","Byggemodninger",0,45636,null,"§11, stk. 4 (udvidelse)","Godkendt","Godtgjort at deres forsyningsområde eller vandmængder er udvidet, som følge af udvidelse af forsyningsområde eller håndterede vandmængder"]
["samsoe spildevand as  ","Spildevand","s082","Udvidelse af forsyningsområdet",340362,333489,null,"§11, stk. 4 (udvidelse)","Godkendt","Godtgjort at deres forsyningsområde eller vandmængder er udvidet, som følge af udvidelse af forsyningsområde eller håndterede vandmængder"]
["silkeborg spildevand as  ","Spildevand","s083","Byggemodninger",0,219890,null,"§11, stk. 4 (udvidelse)","Godkendt","Godtgjort at deres forsyningsområde eller vandmængder er udvidet, som følge af udvidelse af forsyningsområde eller håndterede vandmængder"]
["ringkoebing skjern vand as  ","Drikkevand","v153","Anlægsprojekter igangsat senest 1. marts 2016",0,476614.9,null,"1. Marts 2016"]
["sk spildevand as  ","Spildevand","s084","Byggemodninger",2720651,0,null,"§11, stk. 4 (udvidelse)","Godkendt","Godtgjort at deres forsyningsområde eller vandmængder er udvidet, som følge af udvidelse af forsyningsområde eller håndterede vandmængder"]
["skanderborg forsyningsvirksomhed as  ","Spildevand","s085","Separering",0,2025311,null,"§11 Stk. 1 (mål)","Godkendt","Der er tale om statsligt eller kommunalt fastsatmål, som overstiger væsentlighedsgrænsen og ligger uden for den ordinære driftsaktivitet."]
["ringsted centralrenseanlaeg as  ","Spildevand","s078","Anlægsprojekter igangsat senest 1. marts 2016",0,0,null,"1. Marts 2016"]
["ringsted spildevand as  ","Spildevand","s079","Anlægsprojekter igangsat senest 1. marts 2016",0,0,null,"1. Marts 2016"]
["skanderborg forsyningsvirksomhed as  ","Drikkevand","v166","Flytning af ledninger E45",0,1629,null,"§11, Stk. 2 (ledningsomlægning)","Godkendt","Flytningen af jeres forsynings ledninger er en følge af arealejers retmæssige råderet over arealet, og at jeres anlægsomkostninger har været nødvendige i forbindelse med flytningen."]
["skanderborg forsyningsvirksomhed as  ","Spildevand","s085","Byggemodninger",750539,638934,null,"§11, stk. 4 (udvidelse)","Godkendt","Godtgjort at deres forsyningsområde eller vandmængder er udvidet, som følge af udvidelse af forsyningsområde eller håndterede vandmængder"]
["skanderborg forsyningsvirksomhed as  ","Drikkevand","v166","Byggemodninger",0,60930,null,"§11, stk. 4 (udvidelse)","Godkendt","Godtgjort at deres forsyningsområde eller vandmængder er udvidet, som følge af udvidelse af forsyningsområde eller håndterede vandmængder"]
["ringsted vand as  ","Drikkevand","v154","Anlægsprojekter igangsat senest 1. marts 2016",0,0,null,"1. Marts 2016"]
["skive vand as  ","Drikkevand","v167","Overtagelse af Nordvand Vandværk",0,8300,null,"§11, stk. 4 (udvidelse)","Godkendt","Godtgjort at deres forsyningsområde eller vandmængder er udvidet, som følge af udvidelse af forsyningsområde eller håndterede vandmængder"]
["skive vand as  ","Spildevand","s086","Spildevandskloakering og byggemodning",0,88866,null,"§11, stk. 4 (udvidelse)","Godkendt","Godtgjort at deres forsyningsområde eller vandmængder er udvidet, som følge af udvidelse af forsyningsområde eller håndterede vandmængder"]
["skive vand as  ","Drikkevand",null,"Screening af drikkevand for 410 pesticider",null,null,null,"§13, stk. 2 (periodevise)","Afvist ","I har ydermere oplyst, at omkostningen afholdt i 2018 har været en engangsomkostning, der ikke forventes at være tilbagevendende."]
["soenderborg spildevandsforsyning as  ","Spildevand","s093","Separatkloakeringer",0,3026988,null,"§11 Stk. 1 (mål)","Godkendt","Der er tale om statsligt eller kommunalt fastsatmål, som overstiger væsentlighedsgrænsen og ligger uden for den ordinære driftsaktivitet."]
["soenderborg spildevandsforsyning as  ","Spildevand","s093","Byggemodninger og kloakering i \"åbent land\"",0,898319,null,"§11, stk. 4 (udvidelse)","Godkendt","Godtgjort at deres forsyningsområde eller vandmængder er udvidet, som følge af udvidelse af forsyningsområde eller håndterede vandmængder"]
["roedding vandvaerk amba  ","Drikkevand","v158","Anlægsprojekter igangsat senest 1. marts 2016",0,0,null,"1. Marts 2016"]
["roedekro vandvaerk  ","Drikkevand","v159","Anlægsprojekter igangsat senest 1. marts 2016",0,0,null,"1. Marts 2016"]
["roenne vand as  ","Drikkevand","v160","Anlægsprojekter igangsat senest 1. marts 2016",0,0,null,"1. Marts 2016"]
["rudersdal forsyning as  ","Spildevand","s081","Anlægsprojekter igangsat senest 1. marts 2016",0,0,null,"1. Marts 2016"]
["soenderborg vandforsyning as  ","Drikkevand","v181","Vandsamarbejde - grundvandsbeskyttelse",433938,0,null,"§11 Stk. 1 (mål)","Godkendt","Der er tale om statsligt eller kommunalt fastsatmål, som overstiger væsentlighedsgrænsen og ligger uden for den ordinære driftsaktivitet."]
["rudersdal forsyning as  ","Drikkevand","v156","Anlægsprojekter igangsat senest 1. marts 2016",0,1129186.1133333333,null,"1. Marts 2016"]
["soenderborg vandforsyning as  ","Drikkevand","v181","Nye kunder/udstykninger",0,6244,null,"§11, stk. 4 (udvidelse)","Godkendt","Godtgjort at deres forsyningsområde eller vandmængder er udvidet, som følge af udvidelse af forsyningsområde eller håndterede vandmængder"]
["ry vandvaerk  ","Drikkevand","v157","Anlægsprojekter igangsat senest 1. marts 2016",0,0,null,"1. Marts 2016"]
["solroed spildevand as  ","Spildevand","s087","Havdrup Vest",0,69046,null,"§11, stk. 4 (udvidelse)","Godkendt","Godtgjort at deres forsyningsområde eller vandmængder er udvidet, som følge af udvidelse af forsyningsområde eller håndterede vandmængder"]
["samsoe spildevand as  ","Spildevand","s082","Anlægsprojekter igangsat senest 1. marts 2016",0,0,null,"1. Marts 2016"]
["stevns spildevand as  ","Spildevand","s089","Udvidelse af forsyningsområdet",0,105898,null,"§11, stk. 4 (udvidelse)","Godkendt","Godtgjort at deres forsyningsområde eller vandmængder er udvidet, som følge af udvidelse af forsyningsområde eller håndterede vandmængder"]
["silkeborg spildevand as  ","Spildevand","s083","Anlægsprojekter igangsat senest 1. marts 2016",0,817663.33333333349,null,"1. Marts 2016"]
["stoevring vandvaerk amba  ","Drikkevand","v176","Udvidelse af forsyningsområdet",null,0,369056,"§11, stk. 4 (udvidelse)","Godkendt","Godtgjort at deres forsyningsområde eller vandmængder er udvidet, som følge af udvidelse af forsyningsområde eller håndterede vandmængder"]
["silkeborg vand as  ","Drikkevand","v162","Anlægsprojekter igangsat senest 1. marts 2016",0,0,null,"1. Marts 2016"]
["sindal vandvaerk amba  ","Drikkevand","v163","Anlægsprojekter igangsat senest 1. marts 2016",0,0,null,"1. Marts 2016"]
["sjaelsoe vand as  ","Drikkevand","v164","Anlægsprojekter igangsat senest 1. marts 2016",0,7166.76,null,"1. Marts 2016"]
["sk spildevand as  ","Spildevand","s084","Anlægsprojekter igangsat senest 1. marts 2016",0,1237899.3599999999,null,"1. Marts 2016"]
["struer forsyning spildevand as  ","Spildevand","s090","Spildevandsplanens opfyldelse og nyt kloakopland ved Vejrum",0,162535,null,"§11, stk. 4 (udvidelse)","Godkendt","Godtgjort at deres forsyningsområde eller vandmængder er udvidet, som følge af udvidelse af forsyningsområde eller håndterede vandmængder"]
["sk vand as  ","Drikkevand","v165","Anlægsprojekter igangsat senest 1. marts 2016",0,2929152.6,null,"1. Marts 2016"]
["skaerbaek vandvaerk a m b a  ","Drikkevand","v169","Anlægsprojekter igangsat senest 1. marts 2016",0,0,null,"1. Marts 2016"]
["skanderborg forsyningsvirksomhed as  ","Spildevand","s085","Anlægsprojekter igangsat senest 1. marts 2016",0,407964.53333333327,null,"1. Marts 2016"]
["svinninge vandvaerk  ","Drikkevand","v179","Ny udstykning Ringstedvej",0,1890,null,"§11, stk. 4 (udvidelse)","Godkendt","Godtgjort at deres forsyningsområde eller vandmængder er udvidet, som følge af udvidelse af forsyningsområde eller håndterede vandmængder"]
["sydals oest vandforsyning  ","Drikkevand","v180","Vandsamarbejde, Sønderborg",61021,0,null,"§11 Stk. 1 (mål)","Godkendt","Der er tale om statsligt eller kommunalt fastsatmål, som overstiger væsentlighedsgrænsen og ligger uden for den ordinære driftsaktivitet."]
["skanderborg forsyningsvirksomhed as  ","Drikkevand","v166","Anlægsprojekter igangsat senest 1. marts 2016",0,55630.9,null,"1. Marts 2016"]
["toender spildevand as  ","Spildevand","s096","Separatkloakeringsprojekter",413720,170264,null,"§11 Stk. 1 (mål)","Godkendt","Der er tale om statsligt eller kommunalt fastsatmål, som overstiger væsentlighedsgrænsen og ligger uden for den ordinære driftsaktivitet."]
["toender spildevand as  ","Spildevand","s096","Kloakeringsprojekter og byggemodninger",674589,429164,null,"§11, stk. 4 (udvidelse)","Godkendt","Godtgjort at deres forsyningsområde eller vandmængder er udvidet, som følge af udvidelse af forsyningsområde eller håndterede vandmængder"]
["skive vand as  ","Spildevand","s086","Anlægsprojekter igangsat senest 1. marts 2016",0,3899.8500000000004,null,"1. Marts 2016"]
["trefor vand as  ","Drikkevand","v188","Ny drikkevandsbekendtgørelse",771339,0,null,"§11 Stk. 1 (mål)","Godkendt","Der er tale om statsligt eller kommunalt fastsatmål, som overstiger væsentlighedsgrænsen og ligger uden for den ordinære driftsaktivitet."]
["skive vand as  ","Drikkevand","v167","Anlægsprojekter igangsat senest 1. marts 2016",0,120801.484,null,"1. Marts 2016"]
["trefor vand as  ","Drikkevand","v188","Nye udstykninger",167358,758191,null,"§11, stk. 4 (udvidelse)","Godkendt","Godtgjort at deres forsyningsområde eller vandmængder er udvidet, som følge af udvidelse af forsyningsområde eller håndterede vandmængder"]
["tune vandvaerk amba  ","Drikkevand","v189","Nødforsyning",0,1019,null,"§11, stk. 4 (udvidelse)","Godkendt","Godtgjort at deres forsyningsområde eller vandmængder er udvidet, som følge af udvidelse af forsyningsområde eller håndterede vandmængder"]
["skovlundansager vandvaerk amba  ","Drikkevand","v168","Anlægsprojekter igangsat senest 1. marts 2016",0,0,null,"1. Marts 2016"]
["slangerup vandvaerk amba  ","Drikkevand","v140","Anlægsprojekter igangsat senest 1. marts 2016",0,0,null,"1. Marts 2016"]
["snejbjerg vandvaerk amba  ","Drikkevand","v170","Anlægsprojekter igangsat senest 1. marts 2016",0,0,null,"1. Marts 2016"]
["soender felding vandvaerk amba  ","Drikkevand","v161","Anlægsprojekter igangsat senest 1. marts 2016",0,0,null,"1. Marts 2016"]
["soenderborg spildevandsforsyning as  ","Spildevand","s093","Anlægsprojekter igangsat senest 1. marts 2016",0,367476.09333333327,null,"1. Marts 2016"]
["tune vandvaerk amba  ","Drikkevand","v189","Tilslutninger",0,3717,null,"§11, stk. 4 (udvidelse)","Godkendt","Godtgjort at deres forsyningsområde eller vandmængder er udvidet, som følge af udvidelse af forsyningsområde eller håndterede vandmængder"]
["ulsted aalebaek vandvaerk amba  ","Drikkevand","v195","Grundvandsbeskyttelse",72963,0,null,"§11 Stk. 1 (mål)","Godkendt","Der er tale om statsligt eller kommunalt fastsatmål, som overstiger væsentlighedsgrænsen og ligger uden for den ordinære driftsaktivitet."]
["soenderborg vandforsyning as  ","Drikkevand","v181","Anlægsprojekter igangsat senest 1. marts 2016",0,0,null,"1. Marts 2016"]
["ulsted aalebaek vandvaerk amba  ","Drikkevand","v195","Etablering af nyt kloaknet i forsyningsområde",null,0,722291,"§11, Stk. 2 (ledningsomlægning)","Godkendt","Flytningen af jeres forsynings ledninger er en følge af arealejers retmæssige råderet over arealet, og at jeres anlægsomkostninger har været nødvendige i forbindelse med flytningen."]
["vand ballerup as  ","Drikkevand","v197","Grundvandsbeskyttelse - Tørvesletten",null,0,597350,"§11 Stk. 1 (mål)","Godkendt","Der er tale om statsligt eller kommunalt fastsatmål, som overstiger væsentlighedsgrænsen og ligger uden for den ordinære driftsaktivitet."]
["soendersoe vandvaerk  ","Drikkevand","v182","Anlægsprojekter igangsat senest 1. marts 2016",0,0,null,"1. Marts 2016"]
["solroed spildevand as  ","Spildevand","s087","Anlægsprojekter igangsat senest 1. marts 2016",0,222556.46,null,"1. Marts 2016"]
["vand ballerup as  ","Drikkevand","v197","Byggemodning Dyvelåsen og nye tilslutninger",70831,7777,null,"§11, stk. 4 (udvidelse)","Godkendt","Godtgjort at deres forsyningsområde eller vandmængder er udvidet, som følge af udvidelse af forsyningsområde eller håndterede vandmængder"]
["solroed vandvaerk amba  ","Drikkevand","v171","Anlægsprojekter igangsat senest 1. marts 2016",0,0,null,"1. Marts 2016"]
["soroe spildevand as  ","Spildevand","s088","Anlægsprojekter igangsat senest 1. marts 2016",0,0,null,"1. Marts 2016"]
["soroe vand as  ","Drikkevand","v172","Anlægsprojekter igangsat senest 1. marts 2016",0,0,null,"1. Marts 2016"]
["stenlien vandvaerk amba  ","Drikkevand","v173","Anlægsprojekter igangsat senest 1. marts 2016",0,0,null,"1. Marts 2016"]
["stevns spildevand as  ","Spildevand","s089","Anlægsprojekter igangsat senest 1. marts 2016",0,38339.343333333338,null,"1. Marts 2016"]
["vandcenter syd as  ","Drikkevand",null,"UV behandling",null,null,null,"§11 Stk. 1 (mål)","Afvist ","Væsentlighedhedsgrænsen er ikke opfyldt."]
["stoevring vandvaerk amba  ","Drikkevand","v176","Anlægsprojekter igangsat senest 1. marts 2016",0,0,null,"1. Marts 2016"]
["vandcenter syd as  ","Drikkevand","v199","Letbane",0,30322,null,"§11, Stk. 2 (ledningsomlægning)","Godkendt","Flytningen af jeres forsynings ledninger er en følge af arealejers retmæssige råderet over arealet, og at jeres anlægsomkostninger har været nødvendige i forbindelse med flytningen."]
["stroemmen vandvaerk  ","Drikkevand","v175","Anlægsprojekter igangsat senest 1. marts 2016",0,0,null,"1. Marts 2016"]
["struer forsyning spildevand as  ","Spildevand","s090","Anlægsprojekter igangsat senest 1. marts 2016",0,0,null,"1. Marts 2016"]
["vandcenter syd as  ","Spildevand","s099","Odense Letbane og TBT projekt",0,229056,null,"§11, Stk. 2 (ledningsomlægning)","Godkendt","Flytningen af jeres forsynings ledninger er en følge af arealejers retmæssige råderet over arealet, og at jeres anlægsomkostninger har været nødvendige i forbindelse med flytningen."]
["struer forsyning vand as  ","Drikkevand","v174","Anlægsprojekter igangsat senest 1. marts 2016",0,22661.653333333335,null,"1. Marts 2016"]
["sunds vand og varmevaerk  ","Drikkevand","v177","Anlægsprojekter igangsat senest 1. marts 2016",0,0,null,"1. Marts 2016"]
["svendborg spildevand as  ","Spildevand","s091","Anlægsprojekter igangsat senest 1. marts 2016",0,966032.33666666667,null,"1. Marts 2016"]
["svendborg vand as  ","Drikkevand","v178","Anlægsprojekter igangsat senest 1. marts 2016",0,17459.954666666668,null,"1. Marts 2016"]
["svinninge vandvaerk  ","Drikkevand","v179","Anlægsprojekter igangsat senest 1. marts 2016",0,0,null,"1. Marts 2016"]
["vandcenter syd as  ","Drikkevand","v199","Erhvervsudstykning",0,14644,null,"§11, stk. 4 (udvidelse)","Godkendt","Godtgjort at deres forsyningsområde eller vandmængder er udvidet, som følge af udvidelse af forsyningsområde eller håndterede vandmængder"]
["sydals oest vandforsyning  ","Drikkevand","v180","Anlægsprojekter igangsat senest 1. marts 2016",0,0,null,"1. Marts 2016"]
["vandcenter syd as  ","Spildevand","s099","Nyudstykninger og byggemodninger",0,880090,null,"§11, stk. 4 (udvidelse)","Godkendt","Godtgjort at deres forsyningsområde eller vandmængder er udvidet, som følge af udvidelse af forsyningsområde eller håndterede vandmængder"]
["syddjurs spildevand as  ","Spildevand","s092","Anlægsprojekter igangsat senest 1. marts 2016",0,0,null,"1. Marts 2016"]
["taarnbyforsyning spildevand  ","Spildevand","s097","Anlægsprojekter igangsat senest 1. marts 2016",0,44630.2,null,"1. Marts 2016"]
["taarnbyforsyning vand as  ","Drikkevand","v191","Anlægsprojekter igangsat senest 1. marts 2016",521328,578202.1,null,"1. Marts 2016"]
["taars vandvaerk amba  ","Drikkevand","v192","Anlægsprojekter igangsat senest 1. marts 2016",0,0,null,"1. Marts 2016"]
["tarup vandvaerk  ","Drikkevand","v183","Anlægsprojekter igangsat senest 1. marts 2016",0,0,null,"1. Marts 2016"]
["them vandvaerk amba  ","Drikkevand","v222","Anlægsprojekter igangsat senest 1. marts 2016",0,0,null,"1. Marts 2016"]
["thisted drikkevand as  ","Drikkevand","v184","Anlægsprojekter igangsat senest 1. marts 2016",0,0,null,"1. Marts 2016"]
["thisted renseanlaeg as  ","Spildevand","s094","Anlægsprojekter igangsat senest 1. marts 2016",0,0,null,"1. Marts 2016"]
["thisted spildevand transport as  ","Spildevand","s095","Anlægsprojekter igangsat senest 1. marts 2016",0,390841.50293333334,null,"1. Marts 2016"]
["tinglev vandvaerk  ","Drikkevand","v185","Anlægsprojekter igangsat senest 1. marts 2016",0,0,null,"1. Marts 2016"]
["tistrup vandvaerk  ","Drikkevand","v186","Anlægsprojekter igangsat senest 1. marts 2016",0,0,null,"1. Marts 2016"]
["toender spildevand as  ","Spildevand","s096","Anlægsprojekter igangsat senest 1. marts 2016",0,431735.8866666666,null,"1. Marts 2016"]
["vandfaellesskabet nordvestsjaelland","Drikkevand",null,"Udvidelse på Knabstrup Vandværk",null,null,null,"§11, stk. 4 (udvidelse)","Godkendt","Godtgjort at deres forsyningsområde eller vandmængder er udvidet, som følge af udvidelse af forsyningsområde eller håndterede vandmængder"]
["vandforsyningen brovst og omegn  ","Drikkevand","v200","Grundvandssikring ved skovrejsning",null,0,63404,"§11 Stk. 1 (mål)","Godkendt","Der er tale om statsligt eller kommunalt fastsatmål, som overstiger væsentlighedsgrænsen og ligger uden for den ordinære driftsaktivitet."]
["toender vand as  ","Drikkevand","v190","Anlægsprojekter igangsat senest 1. marts 2016",0,150010.79999999999,null,"1. Marts 2016"]
["toftlund vandvaerk  ","Drikkevand","v187","Anlægsprojekter igangsat senest 1. marts 2016",0,0,null,"1. Marts 2016"]
["trefor vand as  ","Drikkevand","v188","Anlægsprojekter igangsat senest 1. marts 2016",0,954241.10666666669,null,"1. Marts 2016"]
["vandmiljoe randers as  ","Spildevand","s075","Gæsteprincip",420,71099,null,"§11, Stk. 2 (ledningsomlægning)","Godkendt","Flytningen af jeres forsynings ledninger er en følge af arealejers retmæssige råderet over arealet, og at jeres anlægsomkostninger har været nødvendige i forbindelse med flytningen."]
["vandmiljoe randers as  ","Spildevand","s075","Byggemodninger 2017 og 2018",20873,248628,null,"§11, stk. 4 (udvidelse)","Godkendt","Godtgjort at deres forsyningsområde eller vandmængder er udvidet, som følge af udvidelse af forsyningsområde eller håndterede vandmængder"]
["tune vandvaerk amba  ","Drikkevand","v189","Anlægsprojekter igangsat senest 1. marts 2016",0,0,null,"1. Marts 2016"]
["vandscenter syd as","Spildevand",null,"Regnvandsbassin og Klimaklar Skibhusvej",null,null,null,"§11 Stk. 1 (mål)","Afvist ","Væsentlighedhedsgrænsen er ikke opfyldt."]
["vejen renseanlaeg  ","Spildevand",null,"Garantiprovision",null,null,null,"§ 14 (Justering af den økonomiske ramme)","Afvist ","§ 14 - Det er vores vurdering, at omkostningerne ikke er væsentlige set i for-\r\nhold til jeres økonomiske ramme for 2018."]
["udsholt vandvaerk amba  ","Drikkevand","v193","Anlægsprojekter igangsat senest 1. marts 2016",0,0,null,"1. Marts 2016"]
["ulfborg vandvaerk amba  ","Drikkevand","v194","Anlægsprojekter igangsat senest 1. marts 2016",0,0,null,"1. Marts 2016"]
["ulsted aalebaek vandvaerk amba  ","Drikkevand","v195","Anlægsprojekter igangsat senest 1. marts 2016",0,0,null,"1. Marts 2016"]
["vejen spildevand  ","Spildevand","s102","Udvidelse af forsyningsområdet",0,707546,null,"§11, stk. 4 (udvidelse)","Godkendt","Godtgjort at deres forsyningsområde eller vandmængder er udvidet, som følge af udvidelse af forsyningsområde eller håndterede vandmængder"]
["vejen spildevand  ","Spildevand",null,"Garantiprovision",null,null,null,"§ 14 (Justering af den økonomiske ramme)","Afvist ","§ 14 - Det er vores vurdering, at omkostningerne ikke er væsentlige set i for-\r\nhold til jeres økonomiske ramme for 2018."]
["vamdrup vandvaerk  ","Drikkevand","v196","Anlægsprojekter igangsat senest 1. marts 2016",0,0,null,"1. Marts 2016"]
["vand ballerup as  ","Drikkevand","v197","Anlægsprojekter igangsat senest 1. marts 2016",0,930.43000000000006,null,"1. Marts 2016"]
["vejen vand  ","Drikkevand","v205","Etablering af nyt kildefelt",69787,216843,null,"§11 Stk. 1 (mål)","Godkendt","Der er tale om statsligt eller kommunalt fastsatmål, som overstiger væsentlighedsgrænsen og ligger uden for den ordinære driftsaktivitet."]
["vejen vand  ","Drikkevand","v205","Byggemodninger og nye tilslutninger",6437,17034,null,"§11, stk. 4 (udvidelse)","Godkendt","Godtgjort at deres forsyningsområde eller vandmængder er udvidet, som følge af udvidelse af forsyningsområde eller håndterede vandmængder"]
["vandcenter djurs amba  ","Drikkevand","v198","Anlægsprojekter igangsat senest 1. marts 2016",0,0,null,"1. Marts 2016"]
["vandcenter syd as  ","Spildevand","s099","Anlægsprojekter igangsat senest 1. marts 2016",0,0,null,"1. Marts 2016"]
["vejen vand  ","Drikkevand",null,"Garantiprovision",null,null,null,"§ 14 (Justering af den økonomiske ramme)","Afvist ","§ 14 - Det er vores vurdering, at omkostningerne ikke er væsentlige set i for-\r\nhold til jeres økonomiske ramme for 2018."]
["vejen vand  ","Drikkevand",null,"justering af den  økonomiske ramme ",null,null,null,"§ 14 (Justering af den økonomiske ramme)","Afvist ","§ 14 - Det er vores vurdering, at der ikke sker en væsentligt ændring i jeres aktiviteter eller omkostning."]
["vejle spildevand as  ","Spildevand",null,"Separatkloakering",null,null,null,"§11 Stk. 1 (mål)","Afvist ","Væsentlighedhedsgrænsen er ikke opfyldt."]
["vandcenter syd as  ","Drikkevand","v199","Anlægsprojekter igangsat senest 1. marts 2016",0,0,null,"1. Marts 2016"]
["vejle spildevand as  ","Spildevand",null,"Medfinansieringsprojektet Østbyen",1355982,null,null,"§11 stk. 5 (medfinansiering)","Godkendt","Opfylder betingerne for tillæg."]
["vejle spildevand as  ","Spildevand","s103","Byggemodninger",1073437,643138,null,"§11, stk. 4 (udvidelse)","Godkendt","Godtgjort at deres forsyningsområde eller vandmængder er udvidet, som følge af udvidelse af forsyningsområde eller håndterede vandmængder"]
["verdo vand as  ","Drikkevand",null,"Oust Mølle Folkeskov",null,null,null,"§11 Stk. 1 (mål)","Afvist ","Der kan ikke gives tillæg på baggrund af omkostninger, der er afholdt i 2016, da tillæg gives på baggrund af omkostninger afholdt i det forudgående kalenderår."]
["verdo vand as  ","Drikkevand","v206","Viborgvej",0,27237,null,"§11, Stk. 2 (ledningsomlægning)","Godkendt","Flytningen af jeres forsynings ledninger er en følge af arealejers retmæssige råderet over arealet, og at jeres anlægsomkostninger har været nødvendige i forbindelse med flytningen."]
["verdo vand as  ","Drikkevand","v206","Byggemodninger",1075146,0,null,"§11, stk. 4 (udvidelse)","Godkendt","Godtgjort at deres forsyningsområde eller vandmængder er udvidet, som følge af udvidelse af forsyningsområde eller håndterede vandmængder"]
["vandfaellesskabet nordvestsjaelland  ","Drikkevand","v202","Anlægsprojekter igangsat senest 1. marts 2016",0,0,null,"1. Marts 2016"]
["vandforsyningen brovst og omegn  ","Drikkevand","v200","Anlægsprojekter igangsat senest 1. marts 2016",0,0,null,"1. Marts 2016"]
["vestforsyning spildevand as  ","Spildevand",null,"Nyt overløbsbygværk",null,null,null,"§11 Stk. 1 (mål)","Afvist ","Væsentlighedhedsgrænsen er ikke opfyldt."]
["vestforsyning spildevand as  ","Spildevand","s104","Byggemodninger og nye tilslutninger",0,439129,null,"§11, stk. 4 (udvidelse)","Godkendt","Godtgjort at deres forsyningsområde eller vandmængder er udvidet, som følge af udvidelse af forsyningsområde eller håndterede vandmængder"]
["vordingborg spildevand as  ","Spildevand","s107","Sankelmarksvej",0,6775,null,"§11, stk. 4 (udvidelse)","Godkendt","Godtgjort at deres forsyningsområde eller vandmængder er udvidet, som følge af udvidelse af forsyningsområde eller håndterede vandmængder"]
["vandforsyningen oestlolland amba  ","Drikkevand","v201","Anlægsprojekter igangsat senest 1. marts 2016",0,0,null,"1. Marts 2016"]
["vandmiljoe randers as  ","Spildevand","s075","Anlægsprojekter igangsat senest 1. marts 2016",0,505718.52666666673,null,"1. Marts 2016"]
["vordingborg vand as  ","Drikkevand","v212","Sankt Clementsvej Banekrydsning",0,8193,null,"§11, Stk. 2 (ledningsomlægning)","Godkendt","Flytningen af jeres forsynings ledninger er en følge af arealejers retmæssige råderet over arealet, og at jeres anlægsomkostninger har været nødvendige i forbindelse med flytningen."]
["vordingborg vand as  ","Drikkevand","v212","Udvidelse af forsyningsområdet",0,2720,null,"§11, stk. 4 (udvidelse)","Godkendt","Godtgjort at deres forsyningsområde eller vandmængder er udvidet, som følge af udvidelse af forsyningsområde eller håndterede vandmængder"]
["vandmiljoe randers as  ","Drikkevand","v151","Anlægsprojekter igangsat senest 1. marts 2016",0,50959.965400000001,null,"1. Marts 2016"]
["vandsam as  ","Drikkevand","v225","Anlægsprojekter igangsat senest 1. marts 2016",0,0,null,"1. Marts 2016"]
["vandvaerket lyngen  ","Drikkevand","v203","Anlægsprojekter igangsat senest 1. marts 2016",0,0,null,"1. Marts 2016"]
["vejen renseanlaeg  ","Spildevand","s101","Anlægsprojekter igangsat senest 1. marts 2016",0,0,null,"1. Marts 2016"]
["vejen spildevand  ","Spildevand","s102","Anlægsprojekter igangsat senest 1. marts 2016",0,0,null,"1. Marts 2016"]
["vsk amba  ","Drikkevand","v213","Grundvandssikring",null,0,103163,"§11 Stk. 1 (mål)","Godkendt","Der er tale om statsligt eller kommunalt fastsatmål, som overstiger væsentlighedsgrænsen og ligger uden for den ordinære driftsaktivitet."]
["aalborg kloak as  ","Spildevand","s109","Spildevandskloakering i Det Åbne Land",0,5883,null,"§11, stk. 4 (udvidelse)","Godkendt","Godtgjort at deres forsyningsområde eller vandmængder er udvidet, som følge af udvidelse af forsyningsområde eller håndterede vandmængder"]
["vejen vand  ","Drikkevand","v205","Anlægsprojekter igangsat senest 1. marts 2016",0,0,null,"1. Marts 2016"]
["aarhus vand as  ","Spildevand","s110","Adskillelse 2018",308871,3606540,null,"§11 Stk. 1 (mål)","Godkendt","Der er tale om statsligt eller kommunalt fastsatmål, som overstiger væsentlighedsgrænsen og ligger uden for den ordinære driftsaktivitet."]
["aarhus vand as  ","Spildevand",null,"GDPR",null,null,null,"§11 Stk. 1 (mål)","Afvist ","Der er således tale om et databeskyttelsesformål, hvilket ikke kan ligestilles et mål inden for miljø, sundhed, energieffektivitet, klimaindsatser, forsyningssikkerhed eller service."]
["aarhus vand as  ","Drikkevand",null,"GDPR",null,null,null,"§11 Stk. 1 (mål)","Afvist ","Der er således tale om et databeskyttelsesformål, hvilket ikke kan ligestilles et mål inden for miljø, sundhed, energieffektivitet, klimaindsatser, forsyningssikkerhed eller service."]
["aarhus vand as  ","Drikkevand","v220","Grundvandsbeskyttelse",5130000,0,null,"§11 Stk. 1 (mål)","Godkendt","Der er tale om statsligt eller kommunalt fastsatmål, som overstiger væsentlighedsgrænsen og ligger uden for den ordinære driftsaktivitet."]
["aarhus vand as  ","Spildevand","s110","Klimaunderstøttende tiltag",2493390,2261173,null,"§11 Stk. 1 (mål)","Godkendt","Der er tale om statsligt eller kommunalt fastsatmål, som overstiger væsentlighedsgrænsen og ligger uden for den ordinære driftsaktivitet."]
["vejle spildevand as  ","Spildevand","s103","Anlægsprojekter igangsat senest 1. marts 2016",0,968779.05866666674,null,"1. Marts 2016"]
["aarhus vand as  ","Spildevand","s110","Returpumpning",352892,0,null,"§11 Stk. 1 (mål)","Godkendt","Der er tale om statsligt eller kommunalt fastsatmål, som overstiger væsentlighedsgrænsen og ligger uden for den ordinære driftsaktivitet."]
["aarhus vand as  ","Spildevand","s110","Slambortskaffelse",839203,0,null,"§11 Stk. 1 (mål)","Godkendt","Der er tale om statsligt eller kommunalt fastsatmål, som overstiger væsentlighedsgrænsen og ligger uden for den ordinære driftsaktivitet."]
["verdo vand as  ","Drikkevand","v206","Anlægsprojekter igangsat senest 1. marts 2016",0,0,null,"1. Marts 2016"]
["aarhus vand as  ","Drikkevand","v220","Strukturplan",0,703291,null,"§11 Stk. 1 (mål)","Godkendt","Der er tale om statsligt eller kommunalt fastsatmål, som overstiger væsentlighedsgrænsen og ligger uden for den ordinære driftsaktivitet."]
["aarhus vand as  ","Drikkevand","v220","Omlægninger",0,54652,null,"§11, Stk. 2 (ledningsomlægning)","Godkendt","Flytningen af jeres forsynings ledninger er en følge af arealejers retmæssige råderet over arealet, og at jeres anlægsomkostninger har været nødvendige i forbindelse med flytningen."]
["vester skerninge vandvaerk  ","Drikkevand","v223","Anlægsprojekter igangsat senest 1. marts 2016",0,0,null,"1. Marts 2016"]
["vestforsyning spildevand as  ","Spildevand","s104","Anlægsprojekter igangsat senest 1. marts 2016",0,246865.02546666667,null,"1. Marts 2016"]
["aarhus vand as  ","Spildevand","s110","Omlægninger, spildevand",0,42703,null,"§11, Stk. 2 (ledningsomlægning)","Godkendt","Flytningen af jeres forsynings ledninger er en følge af arealejers retmæssige råderet over arealet, og at jeres anlægsomkostninger har været nødvendige i forbindelse med flytningen."]
["vestforsyning vand as  ","Drikkevand","v207","Anlægsprojekter igangsat senest 1. marts 2016",0,17291.814999999999,null,"1. Marts 2016"]
["vesthimmerlands vand as  ","Spildevand","s105","Anlægsprojekter igangsat senest 1. marts 2016",0,0,null,"1. Marts 2016"]
["vesthimmerlands vand as  ","Drikkevand","v208","Anlægsprojekter igangsat senest 1. marts 2016",0,0,null,"1. Marts 2016"]
["videbaek vand as  ","Drikkevand","v209","Anlægsprojekter igangsat senest 1. marts 2016",0,0,null,"1. Marts 2016"]
["vildbjerg vandvaerk amba  ","Drikkevand","v210","Anlægsprojekter igangsat senest 1. marts 2016",0,0,null,"1. Marts 2016"]
["vindeby vandforsyning v226  kopi","Drikkevand","oer2","Anlægsprojekter igangsat senest 1. marts 2016",0,0,null,"1. Marts 2016"]
["vodskov vandvaerk  ","Drikkevand","v211","Anlægsprojekter igangsat senest 1. marts 2016",0,0,null,"1. Marts 2016"]
["vordingborg rens as  ","Spildevand","s106","Anlægsprojekter igangsat senest 1. marts 2016",0,0,null,"1. Marts 2016"]
["vordingborg spildevand as  ","Spildevand","s107","Anlægsprojekter igangsat senest 1. marts 2016",0,0,null,"1. Marts 2016"]
["aarhus vand as  ","Spildevand","s110","Udvidelse af forsyningsområdet",882790,1813095,null,"§11, stk. 4 (udvidelse)","Godkendt","Godtgjort at deres forsyningsområde eller vandmængder er udvidet, som følge af udvidelse af forsyningsområde eller håndterede vandmængder"]
["vordingborg vand as  ","Drikkevand","v212","Anlægsprojekter igangsat senest 1. marts 2016",0,0,null,"1. Marts 2016"]
["aarhus vand as  ","Drikkevand","v220","Udvidelse af forsyningsområdet",773166,257419,null,"§11, stk. 4 (udvidelse)","Godkendt","Godtgjort at deres forsyningsområde eller vandmængder er udvidet, som følge af udvidelse af forsyningsområde eller håndterede vandmængder"]
["aarhus vand as  ","Drikkevand","v220","Indvindingstilladelser",4607,0,138214,"§13, stk. 2 (periodevise)","Godkendt","Opfylder betingerne for tillæg."]
["aarhus vand as  ","Spildevand","s110","Oprensning af regnvandsbassin",12007,0,1200729,"§13, stk. 2 (periodevise)","Godkendt","Opfylder betingerne for tillæg."]
["vsk amba  ","Drikkevand","v213","Anlægsprojekter igangsat senest 1. marts 2016",0,0,null,"1. Marts 2016"]
["aarhus vand as  ","Spildevand","s110","Energiproduktion på Egå Renseanlæg",2354265,0,null,"§ 18 stk. 4","Godkendt","Opfylder betingerne for tillæg."]

{"sheet":"§11 stk. 1 (mål).","index":1,"n_rows":67,"n_cols":10,"rows_kept":67,"cut":false,"hidden":false,"merged":[]}
["Selskab","Forsyningsart","FS ID","Beskrivelse","Driftsomkostninger","Anlægsomkostninger","Engangstillæg","Type:  §11 Stk. 1 (mål), §11, Stk. 2 (ledningsomlægning), §11, stk. 4 (udvidelse), §11 stk. 5 (medfinansiering), §11, stk. 6 (sup. Investering), §11, stk. 9 (vejbidrag), §13, stk. 2 (periodevise), §31, stk. 7 (vandindvinding)","Godkendt/afvist","Grund til godkendelse/ afvisning"]
["frederiksberg kloak as  ","Spildevand","s024","2-partssekretariat",1834920,0,null,"§11 Stk. 1 (mål)","Godkendt","Der er tale om statsligt eller kommunalt fastsatmål, som overstiger væsentlighedsgrænsen og ligger uden for den ordinære driftsaktivitet."]
["aarhus vand as  ","Spildevand","s110","Adskillelse 2018",308871,3606540,null,"§11 Stk. 1 (mål)","Godkendt","Der er tale om statsligt eller kommunalt fastsatmål, som overstiger væsentlighedsgrænsen og ligger uden for den ordinære driftsaktivitet."]
["nk spildevand as  ","Spildevand","s072","Afskærende ledninger",0,564758,null,"§11 Stk. 1 (mål)","Godkendt","Der er tale om statsligt eller kommunalt fastsatmål, som overstiger væsentlighedsgrænsen og ligger uden for den ordinære driftsaktivitet."]
["fredericia spildevand og energi as  ","Spildevand","s023","Bystrategiprojekt",1391516,0,null,"§11 Stk. 1 (mål)","Godkendt","Der er tale om statsligt eller kommunalt fastsatmål, som overstiger væsentlighedsgrænsen og ligger uden for den ordinære driftsaktivitet."]
["odder vandvaerk amba  ","Drikkevand",null,"Ekstra drikkevandsanalyse",null,null,null,"§11 Stk. 1 (mål)","Afvist ","Væsentlighedhedsgrænsen er ikke opfyldt."]
["vejen vand  ","Drikkevand","v205","Etablering af nyt kildefelt",69787,216843,null,"§11 Stk. 1 (mål)","Godkendt","Der er tale om statsligt eller kommunalt fastsatmål, som overstiger væsentlighedsgrænsen og ligger uden for den ordinære driftsaktivitet."]
["kalundborg overfladevand as  ","Drikkevand","v111","Filteranlæg, åbne filtre, dobbelt filtrering, Mek./EL",null,0,616367,"§11 Stk. 1 (mål)","Godkendt"]
["frederikshavn vand as  ","Drikkevand","v057","Fjernaflæste målere",1221126,226714,null,"§11 Stk. 1 (mål)","Godkendt","Der er tale om statsligt eller kommunalt fastsatmål, som overstiger væsentlighedsgrænsen og ligger uden for den ordinære driftsaktivitet."]
["ringkoebing skjern spildevand as ","Spildevand",null,"Fjernaflæste målere",null,null,null,"§11 Stk. 1 (mål)","Afvist ","Væsentlighedhedsgrænsen er ikke opfyldt."]
["afloeb ballerup as  ","Spildevand","s001","Garantiprovision",0,80549,402745,"§11 Stk. 1 (mål)","Godkendt","Der er tale om statsligt eller kommunalt fastsatmål, som overstiger væsentlighedsgrænsen og ligger uden for den ordinære driftsaktivitet."]
["alleroed spildevand as  ","Spildevand","s002","Garantiprovision",0,820962,4925772,"§11 Stk. 1 (mål)","Godkendt","Der er tale om statsligt eller kommunalt fastsatmål, som overstiger væsentlighedsgrænsen og ligger uden for den ordinære driftsaktivitet."]
["frederiksberg vand as  ","Drikkevand",null,"GDPR",null,null,null,"§11 Stk. 1 (mål)","Afvist ","Der er således tale om et databeskyttelsesformål, hvilket ikke kan ligestilles et mål inden for miljø, sundhed, energieffektivitet, klimaindsatser, forsyningssikkerhed eller service."]
["frederiksberg kloak as  ","Spildevand",null,"GDPR",null,null,null,"§11 Stk. 1 (mål)","Afvist ","Opfylder ikke krav for tillæg."]
["hilleroed spildevand as  ","Spildevand",null,"GDPR",null,null,null,"§11 Stk. 1 (mål)","Afvist ","Opfylder ikke krav for tillæg."]
["aarhus vand as  ","Spildevand",null,"GDPR",null,null,null,"§11 Stk. 1 (mål)","Afvist ","Der er således tale om et databeskyttelsesformål, hvilket ikke kan ligestilles et mål inden for miljø, sundhed, energieffektivitet, klimaindsatser, forsyningssikkerhed eller service."]
["aarhus vand as  ","Drikkevand",null,"GDPR",null,null,null,"§11 Stk. 1 (mål)","Afvist ","Der er således tale om et databeskyttelsesformål, hvilket ikke kan ligestilles et mål inden for miljø, sundhed, energieffektivitet, klimaindsatser, forsyningssikkerhed eller service."]
["ringkoebing skjern vand as  ","Drikkevand","v153","Grundvandsbeskyttelse",null,0,399075,"§11 Stk. 1 (mål)","Godkendt","Der er tale om statsligt eller kommunalt fastsatmål, som overstiger væsentlighedsgrænsen og ligger uden for den ordinære driftsaktivitet."]
["ulsted aalebaek vandvaerk amba  ","Drikkevand","v195","Grundvandsbeskyttelse",72963,0,null,"§11 Stk. 1 (mål)","Godkendt","Der er tale om statsligt eller kommunalt fastsatmål, som overstiger væsentlighedsgrænsen og ligger uden for den ordinære driftsaktivitet."]
["aarhus vand as  ","Drikkevand","v220","Grundvandsbeskyttelse",5130000,0,null,"§11 Stk. 1 (mål)","Godkendt","Der er tale om statsligt eller kommunalt fastsatmål, som overstiger væsentlighedsgrænsen og ligger uden for den ordinære driftsaktivitet."]
["vand ballerup as  ","Drikkevand","v197","Grundvandsbeskyttelse - Tørvesletten",null,0,597350,"§11 Stk. 1 (mål)","Godkendt","Der er tale om statsligt eller kommunalt fastsatmål, som overstiger væsentlighedsgrænsen og ligger uden for den ordinære driftsaktivitet."]
["vsk amba  ","Drikkevand","v213","Grundvandssikring",null,0,103163,"§11 Stk. 1 (mål)","Godkendt","Der er tale om statsligt eller kommunalt fastsatmål, som overstiger væsentlighedsgrænsen og ligger uden for den ordinære driftsaktivitet."]
["vandforsyningen brovst og omegn  ","Drikkevand","v200","Grundvandssikring ved skovrejsning",null,0,63404,"§11 Stk. 1 (mål)","Godkendt","Der er tale om statsligt eller kommunalt fastsatmål, som overstiger væsentlighedsgrænsen og ligger uden for den ordinære driftsaktivitet."]
["hofor vand koebenhavn as  ","Drikkevand","v091","Gulddysseskov",500000,0,null,"§11 Stk. 1 (mål)","Godkendt","Der er tale om statsligt eller kommunalt fastsatmål, som overstiger væsentlighedsgrænsen og ligger uden for den ordinære driftsaktivitet."]
["frederiksberg vand as  ","Drikkevand","v055","ISO certificering",null,0,1636896,"§11 Stk. 1 (mål)","Godkendt","Der er tale om statsligt eller kommunalt fastsatmål, som overstiger væsentlighedsgrænsen og ligger uden for den ordinære driftsaktivitet."]
["hofor spildevand roedovre as  ","Spildevand",null,"Jordbassin Klasse A",null,null,null,"§11 Stk. 1 (mål)","Afvist ","Overstiger ikke væsentlighedsgrænsen."]
["htk vand as  ","Drikkevand","v098","Justering af den økonomiske ramme",61500,7251,null,"§11 Stk. 1 (mål)","Godkendt","§ 14 - Der er vores vurdering, at § 14 netop skal bruges i situationer, hvor et selskab går fra at købe vand af et andet vandselskab, til selv af indvinde vand. Det er derfor vores vurdering, at jeres aktivitet er ændret væsentligt."]
["hofor spildevand koebenhavn as  ","Spildevand","s045","Klimasikring",0,859049,null,"§11 Stk. 1 (mål)","Godkendt","Der er tale om statsligt eller kommunalt fastsatmål, som overstiger væsentlighedsgrænsen og ligger uden for den ordinære driftsaktivitet."]
["aarhus vand as  ","Spildevand","s110","Klimaunderstøttende tiltag",2493390,2261173,null,"§11 Stk. 1 (mål)","Godkendt","Der er tale om statsligt eller kommunalt fastsatmål, som overstiger væsentlighedsgrænsen og ligger uden for den ordinære driftsaktivitet."]
["hofor spildevand koebenhavn as  ","Spildevand","s045","Masterplaner",4667264,0,null,"§11 Stk. 1 (mål)","Godkendt","Der er tale om statsligt eller kommunalt fastsatmål, som overstiger væsentlighedsgrænsen og ligger uden for den ordinære driftsaktivitet."]
["fors spildevand roskilde as  ","Spildevand","s080","Milen",0,1585723,null,"§11 Stk. 1 (mål)","Godkendt","Der er tale om statsligt eller kommunalt fastsatmål, som overstiger væsentlighedsgrænsen og ligger uden for den ordinære driftsaktivitet."]
["trefor vand as  ","Drikkevand","v188","Ny drikkevandsbekendtgørelse",771339,0,null,"§11 Stk. 1 (mål)","Godkendt","Der er tale om statsligt eller kommunalt fastsatmål, som overstiger væsentlighedsgrænsen og ligger uden for den ordinære driftsaktivitet."]
["gribvand spildevand as  ","Spildevand",null,"Ny persondatalovgivning (GDPR)",null,null,null,"§11 Stk. 1 (mål)","Afvist ","Opfylder ikke krav for tillæg."]
["kerteminde forsyning vand as  ","Drikkevand","v113","Nye regler for kvalitetskrav af vand",280463,74938,null,"§11 Stk. 1 (mål)","Godkendt","Der er tale om statsligt eller kommunalt fastsatmål, som overstiger væsentlighedsgrænsen og ligger uden for den ordinære driftsaktivitet."]
["vestforsyning spildevand as  ","Spildevand",null,"Nyt overløbsbygværk",null,null,null,"§11 Stk. 1 (mål)","Afvist ","Væsentlighedhedsgrænsen er ikke opfyldt."]
["andelsselskabet strandhuse nr bjert vandvaerk  ","Drikkevand","v009","Nyt vej-T i Nr. Bjert",0,4482,null,"§11 Stk. 1 (mål)","Godkendt","Der er tale om statsligt eller kommunalt fastsatmål, som overstiger væsentlighedsgrænsen og ligger uden for den ordinære driftsaktivitet."]
["verdo vand as  ","Drikkevand",null,"Oust Mølle Folkeskov",null,null,null,"§11 Stk. 1 (mål)","Afvist ","Der kan ikke gives tillæg på baggrund af omkostninger, der er afholdt i 2016, da tillæg gives på baggrund af omkostninger afholdt i det forudgående kalenderår."]
["biofos spildevandscenter avedoere as  ","Spildevand","s009","Påbud om adskillelse af restprodukter",0,49233,484228,"§11 Stk. 1 (mål)","Godkendt","Der er tale om statsligt eller kommunalt fastsatmål, som overstiger væsentlighedsgrænsen og ligger uden for den ordinære driftsaktivitet."]
["frederikssund vand as  ","Drikkevand","v058","Påbud om håndtering af DMS forurening",1398386,0,null,"§11 Stk. 1 (mål)","Godkendt","Der er tale om statsligt eller kommunalt fastsatmål, som overstiger væsentlighedsgrænsen og ligger uden for den ordinære driftsaktivitet."]
["ringkoebing skjern vand as  ","Drikkevand","v153","Registrering af historiske ledninger",109373,0,null,"§11 Stk. 1 (mål)","Godkendt","Der er tale om statsligt eller kommunalt fastsatmål, som overstiger væsentlighedsgrænsen og ligger uden for den ordinære driftsaktivitet."]
["vandscenter syd as","Spildevand",null,"Regnvandsbassin og Klimaklar Skibhusvej",null,null,null,"§11 Stk. 1 (mål)","Afvist ","Væsentlighedhedsgrænsen er ikke opfyldt."]
["kalundborg overfladevand as  ","Drikkevand","v111","Rentvandsbeholder  element",null,0,419924,"§11 Stk. 1 (mål)","Godkendt"]
["aarhus vand as  ","Spildevand","s110","Returpumpning",352892,0,null,"§11 Stk. 1 (mål)","Godkendt","Der er tale om statsligt eller kommunalt fastsatmål, som overstiger væsentlighedsgrænsen og ligger uden for den ordinære driftsaktivitet."]
["ringsted spildevand as  ","Spildevand","s079","Rottebekæmpelse",1108924,194724,null,"§11 Stk. 1 (mål)","Godkendt","Der er tale om statsligt eller kommunalt fastsatmål, som overstiger væsentlighedsgrænsen og ligger uden for den ordinære driftsaktivitet."]
["hofor vand broenby as","Drikkevand",null,"Sektionering",null,null,null,"§11 Stk. 1 (mål)","Afvist ","Væsentlighedhedsgrænsen er ikke opfyldt."]
["horsens vand as  ","Spildevand","s048","Separatkloakering",84279,1996507,null,"§11 Stk. 1 (mål)","Godkendt","Der er tale om statsligt eller kommunalt fastsatmål, som overstiger væsentlighedsgrænsen og ligger uden for den ordinære driftsaktivitet."]
["vejle spildevand as  ","Spildevand",null,"Separatkloakering",null,null,null,"§11 Stk. 1 (mål)","Afvist ","Væsentlighedhedsgrænsen er ikke opfyldt."]
["ringsted spildevand as  ","Spildevand","s079","Separatkloakering 2017 og 2018",0,1027314,null,"§11 Stk. 1 (mål)","Godkendt","Der er tale om statsligt eller kommunalt fastsatmål, som overstiger væsentlighedsgrænsen og ligger uden for den ordinære driftsaktivitet."]
["soenderborg spildevandsforsyning as  ","Spildevand","s093","Separatkloakeringer",0,3026988,null,"§11 Stk. 1 (mål)","Godkendt","Der er tale om statsligt eller kommunalt fastsatmål, som overstiger væsentlighedsgrænsen og ligger uden for den ordinære driftsaktivitet."]
["toender spildevand as  ","Spildevand","s096","Separatkloakeringsprojekter",413720,170264,null,"§11 Stk. 1 (mål)","Godkendt","Der er tale om statsligt eller kommunalt fastsatmål, som overstiger væsentlighedsgrænsen og ligger uden for den ordinære driftsaktivitet."]
["arwos spildevand as  ","Spildevand",null,"Separering",null,null,null,"§11 Stk. 1 (mål)","Afvist ","Væsentlighedhedsgrænsen er ikke opfyldt."]
["energi viborg vand as  ","Spildevand","s014","Separering",36584,549834,null,"§11 Stk. 1 (mål)","Godkendt","Der er tale om statsligt eller kommunalt fastsatmål, som overstiger væsentlighedsgrænsen og ligger uden for den ordinære driftsaktivitet."]
["skanderborg forsyningsvirksomhed as  ","Spildevand","s085","Separering",0,2025311,null,"§11 Stk. 1 (mål)","Godkendt","Der er tale om statsligt eller kommunalt fastsatmål, som overstiger væsentlighedsgrænsen og ligger uden for den ordinære driftsaktivitet."]
["nk vand as  ","Drikkevand",null,"Sikring af boringer på land for oversvømmelse",null,null,null,"§11 Stk. 1 (mål)","Afvist ","Væsentlighedhedsgrænsen er ikke opfyldt."]
["kalundborg overfladevand as  ","Drikkevand","v111","Skyllevandsbehandling, inkl. UV-filter mv., Mek./EL",null,0,616368,"§11 Stk. 1 (mål)","Godkendt"]
["hilleroed spildevand as  ","Spildevand","s039","Skærpede udlederkrav",662325,0,null,"§11 Stk. 1 (mål)","Godkendt","Opfylder betingerne for tillæg."]
["aarhus vand as  ","Spildevand","s110","Slambortskaffelse",839203,0,null,"§11 Stk. 1 (mål)","Godkendt","Der er tale om statsligt eller kommunalt fastsatmål, som overstiger væsentlighedsgrænsen og ligger uden for den ordinære driftsaktivitet."]
["kalundborg overfladevand as  ","Drikkevand","v111","SRO-anlæg, vandværk",null,0,213518,"§11 Stk. 1 (mål)","Godkendt"]
["aarhus vand as  ","Drikkevand","v220","Strukturplan",0,703291,null,"§11 Stk. 1 (mål)","Godkendt","Der er tale om statsligt eller kommunalt fastsatmål, som overstiger væsentlighedsgrænsen og ligger uden for den ordinære driftsaktivitet."]
["ringkoebing skjern spildevand as  ","Spildevand","s077","TV inspektion af historiske ledninger",612390,0,null,"§11 Stk. 1 (mål)","Godkendt","Der er tale om statsligt eller kommunalt fastsatmål, som overstiger væsentlighedsgrænsen og ligger uden for den ordinære driftsaktivitet."]
["loekken vandvaerk  ","Drikkevand","v130","Udtagning af ekstra analyser",77763,0,null,"§11 Stk. 1 (mål)","Godkendt","Der er tale om statsligt eller kommunalt fastsatmål, som overstiger væsentlighedsgrænsen og ligger uden for den ordinære driftsaktivitet."]
["ikast brande spildevand as  ","Spildevand",null,"Uhre og Hampen samt Pårup og Myl. Erichsens Vej",null,null,null,"§11 Stk. 1 (mål)","Afvist ","Overstiger ikke væsentlighedsgrænsen."]
["vandcenter syd as  ","Drikkevand",null,"UV behandling",null,null,null,"§11 Stk. 1 (mål)","Afvist ","Væsentlighedhedsgrænsen er ikke opfyldt."]
["broager vandvaerk amba  ","Drikkevand","v033","Vandsamarbejde - grundvandsbeskyttelse",92804,0,null,"§11 Stk. 1 (mål)","Godkendt","Der er tale om statsligt eller kommunalt fastsatmål, som overstiger væsentlighedsgrænsen og ligger uden for den ordinære driftsaktivitet."]
["soenderborg vandforsyning as  ","Drikkevand","v181","Vandsamarbejde - grundvandsbeskyttelse",433938,0,null,"§11 Stk. 1 (mål)","Godkendt","Der er tale om statsligt eller kommunalt fastsatmål, som overstiger væsentlighedsgrænsen og ligger uden for den ordinære driftsaktivitet."]
["sydals oest vandforsyning  ","Drikkevand","v180","Vandsamarbejde, Sønderborg",61021,0,null,"§11 Stk. 1 (mål)","Godkendt","Der er tale om statsligt eller kommunalt fastsatmål, som overstiger væsentlighedsgrænsen og ligger uden for den ordinære driftsaktivitet."]
["hofor vand hvidovre as  ","Drikkevand",null,"Øget kontrol grundet pesticider",null,null,null,"§11 Stk. 1 (mål)","Afvist ","Det er vores vurdering, at omkostningen ikke vedrører en aktivitet til opfyldelse af de nye krav i drikkevandsbekendtgørelsen (BEK nr. 1068 af 23. august 2018), men at omkostningen er en følge af den konstaterede forurening."]

{"sheet":"§ 11 stk. 2 (ledningsomlægning)","index":2,"n_rows":30,"n_cols":10,"rows_kept":30,"cut":false,"hidden":false,"merged":[]}
["Selskab","Forsyningsart","FS ID","Beskrivelse","Driftsomkostninger","Anlægsomkostninger","Engangstillæg","Type:  §11 Stk. 1 (mål), §11, Stk. 2 (ledningsomlægning), §11, stk. 4 (udvidelse), §11 stk. 5 (medfinansiering), §11, stk. 6 (sup. Investering), §11, stk. 9 (vejbidrag), §13, stk. 2 (periodevise), §31, stk. 7 (vandindvinding)","Godkendt/afvist","Grund til godkendelse/ afvisning"]
["alleroed spildevand as  ","Spildevand","s002","Flytning af forsyningsledninger",0,54301,null,"§11, Stk. 2 (ledningsomlægning)","Godkendt","Flytningen af jeres forsynings ledninger er en følge af arealejers retmæssige råderet over arealet, og at jeres anlægsomkostninger har været nødvendige i forbindelse med flytningen."]
["arwos spildevand as  ","Spildevand","s004","Fladhøjparken & Hærvejsskolen",0,5230,null,"§11, Stk. 2 (ledningsomlægning)","Godkendt","Flytningen af jeres forsynings ledninger er en følge af arealejers retmæssige råderet over arealet, og at jeres anlægsomkostninger har været nødvendige i forbindelse med flytningen."]
["billund spildevand as  ","Spildevand","s007","Flytning af ledninger ved Lego House",0,5190,null,"§11, Stk. 2 (ledningsomlægning)","Godkendt","Flytningen af jeres forsynings ledninger er en følge af arealejers retmæssige råderet over arealet, og at jeres anlægsomkostninger har været nødvendige i forbindelse med flytningen."]
["bluekolding spildevand as  ","Spildevand","s058","Flytning af ledninger ved Gl. Strandvej",0,18238,null,"§11, Stk. 2 (ledningsomlægning)","Godkendt","Flytningen af jeres forsynings ledninger er en følge af arealejers retmæssige råderet over arealet, og at jeres anlægsomkostninger har været nødvendige i forbindelse med flytningen."]
["din forsyning vand as  ","Drikkevand","v044","Flytning af ledninger",0,44994,null,"§11, Stk. 2 (ledningsomlægning)","Godkendt","Flytningen af jeres forsynings ledninger er en følge af arealejers retmæssige råderet over arealet, og at jeres anlægsomkostninger har været nødvendige i forbindelse med flytningen."]
["forsyning helsingoer spildevand as  ","Spildevand","s021","Flytning af ledninger i 2018",0,166307,null,"§11, Stk. 2 (ledningsomlægning)","Godkendt","Flytningen af jeres forsynings ledninger er en følge af arealejers retmæssige råderet over arealet, og at jeres anlægsomkostninger har været nødvendige i forbindelse med flytningen."]
["ffv spildevand as  ","Spildevand",null,"Udskiftning af brønddæksler",null,null,null,"§11, Stk. 2 (ledningsomlægning)","Afvist ","Opfylder ikke krav for tillæg."]
["gentofte spildevand as  ","Spildevand","s028","Vilhelmdalsløbet og Tuborg Syd",0,115261,null,"§11, Stk. 2 (ledningsomlægning)","Godkendt","Flytningen af jeres forsynings ledninger er en følge af arealejers retmæssige råderet over arealet, og at jeres anlægsomkostninger har været nødvendige i forbindelse med flytningen."]
["gladsaxe spildevand as  ","Spildevand","s029","Vilhelmdalsløbet omlægges",0,116990,null,"§11, Stk. 2 (ledningsomlægning)","Godkendt","Flytningen af jeres forsynings ledninger er en følge af arealejers retmæssige råderet over arealet, og at jeres anlægsomkostninger har været nødvendige i forbindelse med flytningen."]
["grindsted vandvaerk amba  ","Drikkevand","v069","Morsbøl - omlægning af vandledning",0,3113,null,"§11, Stk. 2 (ledningsomlægning)","Godkendt","Flytningen af jeres forsynings ledninger er en følge af arealejers retmæssige råderet over arealet, og at jeres anlægsomkostninger har været nødvendige i forbindelse med flytningen."]
["haderslev vand as  ","Drikkevand","v071","Omkørselsvej - Chr. X's Vej",0,47185,null,"§11, Stk. 2 (ledningsomlægning)","Godkendt","Flytningen af jeres forsynings ledninger er en følge af arealejers retmæssige råderet over arealet, og at jeres anlægsomkostninger har været nødvendige i forbindelse med flytningen."]
["hofor spildevand hvidovre as  ","Spildevand","s044","Avedøre Tværvej",0,110563,null,"§11, Stk. 2 (ledningsomlægning)","Godkendt","Flytningen af jeres forsynings ledninger er en følge af arealejers retmæssige råderet over arealet, og at jeres anlægsomkostninger har været nødvendige i forbindelse med flytningen."]
["hofor spildevand koebenhavn as  ","Spildevand","s045","Vilhelmdalsløbet og Reventlowsgade",0,219974,null,"§11, Stk. 2 (ledningsomlægning)","Godkendt","Flytningen af jeres forsynings ledninger er en følge af arealejers retmæssige råderet over arealet, og at jeres anlægsomkostninger har været nødvendige i forbindelse med flytningen."]
["hofor vand hvidovre as  ","Drikkevand","v090","Avedøre Tværvej",0,5921,null,"§11, Stk. 2 (ledningsomlægning)","Godkendt","Flytningen af jeres forsynings ledninger er en følge af arealejers retmæssige råderet over arealet, og at jeres anlægsomkostninger har været nødvendige i forbindelse med flytningen."]
["hofor vand koebenhavn as  ","Drikkevand","v091","Flytning af forsyningsledninger",0,285576,null,"§11, Stk. 2 (ledningsomlægning)","Godkendt","Flytningen af jeres forsynings ledninger er en følge af arealejers retmæssige råderet over arealet, og at jeres anlægsomkostninger har været nødvendige i forbindelse med flytningen."]
["lolland vand as  ","Drikkevand","v125","Afkørsel 48",0,7509,null,"§11, Stk. 2 (ledningsomlægning)","Godkendt","Flytningen af jeres forsynings ledninger er en følge af arealejers retmæssige råderet over arealet, og at jeres anlægsomkostninger har været nødvendige i forbindelse med flytningen."]
["lyngby taarbaek vand as  ","Drikkevand","v126","Omlægning af ledninger",0,12671,null,"§11, Stk. 2 (ledningsomlægning)","Godkendt","Flytningen af jeres forsynings ledninger er en følge af arealejers retmæssige råderet over arealet, og at jeres anlægsomkostninger har været nødvendige i forbindelse med flytningen."]
["nk spildevand as  ","Spildevand","s072","Banedanmarks Femern Bælt-projekt",0,11474,null,"§11, Stk. 2 (ledningsomlægning)","Godkendt","Flytningen af jeres forsynings ledninger er en følge af arealejers retmæssige råderet over arealet, og at jeres anlægsomkostninger har været nødvendige i forbindelse med flytningen."]
["nk vand as  ","Drikkevand","v137","Flytning af forsyningsledninger",0,5310,140452,"§11, Stk. 2 (ledningsomlægning)","Godkendt","Flytningen af jeres forsynings ledninger er en følge af arealejers retmæssige råderet over arealet, og at jeres anlægsomkostninger har været nødvendige i forbindelse med flytningen."]
["noerre alslev vandvaerk  ","Drikkevand","v143","Baneændring - Smedevej",0,3983,null,"§11, Stk. 2 (ledningsomlægning)","Godkendt","Flytningen af jeres forsynings ledninger er en følge af arealejers retmæssige råderet over arealet, og at jeres anlægsomkostninger har været nødvendige i forbindelse med flytningen."]
["skanderborg forsyningsvirksomhed as  ","Drikkevand","v166","Flytning af ledninger E45",0,1629,null,"§11, Stk. 2 (ledningsomlægning)","Godkendt","Flytningen af jeres forsynings ledninger er en følge af arealejers retmæssige råderet over arealet, og at jeres anlægsomkostninger har været nødvendige i forbindelse med flytningen."]
["ulsted aalebaek vandvaerk amba  ","Drikkevand","v195","Etablering af nyt kloaknet i forsyningsområde",null,0,722291,"§11, Stk. 2 (ledningsomlægning)","Godkendt","Flytningen af jeres forsynings ledninger er en følge af arealejers retmæssige råderet over arealet, og at jeres anlægsomkostninger har været nødvendige i forbindelse med flytningen."]
["vandcenter syd as  ","Drikkevand","v199","Letbane",0,30322,null,"§11, Stk. 2 (ledningsomlægning)","Godkendt","Flytningen af jeres forsynings ledninger er en følge af arealejers retmæssige råderet over arealet, og at jeres anlægsomkostninger har været nødvendige i forbindelse med flytningen."]
["vandcenter syd as  ","Spildevand","s099","Odense Letbane og TBT projekt",0,229056,null,"§11, Stk. 2 (ledningsomlægning)","Godkendt","Flytningen af jeres forsynings ledninger er en følge af arealejers retmæssige råderet over arealet, og at jeres anlægsomkostninger har været nødvendige i forbindelse med flytningen."]
["vandmiljoe randers as  ","Spildevand","s075","Gæsteprincip",420,71099,null,"§11, Stk. 2 (ledningsomlægning)","Godkendt","Flytningen af jeres forsynings ledninger er en følge af arealejers retmæssige råderet over arealet, og at jeres anlægsomkostninger har været nødvendige i forbindelse med flytningen."]
["verdo vand as  ","Drikkevand","v206","Viborgvej",0,27237,null,"§11, Stk. 2 (ledningsomlægning)","Godkendt","Flytningen af jeres forsynings ledninger er en følge af arealejers retmæssige råderet over arealet, og at jeres anlægsomkostninger har været nødvendige i forbindelse med flytningen."]
["vordingborg vand as  ","Drikkevand","v212","Sankt Clementsvej Banekrydsning",0,8193,null,"§11, Stk. 2 (ledningsomlægning)","Godkendt","Flytningen af jeres forsynings ledninger er en følge af arealejers retmæssige råderet over arealet, og at jeres anlægsomkostninger har været nødvendige i forbindelse med flytningen."]
["aarhus vand as  ","Drikkevand","v220","Omlægninger",0,54652,null,"§11, Stk. 2 (ledningsomlægning)","Godkendt","Flytningen af jeres forsynings ledninger er en følge af arealejers retmæssige råderet over arealet, og at jeres anlægsomkostninger har været nødvendige i forbindelse med flytningen."]
["aarhus vand as  ","Spildevand","s110","Omlægninger, spildevand",0,42703,null,"§11, Stk. 2 (ledningsomlægning)","Godkendt","Flytningen af jeres forsynings ledninger er en følge af arealejers retmæssige råderet over arealet, og at jeres anlægsomkostninger har været nødvendige i forbindelse med flytningen."]

{"sheet":"§ 11 stk. 4 (udvidelse)","index":3,"n_rows":112,"n_cols":10,"rows_kept":112,"cut":false,"hidden":false,"merged":[]}
["Selskab","Forsyningsart","FS ID","Beskrivelse","Driftsomkostninger","Anlægsomkostninger","Engangstillæg","Type:  §11 Stk. 1 (mål), §11, Stk. 2 (ledningsomlægning), §11, stk. 4 (udvidelse), §11 stk. 5 (medfinansiering), §11, stk. 6 (sup. Investering), §11, stk. 9 (vejbidrag), §13, stk. 2 (periodevise), §31, stk. 7 (vandindvinding)","Godkendt/afvist","Grund til godkendelse/ afvisning"]
["afloeb ballerup as  ","Spildevand","s001","Brønde, stik og ledninger",38680,23550,null,"§11, stk. 4 (udvidelse)","Godkendt","Godtgjort at deres forsyningsområde eller vandmængder er udvidet, som følge af udvidelse af forsyningsområde eller håndterede vandmængder"]
["alleroed spildevand as  ","Spildevand","s002","Udvidelse af forsyningsområdet",255895,30053,null,"§11, stk. 4 (udvidelse)","Godkendt","Godtgjort at deres forsyningsområde eller vandmængder er udvidet, som følge af udvidelse af forsyningsområde eller håndterede vandmængder"]
["andelsselskabet stenloese vandvaerk  ","Drikkevand","v008","Udvidelse med seks forsyningsområder",0,6437,null,"§11, stk. 4 (udvidelse)","Godkendt","Opfylder betingerne for tillæg."]
["arwos spildevand as  ","Spildevand","s004","Udvidelse af forsyningsområdet",0,259880,67359,"§11, stk. 4 (udvidelse)","Godkendt","Godtgjort at deres forsyningsområde eller vandmængder er udvidet, som følge af udvidelse af forsyningsområde eller håndterede vandmængder"]
["arwos vand as  ","Drikkevand","v015","Byggemodninger og nye tilslutninger",0,90801,114056,"§11, stk. 4 (udvidelse)","Godkendt","Godtgjort at deres forsyningsområde eller vandmængder er udvidet, som følge af udvidelse af forsyningsområde eller håndterede vandmængder"]
["billund drikkevand as  ","Drikkevand","v020","Byggemodninger",19063,17628,null,"§11, stk. 4 (udvidelse)","Godkendt","Godtgjort at deres forsyningsområde eller vandmængder er udvidet, som følge af udvidelse af forsyningsområde eller håndterede vandmængder"]
["billund spildevand as  ","Spildevand","s007","Byggemodninger",9328,142242,null,"§11, stk. 4 (udvidelse)","Godkendt","Godtgjort at deres forsyningsområde eller vandmængder er udvidet, som følge af udvidelse af forsyningsområde eller håndterede vandmængder"]
["bornholms spildevand as  ","Spildevand","s010","Nye tilslutninger",0,58981,null,"§11, stk. 4 (udvidelse)","Godkendt","Godtgjort at deres forsyningsområde eller vandmængder er udvidet, som følge af udvidelse af forsyningsområde eller håndterede vandmængder"]
["din forsyning spildevand as  ","Spildevand","s015","Byggemodninger og nye tilslutninger",118443,1030155.8,42975.6,"§11, stk. 4 (udvidelse)","Godkendt","Godtgjort at deres forsyningsområde eller vandmængder er udvidet, som følge af udvidelse af forsyningsområde eller håndterede vandmængder"]
["din forsyning spildevand as  ","Spildevand","s015","Glycom",3720226,0,null,"§11, stk. 4 (udvidelse)","Godkendt","Godtgjort at deres forsyningsområde eller vandmængder er udvidet, som følge af udvidelse af forsyningsområde eller håndterede vandmængder"]
["din forsyning vand as  ","Drikkevand","v044","Byggemodninger og nye tilslutninger",206794,239883,null,"§11, stk. 4 (udvidelse)","Godkendt","Godtgjort at deres forsyningsområde eller vandmængder er udvidet, som følge af udvidelse af forsyningsområde eller håndterede vandmængder"]
["egedal spildevand as  ","Spildevand","s013","Etablering af nye stik i 2017 og 2018",209943,65486,null,"§11, stk. 4 (udvidelse)","Godkendt","Godtgjort at deres forsyningsområde eller vandmængder er udvidet, som følge af udvidelse af forsyningsområde eller håndterede vandmængder"]
["energi viborg vand as  ","Spildevand","s014","Byggemodninger",37346,194231,null,"§11, stk. 4 (udvidelse)","Godkendt","Godtgjort at deres forsyningsområde eller vandmængder er udvidet, som følge af udvidelse af forsyningsområde eller håndterede vandmængder"]
["fanoe vand as  ","Spildevand","s016","Nye tilslutninger",28908,52701,null,"§11, stk. 4 (udvidelse)","Godkendt","Godtgjort at deres forsyningsområde eller vandmængder er udvidet, som følge af udvidelse af forsyningsområde eller håndterede vandmængder"]
["fanoe vand as  ","Drikkevand","v045","Nye tilslutninger",30964,16487,null,"§11, stk. 4 (udvidelse)","Godkendt","Godtgjort at deres forsyningsområde eller vandmængder er udvidet, som følge af udvidelse af forsyningsområde eller håndterede vandmængder"]
["faxe spildevand as  ","Spildevand","s018","Byggemodninger og nye tilslutninger",97310,240779,null,"§11, stk. 4 (udvidelse)","Godkendt","Godtgjort at deres forsyningsområde eller vandmængder er udvidet, som følge af udvidelse af forsyningsområde eller håndterede vandmængder"]
["faxe vandforsyning as  ","Drikkevand","v047","Forøgelse af salg til storkunde",553030,0,null,"§11, stk. 4 (udvidelse)","Godkendt","Godtgjort at deres forsyningsområde eller vandmængder er udvidet, som følge af udvidelse af forsyningsområde eller håndterede vandmængder"]
["faxe vandforsyning as  ","Drikkevand","v047","Nye forsyningsområder",479394,82039,null,"§11, stk. 4 (udvidelse)","Godkendt","Godtgjort at deres forsyningsområde eller vandmængder er udvidet, som følge af udvidelse af forsyningsområde eller håndterede vandmængder"]
["ffv spildevand as  ","Spildevand","s020","Byggemodninger og overtagelse af regnvandshåndtering",0,42610,null,"§11, stk. 4 (udvidelse)","Godkendt","Godtgjort at deres forsyningsområde eller vandmængder er udvidet, som følge af udvidelse af forsyningsområde eller håndterede vandmængder"]
["fors spildevand holbaek as  ","Spildevand","s047","Byggemodninger",0,81607,null,"§11, stk. 4 (udvidelse)","Godkendt","Godtgjort at deres forsyningsområde eller vandmængder er udvidet, som følge af udvidelse af forsyningsområde eller håndterede vandmængder"]
["fredericia spildevand og energi as  ","Spildevand","s023","Udvidelse af forsyningsområdet",121077,16025,null,"§11, stk. 4 (udvidelse)","Godkendt","Godtgjort at deres forsyningsområde eller vandmængder er udvidet, som følge af udvidelse af forsyningsområde eller håndterede vandmængder"]
["frederikshavn vand as  ","Drikkevand","v057","Byggemodninger",27215,24551,null,"§11, stk. 4 (udvidelse)","Godkendt","Godtgjort at deres forsyningsområde eller vandmængder er udvidet, som følge af udvidelse af forsyningsområde eller håndterede vandmængder"]
["frederikshavn vand as  ","Drikkevand","v057","Overtagelse af Voerså Vandværk",150525,102754,86741,"§11, stk. 4 (udvidelse)","Godkendt","Godtgjort at deres forsyningsområde eller vandmængder er udvidet, som følge af udvidelse af forsyningsområde eller håndterede vandmængder"]
["frederikssund spildevand as  ","Spildevand","s026","Byggemodninger, nykloakeringer og nye tilslutninger",144761,261570,null,"§11, stk. 4 (udvidelse)","Godkendt","Godtgjort at deres forsyningsområde eller vandmængder er udvidet, som følge af udvidelse af forsyningsområde eller håndterede vandmængder"]
["frederikssund vand as  ","Drikkevand","v058","Udvidelse af forsyningsområdet",49269,55963,null,"§11, stk. 4 (udvidelse)","Godkendt","Godtgjort at deres forsyningsområde eller vandmængder er udvidet, som følge af udvidelse af forsyningsområde eller håndterede vandmængder"]
["furesoe spildevand as  ","Spildevand","s027","Stiketablering 2017 og 2018",72868,11269,null,"§11, stk. 4 (udvidelse)","Godkendt","Godtgjort at deres forsyningsområde eller vandmængder er udvidet, som følge af udvidelse af forsyningsområde eller håndterede vandmængder"]
["furesoe vandforsyning amba  ","Drikkevand","v059","Udvidelse af forsyningsområdet",0,24525,null,"§11, stk. 4 (udvidelse)","Godkendt","Godtgjort at deres forsyningsområde eller vandmængder er udvidet, som følge af udvidelse af forsyningsområde eller håndterede vandmængder"]
["galten vandvaerk  ","Drikkevand","v060","Nr. Vissing",0,12893,null,"§11, stk. 4 (udvidelse)","Godkendt","Godtgjort at deres forsyningsområde eller vandmængder er udvidet, som følge af udvidelse af forsyningsområde eller håndterede vandmængder"]
["galten vandvaerk  ","Drikkevand","v060","Ny udstykning, Ellens Høj",0,3752,null,"§11, stk. 4 (udvidelse)","Godkendt","Godtgjort at deres forsyningsområde eller vandmængder er udvidet, som følge af udvidelse af forsyningsområde eller håndterede vandmængder"]
["gentofte vand as  ","Drikkevand","v061","Ny udstykning",0,5982,null,"§11, stk. 4 (udvidelse)","Godkendt","Godtgjort at deres forsyningsområde eller vandmængder er udvidet, som følge af udvidelse af forsyningsområde eller håndterede vandmængder"]
["gladsaxe spildevand as  ","Spildevand","s029","Nye tilslutninger",70114,0,null,"§11, stk. 4 (udvidelse)","Godkendt","Godtgjort at deres forsyningsområde eller vandmængder er udvidet, som følge af udvidelse af forsyningsområde eller håndterede vandmængder"]
["gladsaxe vand as  ","Drikkevand","v065","Lyngen og Pilegårdsvej",96396,4061,null,"§11, stk. 4 (udvidelse)","Godkendt","Godtgjort at deres forsyningsområde eller vandmængder er udvidet, som følge af udvidelse af forsyningsområde eller håndterede vandmængder"]
["glostrup spildevand as  ","Spildevand","s030","Byggemodninger i 2018",520,3995,null,"§11, stk. 4 (udvidelse)","Godkendt","Godtgjort at deres forsyningsområde eller vandmængder er udvidet, som følge af udvidelse af forsyningsområde eller håndterede vandmængder"]
["glostrup vand as  ","Drikkevand","v067","Byggemodninger",662,776,null,"§11, stk. 4 (udvidelse)","Godkendt","Godtgjort at deres forsyningsområde eller vandmængder er udvidet, som følge af udvidelse af forsyningsområde eller håndterede vandmængder"]
["glostrup vand as  ","Drikkevand","v067","Justering af økonomisk ramme",579396,0,null,"§11, stk. 4 (udvidelse)","Godkendt","Godtgjort at deres forsyningsområde eller vandmængder er udvidet, som følge af udvidelse af forsyningsområde eller håndterede vandmængder"]
["greve spildevand as  ","Spildevand","s031","Byggemodninger",0,455245,null,"§11, stk. 4 (udvidelse)","Godkendt","Godtgjort at deres forsyningsområde eller vandmængder er udvidet, som følge af udvidelse af forsyningsområde eller håndterede vandmængder"]
["greve vandvaerk amba  ","Drikkevand","v068","Udvidelse af forsyningsområdet",95592,19168,null,"§11, stk. 4 (udvidelse)","Godkendt","Godtgjort at deres forsyningsområde eller vandmængder er udvidet, som følge af udvidelse af forsyningsområde eller håndterede vandmængder"]
["grindsted renseanlaeg as  ","Spildevand","s112","Dupont, ny kunde",1288825,428015,null,"§11, stk. 4 (udvidelse)","Godkendt","Godtgjort at deres forsyningsområde eller vandmængder er udvidet, som følge af udvidelse af forsyningsområde eller håndterede vandmængder"]
["grindsted vandvaerk amba  ","Drikkevand","v069","Ny udstykning - Morsbøl Søvej",0,2386,null,"§11, stk. 4 (udvidelse)","Godkendt","Godtgjort at deres forsyningsområde eller vandmængder er udvidet, som følge af udvidelse af forsyningsområde eller håndterede vandmængder"]
["haderslev spildevand as  ","Spildevand","s034","Byggemodninger, nye tilslutninger og ny-kloakeringer",106792,1076613,null,"§11, stk. 4 (udvidelse)","Godkendt","Godtgjort at deres forsyningsområde eller vandmængder er udvidet, som følge af udvidelse af forsyningsområde eller håndterede vandmængder"]
["haderslev vand as  ","Drikkevand","v071","Nye tilslutninger",33979,73488,null,"§11, stk. 4 (udvidelse)","Godkendt","Godtgjort at deres forsyningsområde eller vandmængder er udvidet, som følge af udvidelse af forsyningsområde eller håndterede vandmængder"]
["hilleroed spildevand as  ","Spildevand","s039","Udvidelse af forsyningsområdet",144414,121535,null,"§11, stk. 4 (udvidelse)","Godkendt","Godtgjort at deres forsyningsområde eller vandmængder er udvidet, som følge af udvidelse af forsyningsområde eller håndterede vandmængder"]
["hilleroed vand as  ","Drikkevand","v081","Nye tilslutninger",128402,0,null,"§11, stk. 4 (udvidelse)","Godkendt","Godtgjort at deres forsyningsområde eller vandmængder er udvidet, som følge af udvidelse af forsyningsområde eller håndterede vandmængder"]
["hjallerup vandforsyning  ","Drikkevand","v083","Udvidelse af forsyningsområdet",59706,0,null,"§11, stk. 4 (udvidelse)","Godkendt","Godtgjort at deres forsyningsområde eller vandmængder er udvidet, som følge af udvidelse af forsyningsområde eller håndterede vandmængder"]
["hjoerring vandselskab as  ","Spildevand","s040","Byggemodninger og nyt tilslutninger",105486,268358,null,"§11, stk. 4 (udvidelse)","Godkendt","Godtgjort at deres forsyningsområde eller vandmængder er udvidet, som følge af udvidelse af forsyningsområde eller håndterede vandmængder"]
["hjoerring vandselskab as  ","Drikkevand","v085","Udvidelse af forsyningsområde",16698,25177,null,"§11, stk. 4 (udvidelse)","Godkendt","Godtgjort at deres forsyningsområde eller vandmængder er udvidet, som følge af udvidelse af forsyningsområde eller håndterede vandmængder"]
["hoeng vandvaerk amba  ","Drikkevand","v101","Nye tilslutninger",44201,5693,null,"§11, stk. 4 (udvidelse)","Godkendt","Godtgjort at deres forsyningsområde eller vandmængder er udvidet, som følge af udvidelse af forsyningsområde eller håndterede vandmængder"]
["hoersholm vand aps  ","Spildevand","s051","Nye tilslutninger",50411,0,null,"§11, stk. 4 (udvidelse)","Godkendt","Godtgjort at deres forsyningsområde eller vandmængder er udvidet, som følge af udvidelse af forsyningsområde eller håndterede vandmængder"]
["hofor spildevand hvidovre as  ","Spildevand","s044","Langkildevej, Hvidovre",0,6473,null,"§11, stk. 4 (udvidelse)","Godkendt","Godtgjort at deres forsyningsområde eller vandmængder er udvidet, som følge af udvidelse af forsyningsområde eller håndterede vandmængder"]
["hofor spildevand koebenhavn as  ","Spildevand","s045","Byggemodninger",0,299455,null,"§11, stk. 4 (udvidelse)","Godkendt","Godtgjort at deres forsyningsområde eller vandmængder er udvidet, som følge af udvidelse af forsyningsområde eller håndterede vandmængder"]
["hjoerring vandselskab as  ","Spildevand",null,"Håndtering af spildevandsslam og separatkloakeringer",null,null,null,"§11, stk. 4 (udvidelse)","Afvist ","Opfylder ikke krav for tillæg."]
["hofor vand koebenhavn as  ","Drikkevand","v091","Udvidelse af forsyningsområdet",0,54382,null,"§11, stk. 4 (udvidelse)","Godkendt","Godtgjort at deres forsyningsområde eller vandmængder er udvidet, som følge af udvidelse af forsyningsområde eller håndterede vandmængder"]
["horsens vand as  ","Drikkevand","v097","Udvidelse af forsyningsområde",656329,234249,null,"§11, stk. 4 (udvidelse)","Godkendt","Godtgjort at deres forsyningsområde eller vandmængder er udvidet, som følge af udvidelse af forsyningsområde eller håndterede vandmængder"]
["horsens vand as  ","Spildevand","s048","Udvidelse af forsyningsområdet",1571554,2186793,null,"§11, stk. 4 (udvidelse)","Godkendt","Godtgjort at deres forsyningsområde eller vandmængder er udvidet, som følge af udvidelse af forsyningsområde eller håndterede vandmængder"]
["htk vand as  ","Drikkevand","v098","Udvidelse af forsyningsområdet",235648,29478,null,"§11, stk. 4 (udvidelse)","Godkendt","Godtgjort at deres forsyningsområde eller vandmængder er udvidet, som følge af udvidelse af forsyningsområde eller håndterede vandmængder"]
["ikast brande spildevand as  ","Spildevand","s052","Byggemodninger i 2017 og 2018",141100,205535,null,"§11, stk. 4 (udvidelse)","Godkendt","Godtgjort at deres forsyningsområde eller vandmængder er udvidet, som følge af udvidelse af forsyningsområde eller håndterede vandmængder"]
["jyllinge vandvaerk amba  ","Drikkevand","v110","Gundsømagle nødvand",null,0,67868,"§11, stk. 4 (udvidelse)","Godkendt","Godtgjort at deres forsyningsområde eller vandmængder er udvidet, som følge af udvidelse af forsyningsområde eller håndterede vandmængder"]
["kalundborg spildevandsanlaeg as  ","Spildevand","s056","Stejlhøj",0,47150,null,"§11, stk. 4 (udvidelse)","Godkendt","Godtgjort at deres forsyningsområde eller vandmængder er udvidet, som følge af udvidelse af forsyningsområde eller håndterede vandmængder"]
["koege afloeb as  ","Spildevand","s059","Byggemodninger",0,374235,null,"§11, stk. 4 (udvidelse)","Godkendt","Godtgjort at deres forsyningsområde eller vandmængder er udvidet, som følge af udvidelse af forsyningsområde eller håndterede vandmængder"]
["koege vand as  ","Drikkevand","v116","Køge Idrætspark og Søsvinget",0,61573,null,"§11, stk. 4 (udvidelse)","Godkendt","Godtgjort at deres forsyningsområde eller vandmængder er udvidet, som følge af udvidelse af forsyningsområde eller håndterede vandmængder"]
["lyngby taarbaek spildevand as  ","Spildevand","s064","Udvidelse af forsyningsområdet",15782,139669,null,"§11, stk. 4 (udvidelse)","Godkendt","Godtgjort at deres forsyningsområde eller vandmængder er udvidet, som følge af udvidelse af forsyningsområde eller håndterede vandmængder"]
["lyngby taarbaek vand as  ","Drikkevand","v126","Stikledninger for 2017 og 2018",62178,49713,null,"§11, stk. 4 (udvidelse)","Godkendt","Godtgjort at deres forsyningsområde eller vandmængder er udvidet, som følge af udvidelse af forsyningsområde eller håndterede vandmængder"]
["middelfart spildevand as  ","Spildevand","s067","Byggemodninger",414325,290585,null,"§11, stk. 4 (udvidelse)","Godkendt","Godtgjort at deres forsyningsområde eller vandmængder er udvidet, som følge af udvidelse af forsyningsområde eller håndterede vandmængder"]
["nfs spildevand as  ","Spildevand","s071","Håndteret vandmængde",80035,0,null,"§11, stk. 4 (udvidelse)","Godkendt","Godtgjort at deres forsyningsområde eller vandmængder er udvidet, som følge af udvidelse af forsyningsområde eller håndterede vandmængder"]
["nfs spildevand as  ","Spildevand","s071","Udvidelse af område, Sommerbyen",67776,4928,null,"§11, stk. 4 (udvidelse)","Godkendt","Godtgjort at deres forsyningsområde eller vandmængder er udvidet, som følge af udvidelse af forsyningsområde eller håndterede vandmængder"]
["nk spildevand as  ","Spildevand","s072","Byggemodninger",60647,107467,null,"§11, stk. 4 (udvidelse)","Godkendt","Godtgjort at deres forsyningsområde eller vandmængder er udvidet, som følge af udvidelse af forsyningsområde eller håndterede vandmængder"]
["nk vand as  ","Drikkevand","v137","Byggemodninger",53023,13132,null,"§11, stk. 4 (udvidelse)","Godkendt","Godtgjort at deres forsyningsområde eller vandmængder er udvidet, som følge af udvidelse af forsyningsområde eller håndterede vandmængder"]
["noerre alslev vandvaerk  ","Drikkevand","v143","Vandforbrug i nyt statsfængsel",34332,0,null,"§11, stk. 4 (udvidelse)","Godkendt","Godtgjort at deres forsyningsområde eller vandmængder er udvidet, som følge af udvidelse af forsyningsområde eller håndterede vandmængder"]
["nyhuse vandvaerk amba  ","Drikkevand","v141","Nye tilslutninger",3119,770,null,"§11, stk. 4 (udvidelse)","Godkendt","Godtgjort at deres forsyningsområde eller vandmængder er udvidet, som følge af udvidelse af forsyningsområde eller håndterede vandmængder"]
["odder spildevand as  ","Spildevand","s073","Udvidelse af forsyningsområdet",11345,15829,null,"§11, stk. 4 (udvidelse)","Godkendt","Godtgjort at deres forsyningsområde eller vandmængder er udvidet, som følge af udvidelse af forsyningsområde eller håndterede vandmængder"]
["odder vandvaerk amba  ","Drikkevand","v144","Udvidelse af forsyningsområdet",0,23228,null,"§11, stk. 4 (udvidelse)","Godkendt","Godtgjort at deres forsyningsområde eller vandmængder er udvidet, som følge af udvidelse af forsyningsområde eller håndterede vandmængder"]
["odsherred spildevand as  ","Spildevand","s074","Kloakering af Vig Lyng og Lille Egebjerg",0,2107759,null,"§11, stk. 4 (udvidelse)","Godkendt","Godtgjort at deres forsyningsområde eller vandmængder er udvidet, som følge af udvidelse af forsyningsområde eller håndterede vandmængder"]
["ringkoebing skjern spildevand as  ","Spildevand","s077","Udvidelse af forsyningsområdet",29587,260153,null,"§11, stk. 4 (udvidelse)","Godkendt","Godtgjort at deres forsyningsområde eller vandmængder er udvidet, som følge af udvidelse af forsyningsområde eller håndterede vandmængder"]
["ringsted spildevand as  ","Spildevand","s079","Byudvikling og nykloakering",0,1290596,null,"§11, stk. 4 (udvidelse)","Godkendt","Godtgjort at deres forsyningsområde eller vandmængder er udvidet, som følge af udvidelse af forsyningsområde eller håndterede vandmængder"]
["ringsted vand as  ","Drikkevand","v154","Byggemodninger",131783,21380,null,"§11, stk. 4 (udvidelse)","Godkendt","Godtgjort at deres forsyningsområde eller vandmængder er udvidet, som følge af udvidelse af forsyningsområde eller håndterede vandmængder"]
["rudersdal forsyning as  ","Drikkevand","v156","Byggemodning Langhaven og nye tilslutninger",127543,3193,null,"§11, stk. 4 (udvidelse)","Godkendt","Godtgjort at deres forsyningsområde eller vandmængder er udvidet, som følge af udvidelse af forsyningsområde eller håndterede vandmængder"]
["rudersdal forsyning as  ","Spildevand","s081","Byggemodninger",334225,61724,null,"§11, stk. 4 (udvidelse)","Godkendt","Godtgjort at deres forsyningsområde eller vandmængder er udvidet, som følge af udvidelse af forsyningsområde eller håndterede vandmængder"]
["ry vandvaerk  ","Drikkevand","v157","Byggemodninger",0,45636,null,"§11, stk. 4 (udvidelse)","Godkendt","Godtgjort at deres forsyningsområde eller vandmængder er udvidet, som følge af udvidelse af forsyningsområde eller håndterede vandmængder"]
["samsoe spildevand as  ","Spildevand","s082","Udvidelse af forsyningsområdet",340362,333489,null,"§11, stk. 4 (udvidelse)","Godkendt","Godtgjort at deres forsyningsområde eller vandmængder er udvidet, som følge af udvidelse af forsyningsområde eller håndterede vandmængder"]
["silkeborg spildevand as  ","Spildevand","s083","Byggemodninger",0,219890,null,"§11, stk. 4 (udvidelse)","Godkendt","Godtgjort at deres forsyningsområde eller vandmængder er udvidet, som følge af udvidelse af forsyningsområde eller håndterede vandmængder"]
["sk spildevand as  ","Spildevand","s084","Byggemodninger",2720651,0,null,"§11, stk. 4 (udvidelse)","Godkendt","Godtgjort at deres forsyningsområde eller vandmængder er udvidet, som følge af udvidelse af forsyningsområde eller håndterede vandmængder"]
["skanderborg forsyningsvirksomhed as  ","Spildevand","s085","Byggemodninger",750539,638934,null,"§11, stk. 4 (udvidelse)","Godkendt","Godtgjort at deres forsyningsområde eller vandmængder er udvidet, som følge af udvidelse af forsyningsområde eller håndterede vandmængder"]
["skanderborg forsyningsvirksomhed as  ","Drikkevand","v166","Byggemodninger",0,60930,null,"§11, stk. 4 (udvidelse)","Godkendt","Godtgjort at deres forsyningsområde eller vandmængder er udvidet, som følge af udvidelse af forsyningsområde eller håndterede vandmængder"]
["skive vand as  ","Drikkevand","v167","Overtagelse af Nordvand Vandværk",0,8300,null,"§11, stk. 4 (udvidelse)","Godkendt","Godtgjort at deres forsyningsområde eller vandmængder er udvidet, som følge af udvidelse af forsyningsområde eller håndterede vandmængder"]
["skive vand as  ","Spildevand","s086","Spildevandskloakering og byggemodning",0,88866,null,"§11, stk. 4 (udvidelse)","Godkendt","Godtgjort at deres forsyningsområde eller vandmængder er udvidet, som følge af udvidelse af forsyningsområde eller håndterede vandmængder"]
["soenderborg spildevandsforsyning as  ","Spildevand","s093","Byggemodninger og kloakering i \"åbent land\"",0,898319,null,"§11, stk. 4 (udvidelse)","Godkendt","Godtgjort at deres forsyningsområde eller vandmængder er udvidet, som følge af udvidelse af forsyningsområde eller håndterede vandmængder"]
["soenderborg vandforsyning as  ","Drikkevand","v181","Nye kunder/udstykninger",0,6244,null,"§11, stk. 4 (udvidelse)","Godkendt","Godtgjort at deres forsyningsområde eller vandmængder er udvidet, som følge af udvidelse af forsyningsområde eller håndterede vandmængder"]
["solroed spildevand as  ","Spildevand","s087","Havdrup Vest",0,69046,null,"§11, stk. 4 (udvidelse)","Godkendt","Godtgjort at deres forsyningsområde eller vandmængder er udvidet, som følge af udvidelse af forsyningsområde eller håndterede vandmængder"]
["stevns spildevand as  ","Spildevand","s089","Udvidelse af forsyningsområdet",0,105898,null,"§11, stk. 4 (udvidelse)","Godkendt","Godtgjort at deres forsyningsområde eller vandmængder er udvidet, som følge af udvidelse af forsyningsområde eller håndterede vandmængder"]
["stoevring vandvaerk amba  ","Drikkevand","v176","Udvidelse af forsyningsområdet",null,0,369056,"§11, stk. 4 (udvidelse)","Godkendt","Godtgjort at deres forsyningsområde eller vandmængder er udvidet, som følge af udvidelse af forsyningsområde eller håndterede vandmængder"]
["struer forsyning spildevand as  ","Spildevand","s090","Spildevandsplanens opfyldelse og nyt kloakopland ved Vejrum",0,162535,null,"§11, stk. 4 (udvidelse)","Godkendt","Godtgjort at deres forsyningsområde eller vandmængder er udvidet, som følge af udvidelse af forsyningsområde eller håndterede vandmængder"]
["svinninge vandvaerk  ","Drikkevand","v179","Ny udstykning Ringstedvej",0,1890,null,"§11, stk. 4 (udvidelse)","Godkendt","Godtgjort at deres forsyningsområde eller vandmængder er udvidet, som følge af udvidelse af forsyningsområde eller håndterede vandmængder"]
["toender spildevand as  ","Spildevand","s096","Kloakeringsprojekter og byggemodninger",674589,429164,null,"§11, stk. 4 (udvidelse)","Godkendt","Godtgjort at deres forsyningsområde eller vandmængder er udvidet, som følge af udvidelse af forsyningsområde eller håndterede vandmængder"]
["trefor vand as  ","Drikkevand","v188","Nye udstykninger",167358,758191,null,"§11, stk. 4 (udvidelse)","Godkendt","Godtgjort at deres forsyningsområde eller vandmængder er udvidet, som følge af udvidelse af forsyningsområde eller håndterede vandmængder"]
["tune vandvaerk amba  ","Drikkevand","v189","Nødforsyning",0,1019,null,"§11, stk. 4 (udvidelse)","Godkendt","Godtgjort at deres forsyningsområde eller vandmængder er udvidet, som følge af udvidelse af forsyningsområde eller håndterede vandmængder"]
["tune vandvaerk amba  ","Drikkevand","v189","Tilslutninger",0,3717,null,"§11, stk. 4 (udvidelse)","Godkendt","Godtgjort at deres forsyningsområde eller vandmængder er udvidet, som følge af udvidelse af forsyningsområde eller håndterede vandmængder"]
["vand ballerup as  ","Drikkevand","v197","Byggemodning Dyvelåsen og nye tilslutninger",70831,7777,null,"§11, stk. 4 (udvidelse)","Godkendt","Godtgjort at deres forsyningsområde eller vandmængder er udvidet, som følge af udvidelse af forsyningsområde eller håndterede vandmængder"]
["vandcenter syd as  ","Drikkevand","v199","Erhvervsudstykning",0,14644,null,"§11, stk. 4 (udvidelse)","Godkendt","Godtgjort at deres forsyningsområde eller vandmængder er udvidet, som følge af udvidelse af forsyningsområde eller håndterede vandmængder"]
["vandcenter syd as  ","Spildevand","s099","Nyudstykninger og byggemodninger",0,880090,null,"§11, stk. 4 (udvidelse)","Godkendt","Godtgjort at deres forsyningsområde eller vandmængder er udvidet, som følge af udvidelse af forsyningsområde eller håndterede vandmængder"]
["vandfaellesskabet nordvestsjaelland","Drikkevand",null,"Udvidelse på Knabstrup Vandværk",null,null,null,"§11, stk. 4 (udvidelse)","Godkendt","Godtgjort at deres forsyningsområde eller vandmængder er udvidet, som følge af udvidelse af forsyningsområde eller håndterede vandmængder"]
["vandmiljoe randers as  ","Spildevand","s075","Byggemodninger 2017 og 2018",20873,248628,null,"§11, stk. 4 (udvidelse)","Godkendt","Godtgjort at deres forsyningsområde eller vandmængder er udvidet, som følge af udvidelse af forsyningsområde eller håndterede vandmængder"]
["vejen spildevand  ","Spildevand","s102","Udvidelse af forsyningsområdet",0,707546,null,"§11, stk. 4 (udvidelse)","Godkendt","Godtgjort at deres forsyningsområde eller vandmængder er udvidet, som følge af udvidelse af forsyningsområde eller håndterede vandmængder"]
["vejen vand  ","Drikkevand","v205","Byggemodninger og nye tilslutninger",6437,17034,null,"§11, stk. 4 (udvidelse)","Godkendt","Godtgjort at deres forsyningsområde eller vandmængder er udvidet, som følge af udvidelse af forsyningsområde eller håndterede vandmængder"]
["vejle spildevand as  ","Spildevand","s103","Byggemodninger",1073437,643138,null,"§11, stk. 4 (udvidelse)","Godkendt","Godtgjort at deres forsyningsområde eller vandmængder er udvidet, som følge af udvidelse af forsyningsområde eller håndterede vandmængder"]
["verdo vand as  ","Drikkevand","v206","Byggemodninger",1075146,0,null,"§11, stk. 4 (udvidelse)","Godkendt","Godtgjort at deres forsyningsområde eller vandmængder er udvidet, som følge af udvidelse af forsyningsområde eller håndterede vandmængder"]
["vestforsyning spildevand as  ","Spildevand","s104","Byggemodninger og nye tilslutninger",0,439129,null,"§11, stk. 4 (udvidelse)","Godkendt","Godtgjort at deres forsyningsområde eller vandmængder er udvidet, som følge af udvidelse af forsyningsområde eller håndterede vandmængder"]
["vordingborg spildevand as  ","Spildevand","s107","Sankelmarksvej",0,6775,null,"§11, stk. 4 (udvidelse)","Godkendt","Godtgjort at deres forsyningsområde eller vandmængder er udvidet, som følge af udvidelse af forsyningsområde eller håndterede vandmængder"]
["vordingborg vand as  ","Drikkevand","v212","Udvidelse af forsyningsområdet",0,2720,null,"§11, stk. 4 (udvidelse)","Godkendt","Godtgjort at deres forsyningsområde eller vandmængder er udvidet, som følge af udvidelse af forsyningsområde eller håndterede vandmængder"]
["aalborg kloak as  ","Spildevand","s109","Spildevandskloakering i Det Åbne Land",0,5883,null,"§11, stk. 4 (udvidelse)","Godkendt","Godtgjort at deres forsyningsområde eller vandmængder er udvidet, som følge af udvidelse af forsyningsområde eller håndterede vandmængder"]
["aarhus vand as  ","Spildevand","s110","Udvidelse af forsyningsområdet",882790,1813095,null,"§11, stk. 4 (udvidelse)","Godkendt","Godtgjort at deres forsyningsområde eller vandmængder er udvidet, som følge af udvidelse af forsyningsområde eller håndterede vandmængder"]
["aarhus vand as  ","Drikkevand","v220","Udvidelse af forsyningsområdet",773166,257419,null,"§11, stk. 4 (udvidelse)","Godkendt","Godtgjort at deres forsyningsområde eller vandmængder er udvidet, som følge af udvidelse af forsyningsområde eller håndterede vandmængder"]

{"sheet":"§11 stk. 5 (medfinansiering)","index":4,"n_rows":3,"n_cols":10,"rows_kept":3,"cut":false,"hidden":false,"merged":[]}
["Selskab","Forsyningsart","FS ID","Beskrivelse","Driftsomkostninger","Anlægsomkostninger","Engangstillæg","Type:  §11 Stk. 1 (mål), §11, Stk. 2 (ledningsomlægning), §11, stk. 4 (udvidelse), §11 stk. 5 (medfinansiering), §11, stk. 6 (sup. Investering), §11, stk. 9 (vejbidrag), §13, stk. 2 (periodevise), §31, stk. 7 (vandindvinding)","Godkendt/afvist","Grund til godkendelse/ afvisning"]
["hofor spildevand koebenhavn as  ","Spildevand",null,"Erik Ballings Vej",320000,null,null,"§11 stk. 5 (medfinansiering)","Godkendt","Opfylder betingerne for tillæg."]
["vejle spildevand as  ","Spildevand",null,"Medfinansieringsprojektet Østbyen",1355982,null,null,"§11 stk. 5 (medfinansiering)","Godkendt","Opfylder betingerne for tillæg."]

{"sheet":"§11 stk. 9 (vejbidrag) ","index":5,"n_rows":7,"n_cols":10,"rows_kept":7,"cut":false,"hidden":false,"merged":[]}
["Selskab","Forsyningsart","FS ID","Beskrivelse","Driftsomkostninger","Anlægsomkostninger","Engangstillæg","Type:  §11 Stk. 1 (mål), §11, Stk. 2 (ledningsomlægning), §11, stk. 4 (udvidelse), §11 stk. 5 (medfinansiering), §11, stk. 6 (sup. Investering), §11, stk. 9 (vejbidrag), §13, stk. 2 (periodevise), §31, stk. 7 (vandindvinding)","Godkendt/afvist","Grund til godkendelse/ afvisning"]
["haderslev spildevand as  ","Spildevand",null,"Tilbagebetaling af vejbidrag",null,null,4952000,"§11, stk. 9 (vejbidrag)","Godkendt","Opfylder betingerne for tillæg."]
["hofor spildevand hvidovre as  ","Spildevand",null,"Tilbagebetaling af vejbidrag",null,null,4840926,"§11, stk. 9 (vejbidrag)","Godkendt","Opfylder betingerne for tillæg."]
["hofor spildevand koebenhavn as  ","Spildevand",null,"Tilbagebetaling af vejbidrag",null,null,4524416,"§11, stk. 9 (vejbidrag)","Godkendt","Opfylder betingerne for tillæg."]
["ikast brande spildevand as  ","Spildevand",null,"Tilbagebetaling af vejbidrag",null,null,1109313,"§11, stk. 9 (vejbidrag)","Godkendt","Opfylder betingerne for tillæg."]
["Ishoej spildevand as  ","Spildevand",null,"Tilbagebetaling af vejbidrag",null,null,205800,"§11, stk. 9 (vejbidrag)","Godkendt","Opfylder betingerne for tillæg."]
["nk spildevand as  ","Spildevand",null,"Tilbagebetaling af vejbidrag",null,null,1810197,"§11, stk. 9 (vejbidrag)","Godkendt","Opfylder betingerne for tillæg."]

{"sheet":"§ 13 stk. 2 (periodevise)","index":6,"n_rows":26,"n_cols":10,"rows_kept":26,"cut":false,"hidden":false,"merged":[]}
["Selskab","Forsyningsart","FS ID","Beskrivelse","Driftsomkostninger","Anlægsomkostninger","Engangstillæg","Type:  §11 Stk. 1 (mål), §11, Stk. 2 (ledningsomlægning), §11, stk. 4 (udvidelse), §11 stk. 5 (medfinansiering), §11, stk. 6 (sup. Investering), §11, stk. 9 (vejbidrag), §13, stk. 2 (periodevise), §31, stk. 7 (vandindvinding)","Godkendt/afvist","Grund til godkendelse/ afvisning"]
["andelsselskabet bredebro vandvaerk  ","Spildevand",null,"udskiftning af filtre",null,null,null,"§13, stk. 2 (periodevise)","Afvist ","Det er vores vurdering, at der er tale om almindelig ved ligeholdelse af filtre, der ikke kan sidestilles med oprensninger af slam eller regnvandsbede."]
["din forsyning spildevand as  ","Spildevand","s015","Oprensning af regnvandsbassiner",123195,0,1231953,"§13, stk. 2 (periodevise)","Godkendt","Opfylder betingerne for tillæg."]
["energi viborg vand as  ","Spildevand","s014","Tømning af slambede",null,0,8303603,"§13, stk. 2 (periodevise)","Godkendt","Opfylder betingerne for tillæg."]
["frederikshavn vand as  ","Drikkevand","v057","Fornyelse af indvindingstilladelser",21150,0,634514,"§13, stk. 2 (periodevise)","Godkendt","Opfylder betingerne for tillæg."]
["frederikssund spildevand as  ","Spildevand","s026","Oprensning af slambed 1 og 4",100426,0,301278,"§13, stk. 2 (periodevise)","Godkendt","Opfylder betingerne for tillæg."]
["frederikssund spildevand as  ","Spildevand","s026","Oprensning af slambed 2 og 3",95724,0,95724,"§13, stk. 2 (periodevise)","Godkendt","Opfylder betingerne for tillæg."]
["frederikssund spildevand as  ","Spildevand","s026","Oprensning af slambed 5, 6 og 7",133699,0,null,"§13, stk. 2 (periodevise)","Godkendt","Opfylder betingerne for tillæg."]
["glostrup spildevand as  ","Spildevand","s030","Oprensning af Bækrenden",40432,0,404318,"§13, stk. 2 (periodevise)","Godkendt","Opfylder betingerne for tillæg."]
["glostrup spildevand as  ","Spildevand","s030","Oprensning af Væveren",81138,0,811383,"§13, stk. 2 (periodevise)","Godkendt","Opfylder betingerne for tillæg."]
["gribvand spildevand as  ","Spildevand",null,"Myg bekæmpelse",null,null,null,"§13, stk. 2 (periodevise)","Afvist ","Opfylder ikke krav for tillæg."]
["hofor spildevand albertslund as  ","Spildevand","s041","Oprensning af Bassin Ndr Glostrup",8928,0,178550,"§13, stk. 2 (periodevise)","Godkendt","Opfylder betingerne for tillæg."]
["hofor spildevand albertslund as  ","Spildevand","s041","Oprensning af Rådhussøen",68170,0,1363405,"§13, stk. 2 (periodevise)","Godkendt","Opfylder betingerne for tillæg."]
["hofor spildevand herlev as  ","Spildevand","s043","Lindsberg Søn. Tvedevangen 120",13970,0,279398,"§13, stk. 2 (periodevise)","Godkendt","Opfylder betingerne for tillæg."]
["hofor spildevand herlev as  ","Spildevand","s043","Smedeholm 4 (Smededammen)",2502,0,50049,"§13, stk. 2 (periodevise)","Godkendt","Opfylder betingerne for tillæg."]
["hofor spildevand hvidovre as  ","Spildevand","s044","Oprensning Østern. Landkanal",5967,0,119337,"§13, stk. 2 (periodevise)","Godkendt","Opfylder betingerne for tillæg."]
["hofor spildevand vallensbaek as  ","Spildevand","s098","Oprensning af Lykkekrogen",10381,0,207612,"§13, stk. 2 (periodevise)","Godkendt","Opfylder betingerne for tillæg."]
["kalundborg spildevandsanlaeg as  ","Spildevand","s056","Oprensning af bassiner",14916,0,1491626,"§13, stk. 2 (periodevise)","Godkendt","Opfylder betingerne for tillæg."]
["odsherred spildevand as  ","Spildevand","s074","Oprensning af regnvandsbassiner",194305,0,2914570,"§13, stk. 2 (periodevise)","Godkendt","Opfylder betingerne for tillæg."]
["ringsted vand as  ","Drikkevand",null,"Etablering af målerinstrumenter",null,null,null,"§13, stk. 2 (periodevise)","Afvist ","Vi har lagt vægt på, at der er tale om almindelig løbende opdatering og fornyelse af jeres systemer, efterhånden som disse bliver forældet."]
["ringsted vand as  ","Drikkevand",null,"Indvendig coating af rentvandsbeholder",null,null,null,"§13, stk. 2 (periodevise)","Afvist ","Vi har lagt vægt på, at der er tale om omkostninger til reparation af beholderen som følge af revnedannelser og ikke til selve rensningen og inspektionen af beholderen, som I foretager hvert 5. år."]
["ringsted vand as  ","Drikkevand",null,"Nedrivning gl. bygværk",null,null,null,"§13, stk. 2 (periodevise)","Afvist ","På baggrund af jeres oplysninger, er det vores vurdering, at der ikke er tale om en periodevis driftsomkostning, da der er tale om en engangsomkostning."]
["ringsted vand as  ","Drikkevand",null,"Undersøgelse af hydrogeologisk påvirkning",null,null,null,"§13, stk. 2 (periodevise)","Afvist ","Vi har lagt vægt på, at der er tale om almindelig driftsomkostninger, som alle vandselskaber i større eller mindre omfang har."]
["skive vand as  ","Drikkevand",null,"Screening af drikkevand for 410 pesticider",null,null,null,"§13, stk. 2 (periodevise)","Afvist ","I har ydermere oplyst, at omkostningen afholdt i 2018 har været en engangsomkostning, der ikke forventes at være tilbagevendende."]
["aarhus vand as  ","Drikkevand","v220","Indvindingstilladelser",4607,0,138214,"§13, stk. 2 (periodevise)","Godkendt","Opfylder betingerne for tillæg."]
["aarhus vand as  ","Spildevand","s110","Oprensning af regnvandsbassin",12007,0,1200729,"§13, stk. 2 (periodevise)","Godkendt","Opfylder betingerne for tillæg."]

{"sheet":"§14 (justering af Ø.R.)","index":7,"n_rows":8,"n_cols":10,"rows_kept":8,"cut":false,"hidden":false,"merged":[]}
["Selskab","Forsyningsart","FS ID","Beskrivelse","Driftsomkostninger","Anlægsomkostninger","Engangstillæg","Type:  §11 Stk. 1 (mål), §11, Stk. 2 (ledningsomlægning), §11, stk. 4 (udvidelse), §11 stk. 5 (medfinansiering), §11, stk. 6 (sup. Investering), §11, stk. 9 (vejbidrag), §13, stk. 2 (periodevise), §31, stk. 7 (vandindvinding)","Godkendt/afvist","Grund til godkendelse/ afvisning"]
["faxe spildevandscenter as s019  kopi","Spildevand",null,"Slamafvanding på Haslev Renseanlæg",null,null,null,"§ 14 (Justering af den økonomiske ramme)","Afvist ","Opfylder ikke krav for tillæg."]
["maaloev rens as  ","Spildevand","s070","Garantiprovision",0,4105,25027,"§ 14 (Justering af den økonomiske ramme)","Godkendt","§ 14 - Hvis kommunen havde opkrævet årligt, ville de finansielle omkostninger i jeres grundlag have været højere, fordi de ville have indeholdt omkostninger til garantiprovision."]
["vejen renseanlaeg  ","Spildevand",null,"Garantiprovision",null,null,null,"§ 14 (Justering af den økonomiske ramme)","Afvist ","§ 14 - Det er vores vurdering, at omkostningerne ikke er væsentlige set i for-\r\nhold til jeres økonomiske ramme for 2018."]
["vejen spildevand  ","Spildevand",null,"Garantiprovision",null,null,null,"§ 14 (Justering af den økonomiske ramme)","Afvist ","§ 14 - Det er vores vurdering, at omkostningerne ikke er væsentlige set i for-\r\nhold til jeres økonomiske ramme for 2018."]
["vejen vand  ","Drikkevand",null,"Garantiprovision",null,null,null,"§ 14 (Justering af den økonomiske ramme)","Afvist ","§ 14 - Det er vores vurdering, at omkostningerne ikke er væsentlige set i for-\r\nhold til jeres økonomiske ramme for 2018."]
["vejen vand  ","Drikkevand",null,"justering af den  økonomiske ramme ",null,null,null,"§ 14 (Justering af den økonomiske ramme)","Afvist ","§ 14 - Det er vores vurdering, at der ikke sker en væsentligt ændring i jeres aktiviteter eller omkostning."]
["aarhus vand as  ","Spildevand","s110","Energiproduktion på Egå Renseanlæg",2354265,0,null,"§ 18 stk. 4","Godkendt","Opfylder betingerne for tillæg."]

{"sheet":"§ 31 stk. 7 (vandindvinding)","index":8,"n_rows":5,"n_cols":10,"rows_kept":5,"cut":false,"hidden":false,"merged":[]}
["Selskab","Forsyningsart","FS ID","Beskrivelse","Driftsomkostninger","Anlægsomkostninger","Engangstillæg","Type:  §11 Stk. 1 (mål), §11, Stk. 2 (ledningsomlægning), §11, stk. 4 (udvidelse), §11 stk. 5 (medfinansiering), §11, stk. 6 (sup. Investering), §11, stk. 9 (vejbidrag), §13, stk. 2 (periodevise), §31, stk. 7 (vandindvinding)","Godkendt/afvist","Grund til godkendelse/ afvisning"]
["hofor vand koebenhavn as  ","Drikkevand","v091","Aktiviteter afledt af indvindingstilladelser",2028690,0,null,"§31, stk. 7 (vandindvinding)","Godkendt"]
["jyllinge vandvaerk amba  ","Drikkevand",null,"Beskyttelseszoner",null,null,null,"§31, stk. 7 (vandindvinding)","Afvist ","Da der ikke foretages afskrivninger på jord, kan der ikke ydes tillæg for omkostninger afholdt til køb af jord, hvilket også fremgår af forhåndsgodkendelsen."]
["jyllinge vandvaerk amba  ","Drikkevand","v110","Bundfældningsbassin",30228,0,null,"§31, stk. 7 (vandindvinding)","Godkendt","Opfylder betingerne for tillæg."]
["loegten skoedstrup vandvaerk amba  ","Drikkevand","v129","Etablering af undersøgelsesboring (Vosnæs Skov)",0,92620,null,"§31, stk. 7 (vandindvinding)","Godkendt","Opfylder betingerne for tillæg."]

{"sheet":"Tabeller","index":9,"n_rows":44,"n_cols":6,"rows_kept":44,"cut":false,"hidden":false,"merged":[]}
["ALLE"]
["Tillægstype","Ansøgninger","Andel godkendte","Andel Afvist","Årlige tillæg","Engangstillæg"]
["§11 Stk. 1 (mål)",{"$f":"COUNTIFS('Alle tillæg'!$H$4:$H$584,Tabeller!A3)","v":66},{"$f":"COUNTIFS('Alle tillæg'!$H$4:$H$584,Tabeller!A3,'Alle tillæg'!$I$4:$I$584,\"Godkendt\")/B3","v":0.71212121212121215},{"$f":"COUNTIFS('Alle tillæg'!$H$4:$H$584,Tabeller!A3,'Alle tillæg'!$I$4:$I$584,\"Afvist \")/B3","v":0.2878787878787879},{"$f":"SUMIFS('Alle tillæg'!$E$4:$E$584,'Alle tillæg'!$H$4:$H$584,Tabeller!A3)+SUMIFS('Alle tillæg'!$F$4:$F$584,'Alle tillæg'!$H$4:$H$584,Tabeller!A3)","v":45139189},{"$f":"SUMIFS('Alle tillæg'!$G$4:$G$584,'Alle tillæg'!$H$4:$H$584,Tabeller!A3)","v":10478810}]
["§11, Stk. 2 (ledningsomlægning)",{"$f":"COUNTIFS('Alle tillæg'!$H$4:$H$584,Tabeller!A4)","v":29},{"$f":"COUNTIFS('Alle tillæg'!$H$4:$H$584,Tabeller!A4,'Alle tillæg'!$I$4:$I$584,\"Godkendt\")/B4","v":0.96551724137931039},{"$f":"COUNTIFS('Alle tillæg'!$H$4:$H$584,Tabeller!A4,'Alle tillæg'!$I$4:$I$584,\"Afvist \")/B4","v":3.4482758620689655E-2},{"$f":"SUMIFS('Alle tillæg'!$E$4:$E$584,'Alle tillæg'!$H$4:$H$584,Tabeller!A4)+SUMIFS('Alle tillæg'!$F$4:$F$584,'Alle tillæg'!$H$4:$H$584,Tabeller!A4)","v":1705101},{"$f":"SUMIFS('Alle tillæg'!$G$4:$G$584,'Alle tillæg'!$H$4:$H$584,Tabeller!A4)","v":862743}]
["§11, stk. 4 (udvidelse)",{"$f":"COUNTIFS('Alle tillæg'!$H$4:$H$584,Tabeller!A5)","v":111},{"$f":"COUNTIFS('Alle tillæg'!$H$4:$H$584,Tabeller!A5,'Alle tillæg'!$I$4:$I$584,\"Godkendt\")/B5","v":0.99099099099099097},{"$f":"COUNTIFS('Alle tillæg'!$H$4:$H$584,Tabeller!A5,'Alle tillæg'!$I$4:$I$584,\"Afvist \")/B5","v":9.0090090090090089E-3},{"$f":"SUMIFS('Alle tillæg'!$E$4:$E$584,'Alle tillæg'!$H$4:$H$584,Tabeller!A5)+SUMIFS('Alle tillæg'!$F$4:$F$584,'Alle tillæg'!$H$4:$H$584,Tabeller!A5)","v":44223882.799999997},{"$f":"SUMIFS('Alle tillæg'!$G$4:$G$584,'Alle tillæg'!$H$4:$H$584,Tabeller!A5)","v":748055.6}]
["§11 stk. 5 (medfinansiering)",{"$f":"COUNTIFS('Alle tillæg'!$H$4:$H$584,Tabeller!A6)","v":2},{"$f":"COUNTIFS('Alle tillæg'!$H$4:$H$584,Tabeller!A6,'Alle tillæg'!$I$4:$I$584,\"Godkendt\")/B6","v":1},{"$f":"COUNTIFS('Alle tillæg'!$H$4:$H$584,Tabeller!A6,'Alle tillæg'!$I$4:$I$584,\"Afvist \")/B6","v":0},{"$f":"SUMIFS('Alle tillæg'!$E$4:$E$584,'Alle tillæg'!$H$4:$H$584,Tabeller!A6)+SUMIFS('Alle tillæg'!$F$4:$F$584,'Alle tillæg'!$H$4:$H$584,Tabeller!A6)","v":1675982},{"$f":"SUMIFS('Alle tillæg'!$G$4:$G$584,'Alle tillæg'!$H$4:$H$584,Tabeller!A6)","v":0}]
["§11, stk. 6 (sup. Investering)",{"$f":"COUNTIFS('Alle tillæg'!$H$4:$H$584,Tabeller!A7)","v":0},0,0,{"$f":"SUMIFS('Alle tillæg'!$E$4:$E$584,'Alle tillæg'!$H$4:$H$584,Tabeller!A7)+SUMIFS('Alle tillæg'!$F$4:$F$584,'Alle tillæg'!$H$4:$H$584,Tabeller!A7)","v":0},{"$f":"SUMIFS('Alle tillæg'!$G$4:$G$584,'Alle tillæg'!$H$4:$H$584,Tabeller!A7)","v":0}]
["§11, stk. 9 (vejbidrag)",{"$f":"COUNTIFS('Alle tillæg'!$H$4:$H$584,Tabeller!A8)","v":6},{"$f":"COUNTIFS('Alle tillæg'!$H$4:$H$584,Tabeller!A8,'Alle tillæg'!$I$4:$I$584,\"Godkendt\")/B8","v":1},{"$f":"COUNTIFS('Alle tillæg'!$H$4:$H$584,Tabeller!A8,'Alle tillæg'!$I$4:$I$584,\"Afvist \")/B8","v":0},{"$f":"SUMIFS('Alle tillæg'!$E$4:$E$584,'Alle tillæg'!$H$4:$H$584,Tabeller!A8)+SUMIFS('Alle tillæg'!$F$4:$F$584,'Alle tillæg'!$H$4:$H$584,Tabeller!A8)","v":0},{"$f":"SUMIFS('Alle tillæg'!$G$4:$G$584,'Alle tillæg'!$H$4:$H$584,Tabeller!A8)","v":17442652}]
["§13, stk. 2 (periodevise)",{"$f":"COUNTIFS('Alle tillæg'!$H$4:$H$584,Tabeller!A9)","v":25},{"$f":"COUNTIFS('Alle tillæg'!$H$4:$H$584,Tabeller!A9,'Alle tillæg'!$I$4:$I$584,\"Godkendt\")/B9","v":0.72},{"$f":"COUNTIFS('Alle tillæg'!$H$4:$H$584,Tabeller!A9,'Alle tillæg'!$I$4:$I$584,\"Afvist \")/B9","v":0.28000000000000003},{"$f":"SUMIFS('Alle tillæg'!$E$4:$E$584,'Alle tillæg'!$H$4:$H$584,Tabeller!A9)+SUMIFS('Alle tillæg'!$F$4:$F$584,'Alle tillæg'!$H$4:$H$584,Tabeller!A9)","v":931517},{"$f":"SUMIFS('Alle tillæg'!$G$4:$G$584,'Alle tillæg'!$H$4:$H$584,Tabeller!A9)","v":19726263}]
["§31, stk. 7 (vandindvinding)",{"$f":"COUNTIFS('Alle tillæg'!$H$4:$H$584,Tabeller!A10)","v":4},{"$f":"COUNTIFS('Alle tillæg'!$H$4:$H$584,Tabeller!A10,'Alle tillæg'!$I$4:$I$584,\"Godkendt\")/B10","v":0.75},{"$f":"COUNTIFS('Alle tillæg'!$H$4:$H$584,Tabeller!A10,'Alle tillæg'!$I$4:$I$584,\"Afvist \")/B10","v":0.25},{"$f":"SUMIFS('Alle tillæg'!$E$4:$E$584,'Alle tillæg'!$H$4:$H$584,Tabeller!A10)+SUMIFS('Alle tillæg'!$F$4:$F$584,'Alle tillæg'!$H$4:$H$584,Tabeller!A10)","v":2151538},{"$f":"SUMIFS('Alle tillæg'!$G$4:$G$584,'Alle tillæg'!$H$4:$H$584,Tabeller!A10)","v":0}]
["§ 14 (Justering af den økonomiske ramme)",{"$f":"COUNTIFS('Alle tillæg'!$H$4:$H$584,Tabeller!A11)","v":6},{"$f":"COUNTIFS('Alle tillæg'!$H$4:$H$584,Tabeller!A11,'Alle tillæg'!$I$4:$I$584,\"Godkendt\")/B11","v":0.16666666666666666},{"$f":"COUNTIFS('Alle tillæg'!$H$4:$H$584,Tabeller!A11,'Alle tillæg'!$I$4:$I$584,\"Afvist \")/B11","v":0.83333333333333337},{"$f":"SUMIFS('Alle tillæg'!$E$4:$E$584,'Alle tillæg'!$H$4:$H$584,Tabeller!A11)+SUMIFS('Alle tillæg'!$F$4:$F$584,'Alle tillæg'!$H$4:$H$584,Tabeller!A11)","v":4105},{"$f":"SUMIFS('Alle tillæg'!$G$4:$G$584,'Alle tillæg'!$H$4:$H$584,Tabeller!A11)","v":25027}]
["§ 18 stk. 4",{"$f":"COUNTIFS('Alle tillæg'!$H$4:$H$584,Tabeller!A12)","v":1},{"$f":"COUNTIFS('Alle tillæg'!$H$4:$H$584,Tabeller!A12,'Alle tillæg'!$I$4:$I$584,\"Godkendt\")/B12","v":1},{"$f":"COUNTIFS('Alle tillæg'!$H$4:$H$584,Tabeller!A12,'Alle tillæg'!$I$4:$I$584,\"Afvist \")/B12","v":0},{"$f":"SUMIFS('Alle tillæg'!$E$4:$E$584,'Alle tillæg'!$H$4:$H$584,Tabeller!A12)+SUMIFS('Alle tillæg'!$F$4:$F$584,'Alle tillæg'!$H$4:$H$584,Tabeller!A12)","v":2354265},{"$f":"SUMIFS('Alle tillæg'!$G$4:$G$584,'Alle tillæg'!$H$4:$H$584,Tabeller!A12)","v":0}]
["SUM",{"$f":"SUM(B3:B12)","v":250},null,null,{"$f":"SUM(E3:E12)","v":98185579.799999997},{"$f":"SUM(F3:F12)","v":49283550.600000001}]
["Tillæg til anlægsprojekter igangsat før",{"$f":"COUNTIFS('Alle tillæg'!$H$4:$H$584,Tabeller!C14)","v":331},"1. Marts 2016",null,{"$f":"SUMIFS('Alle tillæg'!$F$2:$F$585,'Alle tillæg'!$H$2:$H$585,Tabeller!C14)","v":85382988.929949805}]
[]
["Spildevand"]
["Tillægstype","Ansøgninger","Andel godkendte","Andel Afvist","Årlige tillæg 2020","Engangstillæg"]
["§11 Stk. 1 (mål)",{"$f":"COUNTIFS('Alle tillæg'!$H$4:$H$584,Tabeller!A18,'Alle tillæg'!$B$4:$B$584,Tabeller!$A$16)","v":33},{"$f":"COUNTIFS('Alle tillæg'!$H$4:$H$584,Tabeller!A18,'Alle tillæg'!$I$4:$I$584,\"Godkendt\",'Alle tillæg'!$B$4:$B$584,Tabeller!$A$16)/B18","v":0.66666666666666663},{"$f":"COUNTIFS('Alle tillæg'!$H$4:$H$584,Tabeller!A18,'Alle tillæg'!$I$4:$I$584,\"Afvist \",'Alle tillæg'!$B$4:$B$584,Tabeller!$A$16)/B18","v":0.33333333333333331},{"$f":"SUMIFS('Alle tillæg'!$E$4:$E$584,'Alle tillæg'!$B$4:$B$584,Tabeller!$A$16,'Alle tillæg'!$H$4:$H$584,Tabeller!A18)+SUMIFS('Alle tillæg'!$F$4:$F$584,'Alle tillæg'!$B$4:$B$584,Tabeller!$A$16,'Alle tillæg'!$H$4:$H$584,Tabeller!A18)","v":33625207},{"$f":"SUMIFS('Alle tillæg'!$G$4:$G$584,'Alle tillæg'!$B$4:$B$584,Tabeller!$A$16,'Alle tillæg'!$H$4:$H$584,Tabeller!A18)","v":5812745}]
["§11, Stk. 2 (ledningsomlægning)",{"$f":"COUNTIFS('Alle tillæg'!$H$4:$H$584,Tabeller!A19,'Alle tillæg'!$B$4:$B$584,Tabeller!$A$16)","v":14},{"$f":"COUNTIFS('Alle tillæg'!$H$4:$H$584,Tabeller!A19,'Alle tillæg'!$I$4:$I$584,\"Godkendt\",'Alle tillæg'!$B$4:$B$584,Tabeller!$A$16)/B19","v":0.9285714285714286},{"$f":"COUNTIFS('Alle tillæg'!$H$4:$H$584,Tabeller!A19,'Alle tillæg'!$I$4:$I$584,\"Afvist \",'Alle tillæg'!$B$4:$B$584,Tabeller!$A$16)/B19","v":7.1428571428571425E-2},{"$f":"SUMIFS('Alle tillæg'!$E$4:$E$584,'Alle tillæg'!$B$4:$B$584,Tabeller!$A$16,'Alle tillæg'!$H$4:$H$584,Tabeller!A19)+SUMIFS('Alle tillæg'!$F$4:$F$584,'Alle tillæg'!$B$4:$B$584,Tabeller!$A$16,'Alle tillæg'!$H$4:$H$584,Tabeller!A19)","v":1166806},{"$f":"SUMIFS('Alle tillæg'!$G$4:$G$584,'Alle tillæg'!$B$4:$B$584,Tabeller!$A$16,'Alle tillæg'!$H$4:$H$584,Tabeller!A19)","v":0}]
["§11, stk. 4 (udvidelse)",{"$f":"COUNTIFS('Alle tillæg'!$H$4:$H$584,Tabeller!A20,'Alle tillæg'!$B$4:$B$584,Tabeller!$A$16)","v":59},{"$f":"COUNTIFS('Alle tillæg'!$H$4:$H$584,Tabeller!A20,'Alle tillæg'!$I$4:$I$584,\"Godkendt\",'Alle tillæg'!$B$4:$B$584,Tabeller!$A$16)/B20","v":0.98305084745762716},{"$f":"COUNTIFS('Alle tillæg'!$H$4:$H$584,Tabeller!A20,'Alle tillæg'!$I$4:$I$584,\"Afvist \",'Alle tillæg'!$B$4:$B$584,Tabeller!$A$16)/B20","v":1.6949152542372881E-2},{"$f":"SUMIFS('Alle tillæg'!$E$4:$E$584,'Alle tillæg'!$B$4:$B$584,Tabeller!$A$16,'Alle tillæg'!$H$4:$H$584,Tabeller!A20)+SUMIFS('Alle tillæg'!$F$4:$F$584,'Alle tillæg'!$B$4:$B$584,Tabeller!$A$16,'Alle tillæg'!$H$4:$H$584,Tabeller!A20)","v":35764640.799999997},{"$f":"SUMIFS('Alle tillæg'!$G$4:$G$584,'Alle tillæg'!$B$4:$B$584,Tabeller!$A$16,'Alle tillæg'!$H$4:$H$584,Tabeller!A20)","v":110334.6}]
["§11 stk. 5 (medfinansiering)",{"$f":"COUNTIFS('Alle tillæg'!$H$4:$H$584,Tabeller!A21,'Alle tillæg'!$B$4:$B$584,Tabeller!$A$16)","v":2},{"$f":"COUNTIFS('Alle tillæg'!$H$4:$H$584,Tabeller!A21,'Alle tillæg'!$I$4:$I$584,\"Godkendt\",'Alle tillæg'!$B$4:$B$584,Tabeller!$A$16)/B21","v":1},{"$f":"COUNTIFS('Alle tillæg'!$H$4:$H$584,Tabeller!A21,'Alle tillæg'!$I$4:$I$584,\"Afvist \",'Alle tillæg'!$B$4:$B$584,Tabeller!$A$16)/B21","v":0},{"$f":"SUMIFS('Alle tillæg'!$E$4:$E$584,'Alle tillæg'!$B$4:$B$584,Tabeller!$A$16,'Alle tillæg'!$H$4:$H$584,Tabeller!A21)+SUMIFS('Alle tillæg'!$F$4:$F$584,'Alle tillæg'!$B$4:$B$584,Tabeller!$A$16,'Alle tillæg'!$H$4:$H$584,Tabeller!A21)","v":1675982},{"$f":"SUMIFS('Alle tillæg'!$G$4:$G$584,'Alle tillæg'!$B$4:$B$584,Tabeller!$A$16,'Alle tillæg'!$H$4:$H$584,Tabeller!A21)","v":0}]
["§11, stk. 6 (sup. Investering)",{"$f":"COUNTIFS('Alle tillæg'!$H$4:$H$584,Tabeller!A22,'Alle tillæg'!$B$4:$B$584,Tabeller!$A$16)","v":0},null,0,{"$f":"SUMIFS('Alle tillæg'!$E$4:$E$584,'Alle tillæg'!$B$4:$B$584,Tabeller!$A$16,'Alle tillæg'!$H$4:$H$584,Tabeller!A22)+SUMIFS('Alle tillæg'!$F$4:$F$584,'Alle tillæg'!$B$4:$B$584,Tabeller!$A$16,'Alle tillæg'!$H$4:$H$584,Tabeller!A22)","v":0},{"$f":"SUMIFS('Alle tillæg'!$G$4:$G$584,'Alle tillæg'!$B$4:$B$584,Tabeller!$A$16,'Alle tillæg'!$H$4:$H$584,Tabeller!A22)","v":0}]
["§11, stk. 9 (vejbidrag)",{"$f":"COUNTIFS('Alle tillæg'!$H$4:$H$584,Tabeller!A23,'Alle tillæg'!$B$4:$B$584,Tabeller!$A$16)","v":6},{"$f":"COUNTIFS('Alle tillæg'!$H$4:$H$584,Tabeller!A23,'Alle tillæg'!$I$4:$I$584,\"Godkendt\",'Alle tillæg'!$B$4:$B$584,Tabeller!$A$16)/B23","v":1},{"$f":"COUNTIFS('Alle tillæg'!$H$4:$H$584,Tabeller!A23,'Alle tillæg'!$I$4:$I$584,\"Afvist \",'Alle tillæg'!$B$4:$B$584,Tabeller!$A$16)/B23","v":0},{"$f":"SUMIFS('Alle tillæg'!$E$4:$E$584,'Alle tillæg'!$B$4:$B$584,Tabeller!$A$16,'Alle tillæg'!$H$4:$H$584,Tabeller!A23)+SUMIFS('Alle tillæg'!$F$4:$F$584,'Alle tillæg'!$B$4:$B$584,Tabeller!$A$16,'Alle tillæg'!$H$4:$H$584,Tabeller!A23)","v":0},{"$f":"SUMIFS('Alle tillæg'!$G$4:$G$584,'Alle tillæg'!$B$4:$B$584,Tabeller!$A$16,'Alle tillæg'!$H$4:$H$584,Tabeller!A23)","v":17442652}]
["§13, stk. 2 (periodevise)",{"$f":"COUNTIFS('Alle tillæg'!$H$4:$H$584,Tabeller!A24,'Alle tillæg'!$B$4:$B$584,Tabeller!$A$16)","v":18},{"$f":"COUNTIFS('Alle tillæg'!$H$4:$H$584,Tabeller!A24,'Alle tillæg'!$I$4:$I$584,\"Godkendt\",'Alle tillæg'!$B$4:$B$584,Tabeller!$A$16)/B24","v":0.88888888888888884},{"$f":"COUNTIFS('Alle tillæg'!$H$4:$H$584,Tabeller!A24,'Alle tillæg'!$I$4:$I$584,\"Afvist \",'Alle tillæg'!$B$4:$B$584,Tabeller!$A$16)/B24","v":0.1111111111111111},{"$f":"SUMIFS('Alle tillæg'!$E$4:$E$584,'Alle tillæg'!$B$4:$B$584,Tabeller!$A$16,'Alle tillæg'!$H$4:$H$584,Tabeller!A24)+SUMIFS('Alle tillæg'!$F$4:$F$584,'Alle tillæg'!$B$4:$B$584,Tabeller!$A$16,'Alle tillæg'!$H$4:$H$584,Tabeller!A24)","v":905760},{"$f":"SUMIFS('Alle tillæg'!$G$4:$G$584,'Alle tillæg'!$B$4:$B$584,Tabeller!$A$16,'Alle tillæg'!$H$4:$H$584,Tabeller!A24)","v":18953535}]
["§31, stk. 7 (vandindvinding)",{"$f":"COUNTIFS('Alle tillæg'!$H$4:$H$584,Tabeller!A25,'Alle tillæg'!$B$4:$B$584,Tabeller!$A$16)","v":0},null,0,{"$f":"SUMIFS('Alle tillæg'!$E$4:$E$584,'Alle tillæg'!$B$4:$B$584,Tabeller!$A$16,'Alle tillæg'!$H$4:$H$584,Tabeller!A25)+SUMIFS('Alle tillæg'!$F$4:$F$584,'Alle tillæg'!$B$4:$B$584,Tabeller!$A$16,'Alle tillæg'!$H$4:$H$584,Tabeller!A25)","v":0},{"$f":"SUMIFS('Alle tillæg'!$G$4:$G$584,'Alle tillæg'!$B$4:$B$584,Tabeller!$A$16,'Alle tillæg'!$H$4:$H$584,Tabeller!A25)","v":0}]
["§ 14 (Justering af den økonomiske ramme)",{"$f":"COUNTIFS('Alle tillæg'!$H$4:$H$584,Tabeller!A26,'Alle tillæg'!$B$4:$B$584,Tabeller!$A$16)","v":4},{"$f":"COUNTIFS('Alle tillæg'!$H$4:$H$584,Tabeller!A26,'Alle tillæg'!$I$4:$I$584,\"Godkendt\",'Alle tillæg'!$B$4:$B$584,Tabeller!$A$16)/B26","v":0.25},{"$f":"COUNTIFS('Alle tillæg'!$H$4:$H$584,Tabeller!A26,'Alle tillæg'!$I$4:$I$584,\"Afvist \",'Alle tillæg'!$B$4:$B$584,Tabeller!$A$16)/B26","v":0.75},{"$f":"SUMIFS('Alle tillæg'!$E$4:$E$584,'Alle tillæg'!$B$4:$B$584,Tabeller!$A$16,'Alle tillæg'!$H$4:$H$584,Tabeller!A26)+SUMIFS('Alle tillæg'!$F$4:$F$584,'Alle tillæg'!$B$4:$B$584,Tabeller!$A$16,'Alle tillæg'!$H$4:$H$584,Tabeller!A26)","v":4105},{"$f":"SUMIFS('Alle tillæg'!$G$4:$G$584,'Alle tillæg'!$B$4:$B$584,Tabeller!$A$16,'Alle tillæg'!$H$4:$H$584,Tabeller!A26)","v":25027}]
["§ 18 stk. 4",{"$f":"COUNTIFS('Alle tillæg'!$H$4:$H$584,Tabeller!A27,'Alle tillæg'!$B$4:$B$584,Tabeller!$A$16)","v":1},{"$f":"COUNTIFS('Alle tillæg'!$H$4:$H$584,Tabeller!A27,'Alle tillæg'!$I$4:$I$584,\"Godkendt\",'Alle tillæg'!$B$4:$B$584,Tabeller!$A$16)/B27","v":1},{"$f":"COUNTIFS('Alle tillæg'!$H$4:$H$584,Tabeller!A27,'Alle tillæg'!$I$4:$I$584,\"Afvist \",'Alle tillæg'!$B$4:$B$584,Tabeller!$A$16)/B27","v":0},{"$f":"SUMIFS('Alle tillæg'!$E$4:$E$584,'Alle tillæg'!$B$4:$B$584,Tabeller!$A$16,'Alle tillæg'!$H$4:$H$584,Tabeller!A27)+SUMIFS('Alle tillæg'!$F$4:$F$584,'Alle tillæg'!$B$4:$B$584,Tabeller!$A$16,'Alle tillæg'!$H$4:$H$584,Tabeller!A27)","v":2354265},{"$f":"SUMIFS('Alle tillæg'!$G$4:$G$584,'Alle tillæg'!$B$4:$B$584,Tabeller!$A$16,'Alle tillæg'!$H$4:$H$584,Tabeller!A27)","v":0}]
[]
[null,null,null,null,{"$f":"SUM(E18:E27)","v":75496765.799999997},{"$f":"SUM(F18:F27)","v":42344293.600000001}]
[]
["Drikkevand"]
["Tillægstype","Ansøgninger","Andel godkendte","Andel Afvist","Årlige tillæg 2020","Engangstillæg"]
["§11 Stk. 1 (mål)",{"$f":"COUNTIFS('Alle tillæg'!$H$4:$H$584,Tabeller!A33,'Alle tillæg'!$B$4:$B$584,Tabeller!$A$31)","v":33},{"$f":"COUNTIFS('Alle tillæg'!$H$4:$H$584,Tabeller!A33,'Alle tillæg'!$I$4:$I$584,\"Godkendt\",'Alle tillæg'!$B$4:$B$584,Tabeller!$A$31)/B33","v":0.75757575757575757},{"$f":"COUNTIFS('Alle tillæg'!$H$4:$H$584,Tabeller!A33,'Alle tillæg'!$I$4:$I$584,\"Afvist \",'Alle tillæg'!$B$4:$B$584,Tabeller!$A$31)/B33","v":0.24242424242424243},{"$f":"SUMIFS('Alle tillæg'!$E$4:$E$584,'Alle tillæg'!$B$4:$B$584,Tabeller!$A$31,'Alle tillæg'!$H$4:$H$584,Tabeller!A33)+SUMIFS('Alle tillæg'!$F$4:$F$584,'Alle tillæg'!$B$4:$B$584,Tabeller!$A$31,'Alle tillæg'!$H$4:$H$584,Tabeller!A33)","v":11513982},{"$f":"SUMIFS('Alle tillæg'!$G$4:$G$584,'Alle tillæg'!$B$4:$B$584,Tabeller!$A$31,'Alle tillæg'!$H$4:$H$584,Tabeller!A33)","v":4666065}]
["§11, Stk. 2 (ledningsomlægning)",{"$f":"COUNTIFS('Alle tillæg'!$H$4:$H$584,Tabeller!A34,'Alle tillæg'!$B$4:$B$584,Tabeller!$A$31)","v":15},{"$f":"COUNTIFS('Alle tillæg'!$H$4:$H$584,Tabeller!A34,'Alle tillæg'!$I$4:$I$584,\"Godkendt\",'Alle tillæg'!$B$4:$B$584,Tabeller!$A$31)/B34","v":1},{"$f":"COUNTIFS('Alle tillæg'!$H$4:$H$584,Tabeller!A34,'Alle tillæg'!$I$4:$I$584,\"Afvist \",'Alle tillæg'!$B$4:$B$584,Tabeller!$A$31)/B34","v":0},{"$f":"SUMIFS('Alle tillæg'!$E$4:$E$584,'Alle tillæg'!$B$4:$B$584,Tabeller!$A$31,'Alle tillæg'!$H$4:$H$584,Tabeller!A34)+SUMIFS('Alle tillæg'!$F$4:$F$584,'Alle tillæg'!$B$4:$B$584,Tabeller!$A$31,'Alle tillæg'!$H$4:$H$584,Tabeller!A34)","v":538295},{"$f":"SUMIFS('Alle tillæg'!$G$4:$G$584,'Alle tillæg'!$B$4:$B$584,Tabeller!$A$31,'Alle tillæg'!$H$4:$H$584,Tabeller!A34)","v":862743}]
["§11, stk. 4 (udvidelse)",{"$f":"COUNTIFS('Alle tillæg'!$H$4:$H$584,Tabeller!A35,'Alle tillæg'!$B$4:$B$584,Tabeller!$A$31)","v":52},{"$f":"COUNTIFS('Alle tillæg'!$H$4:$H$584,Tabeller!A35,'Alle tillæg'!$I$4:$I$584,\"Godkendt\",'Alle tillæg'!$B$4:$B$584,Tabeller!$A$31)/B35","v":1},{"$f":"COUNTIFS('Alle tillæg'!$H$4:$H$584,Tabeller!A35,'Alle tillæg'!$I$4:$I$584,\"Afvist \",'Alle tillæg'!$B$4:$B$584,Tabeller!$A$31)/B35","v":0},{"$f":"SUMIFS('Alle tillæg'!$E$4:$E$584,'Alle tillæg'!$B$4:$B$584,Tabeller!$A$31,'Alle tillæg'!$H$4:$H$584,Tabeller!A35)+SUMIFS('Alle tillæg'!$F$4:$F$584,'Alle tillæg'!$B$4:$B$584,Tabeller!$A$31,'Alle tillæg'!$H$4:$H$584,Tabeller!A35)","v":8459242},{"$f":"SUMIFS('Alle tillæg'!$G$4:$G$584,'Alle tillæg'!$B$4:$B$584,Tabeller!$A$31,'Alle tillæg'!$H$4:$H$584,Tabeller!A35)","v":637721}]
["§11 stk. 5 (medfinansiering)",{"$f":"COUNTIFS('Alle tillæg'!$H$4:$H$584,Tabeller!A36,'Alle tillæg'!$B$4:$B$584,Tabeller!$A$31)","v":0},null,null,{"$f":"SUMIFS('Alle tillæg'!$E$4:$E$584,'Alle tillæg'!$B$4:$B$584,Tabeller!$A$31,'Alle tillæg'!$H$4:$H$584,Tabeller!A36)+SUMIFS('Alle tillæg'!$F$4:$F$584,'Alle tillæg'!$B$4:$B$584,Tabeller!$A$31,'Alle tillæg'!$H$4:$H$584,Tabeller!A36)","v":0},{"$f":"SUMIFS('Alle tillæg'!$G$4:$G$584,'Alle tillæg'!$B$4:$B$584,Tabeller!$A$31,'Alle tillæg'!$H$4:$H$584,Tabeller!A36)","v":0}]
["§11, stk. 6 (sup. Investering)",{"$f":"COUNTIFS('Alle tillæg'!$H$4:$H$584,Tabeller!A37,'Alle tillæg'!$B$4:$B$584,Tabeller!$A$31)","v":0},null,null,{"$f":"SUMIFS('Alle tillæg'!$E$4:$E$584,'Alle tillæg'!$B$4:$B$584,Tabeller!$A$31,'Alle tillæg'!$H$4:$H$584,Tabeller!A37)+SUMIFS('Alle tillæg'!$F$4:$F$584,'Alle tillæg'!$B$4:$B$584,Tabeller!$A$31,'Alle tillæg'!$H$4:$H$584,Tabeller!A37)","v":0},{"$f":"SUMIFS('Alle tillæg'!$G$4:$G$584,'Alle tillæg'!$B$4:$B$584,Tabeller!$A$31,'Alle tillæg'!$H$4:$H$584,Tabeller!A37)","v":0}]
["§11, stk. 9 (vejbidrag)",{"$f":"COUNTIFS('Alle tillæg'!$H$4:$H$584,Tabeller!A38,'Alle tillæg'!$B$4:$B$584,Tabeller!$A$31)","v":0},null,null,{"$f":"SUMIFS('Alle tillæg'!$E$4:$E$584,'Alle tillæg'!$B$4:$B$584,Tabeller!$A$31,'Alle tillæg'!$H$4:$H$584,Tabeller!A38)+SUMIFS('Alle tillæg'!$F$4:$F$584,'Alle tillæg'!$B$4:$B$584,Tabeller!$A$31,'Alle tillæg'!$H$4:$H$584,Tabeller!A38)","v":0},{"$f":"SUMIFS('Alle tillæg'!$G$4:$G$584,'Alle tillæg'!$B$4:$B$584,Tabeller!$A$31,'Alle tillæg'!$H$4:$H$584,Tabeller!A38)","v":0}]
["§13, stk. 2 (periodevise)",{"$f":"COUNTIFS('Alle tillæg'!$H$4:$H$584,Tabeller!A39,'Alle tillæg'!$B$4:$B$584,Tabeller!$A$31)","v":7},{"$f":"COUNTIFS('Alle tillæg'!$H$4:$H$584,Tabeller!A39,'Alle tillæg'!$I$4:$I$584,\"Godkendt\",'Alle tillæg'!$B$4:$B$584,Tabeller!$A$31)/B39","v":0.2857142857142857},{"$f":"COUNTIFS('Alle tillæg'!$H$4:$H$584,Tabeller!A39,'Alle tillæg'!$I$4:$I$584,\"Afvist \",'Alle tillæg'!$B$4:$B$584,Tabeller!$A$31)/B39","v":0.7142857142857143},{"$f":"SUMIFS('Alle tillæg'!$E$4:$E$584,'Alle tillæg'!$B$4:$B$584,Tabeller!$A$31,'Alle tillæg'!$H$4:$H$584,Tabeller!A39)+SUMIFS('Alle tillæg'!$F$4:$F$584,'Alle tillæg'!$B$4:$B$584,Tabeller!$A$31,'Alle tillæg'!$H$4:$H$584,Tabeller!A39)","v":25757},{"$f":"SUMIFS('Alle tillæg'!$G$4:$G$584,'Alle tillæg'!$B$4:$B$584,Tabeller!$A$31,'Alle tillæg'!$H$4:$H$584,Tabeller!A39)","v":772728}]
["§31, stk. 7 (vandindvinding)",{"$f":"COUNTIFS('Alle tillæg'!$H$4:$H$584,Tabeller!A40,'Alle tillæg'!$B$4:$B$584,Tabeller!$A$31)","v":4},{"$f":"COUNTIFS('Alle tillæg'!$H$4:$H$584,Tabeller!A40,'Alle tillæg'!$I$4:$I$584,\"Godkendt\",'Alle tillæg'!$B$4:$B$584,Tabeller!$A$31)/B40","v":0.75},{"$f":"COUNTIFS('Alle tillæg'!$H$4:$H$584,Tabeller!A40,'Alle tillæg'!$I$4:$I$584,\"Afvist \",'Alle tillæg'!$B$4:$B$584,Tabeller!$A$31)/B40","v":0.25},{"$f":"SUMIFS('Alle tillæg'!$E$4:$E$584,'Alle tillæg'!$B$4:$B$584,Tabeller!$A$31,'Alle tillæg'!$H$4:$H$584,Tabeller!A40)+SUMIFS('Alle tillæg'!$F$4:$F$584,'Alle tillæg'!$B$4:$B$584,Tabeller!$A$31,'Alle tillæg'!$H$4:$H$584,Tabeller!A40)","v":2151538},{"$f":"SUMIFS('Alle tillæg'!$G$4:$G$584,'Alle tillæg'!$B$4:$B$584,Tabeller!$A$31,'Alle tillæg'!$H$4:$H$584,Tabeller!A40)","v":0}]
["§ 14 (Justering af den økonomiske ramme)",{"$f":"COUNTIFS('Alle tillæg'!$H$4:$H$584,Tabeller!A41,'Alle tillæg'!$B$4:$B$584,Tabeller!$A$31)","v":2},{"$f":"COUNTIFS('Alle tillæg'!$H$4:$H$584,Tabeller!A41,'Alle tillæg'!$I$4:$I$584,\"Godkendt\",'Alle tillæg'!$B$4:$B$584,Tabeller!$A$31)/B41","v":0},{"$f":"COUNTIFS('Alle tillæg'!$H$4:$H$584,Tabeller!A41,'Alle tillæg'!$I$4:$I$584,\"Afvist \",'Alle tillæg'!$B$4:$B$584,Tabeller!$A$31)/B41","v":1},{"$f":"SUMIFS('Alle tillæg'!$E$4:$E$584,'Alle tillæg'!$B$4:$B$584,Tabeller!$A$31,'Alle tillæg'!$H$4:$H$584,Tabeller!A41)+SUMIFS('Alle tillæg'!$F$4:$F$584,'Alle tillæg'!$B$4:$B$584,Tabeller!$A$31,'Alle tillæg'!$H$4:$H$584,Tabeller!A41)","v":0},{"$f":"SUMIFS('Alle tillæg'!$G$4:$G$584,'Alle tillæg'!$B$4:$B$584,Tabeller!$A$31,'Alle tillæg'!$H$4:$H$584,Tabeller!A41)","v":0}]
["§ 18 stk. 4",{"$f":"COUNTIFS('Alle tillæg'!$H$4:$H$584,Tabeller!A42,'Alle tillæg'!$B$4:$B$584,Tabeller!$A$31)","v":0},null,null,{"$f":"SUMIFS('Alle tillæg'!$E$4:$E$584,'Alle tillæg'!$B$4:$B$584,Tabeller!$A$31,'Alle tillæg'!$H$4:$H$584,Tabeller!A42)+SUMIFS('Alle tillæg'!$F$4:$F$584,'Alle tillæg'!$B$4:$B$584,Tabeller!$A$31,'Alle tillæg'!$H$4:$H$584,Tabeller!A42)","v":0},{"$f":"SUMIFS('Alle tillæg'!$G$4:$G$584,'Alle tillæg'!$B$4:$B$584,Tabeller!$A$31,'Alle tillæg'!$H$4:$H$584,Tabeller!A42)","v":0}]
[]
[null,null,null,null,{"$f":"SUM(E33:E42)","v":22688814},{"$f":"SUM(F33:F42)","v":6939257}]

{"sheet":"Ark1","index":10,"n_rows":11,"n_cols":1,"rows_kept":11,"cut":false,"hidden":true,"merged":[]}
[]
["§11 Stk. 1 (mål)"]
["§11, Stk. 2 (ledningsomlægning)"]
["§11, stk. 4 (udvidelse)"]
["§11 stk. 5 (medfinansiering)"]
["§11, stk. 6 (sup. Investering)"]
["§11, stk. 9 (vejbidrag)"]
["§13, stk. 2 (periodevise)"]
["§31, stk. 7 (vandindvinding)"]
["§ 14 (Justering af den økonomiske ramme)"]
["§ 18 stk. 4"]